Workbook

Sheet Introduction
D3: Solar Pro Forma
D4: v1.1 March 2021
B55: Version History:
B56: v1.0 | C56: Released on Feb 18, 2021
B57: v1.1 | C57: Released on Mar 16, 2021
D58: Minor formatting on Inputs sheet
D59: Applied changes to conditional formatting for ITC and MACRS on Detailed Inputs, BTM System Purchase, and BTM PPA sheets
D60: Added developer fees to ITC basis

Sheet Inputs
B2: User Inputs | G2: Financial Summary for Behind The Meter Installations
B3: System Size | D3: kW DC | E3: 6 | H3: System Purchase | I3: PPA
B4: City | D4: Enter City or Town | E4: Chicago | G4: System Size in kW | H4: =systemsize -> 6 | I4: =systemsize -> 6
B5: State | D5: Enter State | E5: IL | G5: # Panels | H5: ='Detailed Inputs'!D9 -> 15 | I5: ='Detailed Inputs'!D9 -> 15
B6: Cost Per Installed Watt | D6: $/Installed Watt | E6: =INDEX('Detailed Inputs'!F79:H84,MATCH('Detailed Inputs'!F75,'Detailed Inputs'!H67:H72,0),MATCH(Inputs!E8,'Detailed Inputs'!F78:H78,0)) -> 2.83
B7: Electricity rate | D7: Average retail electricity rate per kWh | E7: 0.105 | G7: Energy Offset: | H7: ='BTM System Purchase'!C102/E9 -> 0.9177394295 | I7: ='BTM PPA'!C119/Inputs!E9 -> 0.9177394295
B8: Installation Type | D8: Roof, Ground, or Canopy? | E8: Roof
B9: Estimated Annual Electricity Usage | D9: Total kilowatt hours used annually onsite | E9: 8000
B10: Federal Investment Tax Credit | D10: For taxable entities only, otherwise "No" | E10: Yes
B11: Asset Depreciation (MACRS) | D11: For taxable entities only, otherwise "No" | E11: Yes
B12: REC availability | D12: Are RECs available for this system? | E12: No
B13: REC Value | D13: $$ per REC | E13: 0
B14: REC Contract Term | D14: # years RECs are eligible for purchase | E14: 0
B15: REC Payout Term | D15: # years the value of RECs are paid | E15: 0
B16: Incentive availbility | D16: Does this system qualify for incentives? | E16: No | G16: First Year Savings | H16: ='BTM System Purchase'!F75 -> -10062.68688 | I16: ='BTM PPA'!F35 -> 154.1802242
B17: Incentive #1 | D17: $ per installed watt | E17: 0
B18: Incentive #2 | D18: $ lump sum up front | E18: 0 | G18: Average Annual Savings | H18: ='BTM System Purchase'!D14 -> 536.7825529 | I18: ='BTM PPA'!E15 -> 184.6723773
B19: Incentive #3 | D19: [please select] | E19: 0
B20: Incentive #4 | D20: [please select] | E20: 0 | G20: 25-Year Costs: | H20: ='BTM System Purchase'!D7 -> -20508.91934 | I20: ='BTM PPA'!E8 -> -18467.23773
G21: 25-Year Revenues: | H21: ='BTM System Purchase'!D8 -> 33928.48316 | I21: ='BTM PPA'!E9 -> 23084.04716
G22: 25-Year Net Benefits: | H22: ='BTM System Purchase'!D9 -> 13419.56382 | I22: ='BTM PPA'!E10 -> 4616.809433
G23: 25-Year Net Present Value (NPV): | H23: ='BTM System Purchase'!D10 -> 6431.161398 | I23: ='BTM PPA'!E11 -> 18193.75831
G24: Return on Investment (ROI) %: | H24: ='BTM System Purchase'!D11 -> 0.6543281779 | I24: ='BTM PPA'!E12 -> 0.25
G25: Internal Rate of Return (IRR) %: | H25: ='BTM System Purchase'!D12 -> 0.08066004737 | I25: ='BTM PPA'!E13 -> NA
G26: Upfront Costs | H26: ='BTM System Purchase'!D13 -> -17340 | I26: ='BTM PPA'!E14 -> 0
G27: Payback Period: years | H27: ='BTM System Purchase'!D15 -> 9.326917815 | I27: ='BTM PPA'!E16 -> 0

Sheet Detailed Inputs
B2: SYSTEM INPUTS | F2: RATE INPUTS
B3: Module Size | C3: Watts | D3: 400 | F3: Customer Retail Rate | G3: $ per kWh | H3: =Inputs!E7 -> 0.105
B4: Capacity Factor: | C4: % | D4: 0.12 | F4: Customer Net Metering/Bill Credit Rate | G4: $ per kWh | H4: =CustomerRate1 -> 0.105
B5: System Losses (%): | C5: % | D5: 14.1 | F5: Estimated Production to Directly Offset Load | G5: % of Load | H5: 1
B6: Inverter Efficiency (%): | C6: % | D6: 96 | F6: Estimated Production to Grid | G6: % of Load | H6: =(1-PercentLoad1) -> 0
B7: Annual Power Production | C7: (kWh per kW): | D7: =SUM(C59:C70) -> 202.2275187 | F7: PPA Type (Flat Rate or % Savings) | G7: % of Electricity Rate | H7: % Tied To Customer Rate
B8: Annual Derate (%): | C8: % | D8: 0.005 | F8: Rate-Tied Saving Percent PPA Rate | G8: % Savings | H8: 0.2
B9: Number of Panels: | C9: # | D9: =systemsize/('Detailed Inputs'!D3/1000) -> 15 | F9: Fixed PPA Rate | G9: $ per kWh | H9: 0
B10: Azimuth | C10: Degrees | D10: 180 | F10: Fixed PPA Rate % Savings | G10: % of Electricity Rate | H10: =(H3-H9)/H3 -> 1
B11: Tilt | C11: Degrees | D11: 10
B12: Array Type | C12: Fixed - Open Rack | D12: =IF(array_type="Fixed - Open Rack",0,IF(array_type="Fixed - Roof Mounted",1,IF(array_type="1-Axis",2,IF(array_type="1-Axis Backtracking",3,IF(array_type="2-axis",4))))) -> 0 | F12: FINANCING INPUTS
B13: Module Type | C13: Standard | D13: =IF(module_type="Standard",0,IF(module_type="Premium",1,IF(module_type="Thin film",2,0))) -> 0 | F13: Construction Loan
B14: DC/AC Ratio | D14: 1.2 | F14: Loan amount | G14: % of upfront costs | H14: 0
B15: Ground Cover Ratio | D15: 0.4 | F15: Interest Rate | G15: % | H15: 0
F16: Loan Term | G16: Years | H16: 0
B17: FINANCIAL INPUTS | F17: Closing | G17: % | H17: 0
B18: Annual Energy & Demand Cost Increase: | D18: 0.02 | F18: Downpayment | G18: % | H18: 0
B19: Annual Customer PPA Rate Increase: | D19: 0.02 | F19: Operating Loan
B20: Developer NPV Discount Rate: | D20: 0.03 | F20: Loan amount | G20: % | H20: 0
B21: Customer NPV Discount Rate: | D21: 0.06 | F21: Interest Rate | G21: % | H21: 0
F22: Loan Term | G22: Years | H22: 0
B23: REC Detail
B24: REC availability | C24: Are RECs available for this system? | D24: =Inputs!E12 -> No | F24: Closing | G24: % | H24: 0
B25: REC Value | C25: $$ per REC | D25: =Inputs!E13 -> 0 | F25: Downpayment | G25: % | H25: 0
B26: REC Contract Term | C26: # years RECs are eligible for purchase | D26: =Inputs!E14 -> 0
B27: REC Payout Term | C27: # years the value of RECs are paid | D27: =Inputs!E15 -> 0 | F27: ENERGY PRODUCTION
B28: RECs Generated | C28: # over entire contract term | D28: =SUMIF('BTM System Purchase'!F86:'BTM System Purchase'!AD86, "<="&D26,'BTM System Purchase'!F102:'BTM System Purchase'!AD102)/1000 -> 0 | F28: PV Watts generated production or manual? | H28: PV Watts
B29: Total REC Value | C29: $ over entire contract term | D29: =IF(Inputs!E12="Yes",D25*D28,0) -> 0
F30: MANUAL PRODUCTION INPUTS | G30: First Year Power Generation
B31: Total Incentive Value | F31: Month
B32: Incentive #1 | C32: =Inputs!C17 -> 0 | D32: =IF(Inputs!D17="$ per installed watt",(Inputs!E17*systemsize*1000),Inputs!E17) -> 0 | F32: January | H32: <= Enter total kilowatt hours for each month of the first production year
B33: Incentive #2 | C33: =Inputs!C18 -> 0 | D33: =IF(Inputs!D18="$ per installed watt",(Inputs!E18*systemsize*1000),Inputs!E18) -> 0 | F33: February | H33: <=
B34: Incentive #3 | C34: =Inputs!C19 -> 0 | D34: =IF(Inputs!D19="$ per installed watt",(Inputs!E19*systemsize*1000),Inputs!E19) -> 0 | F34: March | H34: <=
B35: Incentive #4 | C35: =Inputs!C20 -> 0 | D35: =IF(Inputs!D20="$ per installed watt",(Inputs!E20*systemsize*1000),Inputs!E20) -> 0 | F35: April | H35: <=
F36: May | H36: <=
B37: Tax Incentives | F37: June | H37: <=
B38: Federal Investment Tax Credit | C38: % | D38: 0.26 | F38: July | H38: <=
B39: MACRS | C39: % | D39: 0.35 | F39: August | H39: <=
B40: Low Income Housing Tax Credit | C40: Yes/No | D40: No | F40: September | H40: <=
B41: LIHTC Rate | C41: Percent | D41: 0.04 | F41: October | H41: <=
B42: Eligible LIHTC Basis | C42: Percent | D42: 1 | F42: November | H42: <=
B43: Eligible LIHTC Basis | C43: $$ | D43: =IF(LIHTCYesNo="Yes",-'BTM System Purchase'!E31*D42,0) -> 0 | F43: December | H43: <=
B44: New Markets Tax Credit | C44: Yes/No | D44: No | F44: TOTAL | G44: =SUM(G32:G43) -> 0
B47: PVWatts Production Output | D47: kWh | F47: Manual Production Output | G47: kWh per kW | H47: kWh | J47: Construction Costs | L47: Input Unit | M47: Input Value
B48: Month | F48: Month | J48: PV Modules: | L48: $/W | M48: 0.64
B49: January | C49: 58.18448385 | D49: =C49*systemsize -> 349.1069031 | F49: January | G49: =G32 -> 0 | H49: =G32 -> 0 | J49: Inverters: | L49: $/W | M49: 0.13
B50: February | C50: 72.66072591 | D50: 435.9643555 | F50: February | G50: 0 | H50: 0 | J50: Racking: | L50: $/W | M50: =IF(D23="Canopy",0.96,0.21) -> 0.21
B51: March | C51: 103.2192078 | D51: 619.3152466 | F51: March | G51: 0 | H51: 0 | J51: Balance of System: | L51: $/W | M51: 0.18
B52: April | C52: 124.8339742 | D52: 749.0038452 | F52: April | G52: 0 | H52: 0 | J52: Engineering and Design: | L52: $/W | M52: 0.06
B53: May | C53: 148.2349752 | D53: =C53*systemsize -> 889.4098511 | F53: May | G53: 0 | H53: 0 | J53: Permitting and Interconnection: | L53: $/W | M53: 0.09
B54: June | C54: 146.8122559 | D54: 880.8735352 | F54: June | G54: 0 | H54: 0 | J54: Installation Labor: | L54: $/W | M54: 0.5
B55: July | C55: 151.424764 | D55: 908.548584 | F55: July | G55: 0 | H55: 0 | J55: Equipment Rental and Freight: | L55: $/W | M55: 0.03
B56: August | C56: 127.0269979 | D56: 762.1619873 | F56: August | G56: 0 | H56: 0 | J56: Development Overhead: | L56: $/W | M56: 0.41
B57: September | C57: 105.4671834 | D57: 632.8031006 | F57: September | G57: 0 | H57: 0 | J57: Total Installed Cost of PV System (Ground Mount) | L57: $/W | M57: =SUM(M48:M56) -> 2.25
B58: October | C58: 86.77972412 | D58: 520.6783447 | F58: October | G58: 0 | H58: 0
B59: November | C59: 53.95271301 | D59: 323.7162781 | F59: November | G59: 0 | H59: 0
B60: December | C60: 45.05556742 | D60: 270.3334045 | F60: December | G60: 0 | H60: 0
B61: TOTAL | C61: 103.2192383 | D61: =SUM(D49:D60) -> 7341.915436 | F61: TOTAL | H61: =SUM(H49:H60) -> 0
F64: Installed Cost per Watt by system size
F66: From: | G66: To: | H66: Size Category
F67: 0 | G67: 10 | H67: 1
F68: 11 | G68: 25 | H68: 2
F69: 26 | G69: 100 | H69: 3
F70: 101 | G70: 200 | H70: 4
F71: 201 | G71: 500 | H71: 5
F72: 501 | G72: 2000 | H72: 6
F74: Size Category
F75: =IF(systemsize>500,6,IF(systemsize>200,5,IF(systemsize>100,4,IF(systemsize>25,3,IF(systemsize>10,2,1))))) -> 1
F77: Installation Costs
F78: Roof | G78: Ground | H78: Canopy
E79: 1 | F79: 2.83 | G79: 2.6 | H79: 3.25
E80: 2 | F80: 2.75 | G80: 2.45 | H80: 3.1
E81: 3 | F81: 2.59 | G81: 2 | H81: 3
E82: 4 | F82: 2.44 | G82: 1.9 | H82: 2.8
E83: 5 | F83: 2.29 | G83: 1.85 | H83: 2.75
E84: 6 | F84: 2.14 | G84: 1.8 | H84: 2.65

Sheet BTM System Purchase
B1: Behind the Meter: System Purchase
B2: The system is owned by the property owner, who is the utility customer. The system is installed onsite and behind the customer's meter. A portion of the energy produced by the system is used in real-time by the customer (Estimated Production to Directly Offset Load) and reduces the energy they buy from their electricity supplier. The remaining portion of energy prduced by the system is sent to the grid and sold to the utility at the qualifying net metering rate (Estimated Production to Grid). This portion is credited to the customers bill, typically at an agreed rate per kilowatt hour.
B4: Summary Financial Metrics
B6: Key Performace Indicator
B7: 25-Year Costs: | C7: $ | D7: =AF31+AF37+AF41+AF48 -> -20508.91934
B8: 25-Year Revenues: | C8: $ | D8: =AF34+AF38+AF55+AF64+AF71 -> 33928.48316
B9: 25-Year Net Benefits: | C9: $ | D9: =D7+D8 -> 13419.56382
B10: 25-Year Net Present Value (NPV): | C10: $ | D10: =E74+NPV('Detailed Inputs'!D20,F74:AD74) -> 6431.161398
B11: Return on Investment (ROI): | C11: % | D11: =D9/(-D7) -> 0.6543281779
B12: Internal Rate of Return (IRR) | C12: $ | D12: =IRR(E79:AD79) -> 0.08066004737
B13: Upfront Costs | C13: $ | D13: =E31 -> -17340
B14: Average Annual Revenue | C14: $ | D14: =AF74/25 -> 536.7825529
B15: Payback Period: | C15: years | D15: =E76 -> 9.326917815
B18: Business Case - System Owner
B20: Year | E20: 0 | F20: 1 | G20: 2 | H20: 3 | I20: 4 | J20: 5 | K20: 6 | L20: 7 | M20: 8 | N20: 9 | O20: 10 | P20: 11 | Q20: 12 | R20: 13 | S20: 14 | T20: 15 | U20: 16 | V20: 17 | W20: 18 | X20: 19 | Y20: 20 | Z20: 21 | AA20: 22 | AB20: 23 | AC20: 24 | AD20: 25
B22: INSTALLATION COSTS
B23: Generation Equipment | C23: $ | D23: 0.4758194185 | E23: =-(systemsize*Costperwatt*1000)*'BTM System Purchase'!D23 -> -8079.413726 | AF23: =SUM(E23:AE23) -> -8079.413726
B24: Balance of Plant | C24: $ | D24: 0.2362044723 | E24: =-(systemsize*Costperwatt*1000)*'BTM System Purchase'!D24 -> -4010.75194 | AF24: =SUM(E24:AE24) -> -4010.75194
B25: Interconnection | C25: $ | D25: 0.06010307624 | E25: =-(systemsize*Costperwatt*1000)*'BTM System Purchase'!D25 -> -1020.550235 | AF25: -1020.550235
B26: Development Costs & Fee | C26: $ | D26: 0.227873033 | E26: =-(systemsize*Costperwatt*1000)*'BTM System Purchase'!D26 -> -3869.2841 | AF26: -3869.2841
B27: Site Preparation cost | C27: $/Installed watt | D27: 0.06 | E27: =-(systemsize*1000)*D27 -> -360 | AF27: -360
B28: Site Purchase Cost | C28: $ | D28: 0 | E28: =D28 -> 0 | AF28: 0
B29: Removal Cost | C29: $ | D29: 0 | E29: =D29 -> 0 | AF29: 0
B30: Site lease cost (based on per acre $=>) | C30: $/Acre/Yr | D30: 0 | E30: =-((systemsize*175)/43560)*D30 -> 0 | AF30: 0
B31: Total Installation Costs | E31: =SUM(E23:E30) -> -17340 | AF31: -17340
B33: CAPITAL COSTS
B34: Construction loan | C34: $ | E34: =-E31*ConstructionLoanAmount -> 0 | AF34: =SUM(E34:AE34) -> 0
B35: Construction loan downpayment | C35: $ | E35: =-E34*ConstructionDownpayment -> 0 | AF35: 0
B36: Construction loan closing costs | C36: $ | E36: =-E34*ConstructionClosing -> 0 | AF36: 0
B37: Construction loan payments | C37: $ | F37: =IF(F20=0,0,IF(F20<=ConstructionLoanTerm,-PMT(ConstructionLoanInterestRate/12,ConstructionLoanTerm*12,ConstructionLoanAmount*($E$31))*12,0)) -> 0 | G37: 0 | H37: 0 | I37: 0 | J37: 0 | K37: 0 | L37: 0 | M37: 0 | N37: 0 | O37: 0 | P37: 0 | Q37: 0 | R37: 0 | S37: 0 | T37: 0 | U37: 0 | V37: 0 | W37: 0 | X37: 0 | Y37: 0 | Z37: 0 | AA37: 0 | AB37: 0 | AC37: 0 | AD37: 0 | AF37: 0 | AK37: Installation | AL37: 265000
B38: Operating loan | C38: $ | F38: =-E31*OpLoanAmount -> 0 | AF38: 0 | AH38: Installation | AI38: 265000 | AK38: Capital Costs | AL38: 52815.32235
B39: Operating loan downpayment | C39: $ | F39: =-OpDownpayment*F38 -> 0 | AF39: 0 | AH39: Capital Costs | AI39: 52815.32235 | AK39: O&M | AL39: 267879.598
B40: Operating loan closing costs | C40: $ | F40: =-OpClosing*F38 -> 0 | AF40: 0 | AH40: O&M | AI40: 267879.598
B41: Operating loan payments | C41: $ | F41: =IF(F20=0,0,IF(F20<=OpLoanTerm,-PMT(OpLoanInterestRate/12,OpLoanTerm*12,OpLoanAmount*($E$31))*12,0)) -> 0 | G41: 0 | H41: 0 | I41: 0 | J41: 0 | K41: 0 | L41: 0 | M41: 0 | N41: 0 | O41: 0 | P41: 0 | Q41: 0 | R41: 0 | S41: 0 | T41: 0 | U41: 0 | V41: 0 | W41: 0 | X41: 0 | Y41: 0 | Z41: 0 | AA41: 0 | AB41: 0 | AC41: 0 | AD41: 0 | AF41: 0
B42: Total Cost of Capital | E42: =SUM(E34:E41) -> 0 | F42: 0 | G42: 0 | H42: 0 | I42: 0 | J42: 0 | K42: 0 | L42: 0 | M42: 0 | N42: 0 | O42: 0 | P42: 0 | Q42: 0 | R42: 0 | S42: 0 | T42: 0 | U42: 0 | V42: 0 | W42: 0 | X42: 0 | Y42: 0 | Z42: 0 | AA42: 0 | AB42: 0 | AC42: 0 | AD42: 0 | AF42: 0
B44: OPERATING EXPENSES | D44: $/kW/Yr
B45: Fixed O&M Expense | C45: $ | D45: 10.4 | F45: =-D45*systemsize -> -62.4 | G45: =F45*1.02 -> -63.648 | H45: -64.92096 | I45: -66.2193792 | J45: -67.54376678 | K45: -68.89464212 | L45: -70.27253496 | M45: -71.67798566 | N45: -73.11154537 | O45: -74.57377628 | P45: -76.06525181 | Q45: -77.58655684 | R45: -79.13828798 | S45: -80.72105374 | T45: -82.33547482 | U45: -83.98218431 | V45: -85.661828 | W45: -87.37506456 | X45: -89.12256585 | Y45: -90.90501717 | Z45: 0 | AA45: 0 | AB45: 0 | AC45: 0 | AD45: =AC45*1.02 -> 0 | AF45: =SUM(E45:AE45) -> -1516.155875
B46: Insurance | C46: $ | D46: 3.4 | F46: =-D46*systemsize -> -20.4 | G46: =F46*1.02 -> -20.808 | H46: -21.22416 | I46: -21.6486432 | J46: -22.08161606 | K46: -22.52324839 | L46: -22.97371335 | M46: -23.43318762 | N46: -23.90185137 | O46: -24.3798884 | P46: -24.86748617 | Q46: -25.36483589 | R46: -25.87213261 | S46: -26.38957526 | T46: -26.91736677 | U46: -27.4557141 | V46: -28.00482838 | W46: -28.56492495 | X46: -29.13622345 | Y46: -29.71894792 | Z46: =Y46*1.02 -> -30.31332688 | AA46: -30.91959342 | AB46: -31.53798528 | AC46: -32.16874499 | AD46: =AC46*1.02 -> -32.81211989 | AF46: =SUM(E46:AE46) -> -653.4181144
B47: Project Administration | C47: $ | D47: 5.2 | F47: =-D47*systemsize -> -31.2 | G47: =F47*1.02 -> -31.824 | H47: -32.46048 | I47: -33.1096896 | J47: -33.77188339 | K47: -34.44732106 | L47: -35.13626748 | M47: -35.83899283 | N47: -36.55577269 | O47: -37.28688814 | P47: -38.0326259 | Q47: -38.79327842 | R47: -39.56914399 | S47: -40.36052687 | T47: -41.16773741 | U47: -41.99109216 | V47: -42.830914 | W47: -43.68753228 | X47: -44.56128292 | Y47: -45.45250858 | Z47: -46.36155875 | AA47: -47.28878993 | AB47: -48.23456573 | AC47: -49.19925704 | AD47: =AC47*1.02 -> -50.18324218 | AF47: =SUM(E47:AE47) -> -999.3453514
B48: Total Operating Expense | F48: =SUM(F45:F47) -> -114 | G48: -116.28 | H48: -118.6056 | I48: -120.977712 | J48: -123.3972662 | K48: -125.8652116 | L48: -128.3825158 | M48: -130.9501661 | N48: -133.5691694 | O48: -136.2405528 | P48: -138.9653639 | Q48: -141.7446712 | R48: -144.5795646 | S48: -147.4711559 | T48: -150.420579 | U48: -153.4289906 | V48: -156.4975704 | W48: -159.6275218 | X48: -162.8200722 | Y48: -166.0764737 | Z48: -76.67488563 | AA48: -78.20838335 | AB48: -79.77255101 | AC48: -81.36800203 | AD48: -82.99536207 | AF48: =SUM(AF45:AF47) -> -3168.919341
B50: TAX BENEFITS
B51: Federal ITC | C51: =ITC -> 0.26 | D51: Year 1 | F51: =IF(Inputs!$E$10="Yes",-(E23+E24+E25+E26+E27)*C51,0) -> 4508.4 | AF51: =SUM(E51:AE51) -> 4508.4
B52: Federal MACRS Cash Equivalent | C52: =IF(Inputs!E11="Yes",MACRs,0) -> 0.35 | D52: =(-E31*C52) -> 6069 | F52: =IF(F20=1,((-$E$31-($F$51/2))*0.2*$C$52)*2)+IF(F20=2,(-$E$31-($F$51/2))*0.32*$C$52)+IF(F20=3,(-$E$31-($F$51/2))*0.192*$C$52)+IF(F20=4,(-$E$31-($F$51/2))*0.1152*$C$52)+IF(F20=5,(-$E$31-($F$51/2))*0.1152*$C$52)+IF(F20=6,(-$E$31-($F$51/2))*0.0576*$C$52,0) -> 2112.012 | G52: 1689.6096 | H52: 1013.76576 | I52: 608.259456 | J52: 608.259456 | K52: 304.129728 | AF52: =SUM(E52:AE52) -> 6336.036
B53: Low Income Housing Tax Credit | C53: ='Detailed Inputs'!D40 -> No | D53: =LIHTCRate -> 0.04 | F53: =IF(LIHTCYesNo="Yes",LIHTCRate*'Detailed Inputs'!$D$43,0) -> 0 | G53: =IF(LIHTCYesNo="Yes",LIHTCRate*'Detailed Inputs'!$D$43,0) -> 0 | H53: =IF(LIHTCYesNo="Yes",LIHTCRate*'Detailed Inputs'!$D$43,0) -> 0 | I53: =IF(LIHTCYesNo="Yes",LIHTCRate*'Detailed Inputs'!$D$43,0) -> 0 | J53: =IF(LIHTCYesNo="Yes",LIHTCRate*'Detailed Inputs'!$D$43,0) -> 0 | K53: =IF(LIHTCYesNo="Yes",LIHTCRate*'Detailed Inputs'!$D$43,0) -> 0 | L53: =IF(LIHTCYesNo="Yes",LIHTCRate*'Detailed Inputs'!$D$43,0) -> 0 | M53: =IF(LIHTCYesNo="Yes",LIHTCRate*'Detailed Inputs'!$D$43,0) -> 0 | N53: =IF(LIHTCYesNo="Yes",LIHTCRate*'Detailed Inputs'!$D$43,0) -> 0 | O53: =IF(LIHTCYesNo="Yes",LIHTCRate*'Detailed Inputs'!$D$43,0) -> 0 | AF53: =SUM(E53:AE53) -> 0
B54: New Markets Tax Credit | C54: ='Detailed Inputs'!D44 -> No | F54: =IF(NMTCYesNo="Yes",-$E$31*0.05,0) -> 0 | G54: 0 | H54: 0 | I54: =IF(NMTCYesNo="Yes",-$E$31*0.06,0) -> 0 | J54: =IF(NMTCYesNo="Yes",-$E$31*0.06,0) -> 0 | K54: =IF(NMTCYesNo="Yes",-$E$31*0.06,0) -> 0 | L54: =IF(NMTCYesNo="Yes",-$E$31*0.06,0) -> 0 | AF54: =SUM(E54:AE54) -> 0
B55: Total Tax Benefits | F55: =SUM(F51:F54) -> 6620.412 | G55: 1689.6096 | H55: 1013.76576 | I55: 608.259456 | J55: 608.259456 | K55: 304.129728 | L55: 0 | M55: 0 | N55: 0 | O55: 0 | P55: 0 | Q55: 0 | R55: 0 | S55: 0 | T55: 0 | U55: 0 | V55: 0 | W55: 0 | X55: 0 | Y55: 0 | Z55: 0 | AA55: 0 | AB55: 0 | AC55: 0 | AD55: 0 | AF55: =SUM(E55:AE55) -> 10844.436
B57: INCENTIVES
B58: SRECs | C58: $ | D58: Up to 15 years | F58: =IF(F20<=Inputs!$E$15,'Detailed Inputs'!$D$29/Inputs!$E$15,0) -> 0 | G58: =IF(G20<=Inputs!$E$15,'Detailed Inputs'!$D$29/Inputs!$E$15,0) -> 0 | H58: =IF(H20<=Inputs!$E$15,'Detailed Inputs'!$D$29/Inputs!$E$15,0) -> 0 | I58: =IF(I20<=Inputs!$E$15,'Detailed Inputs'!$D$29/Inputs!$E$15,0) -> 0 | J58: =IF(J20<=Inputs!$E$15,'Detailed Inputs'!$D$29/Inputs!$E$15,0) -> 0 | K58: =IF(K20<=Inputs!$E$15,'Detailed Inputs'!$D$29/Inputs!$E$15,0) -> 0 | L58: =IF(L20<=Inputs!$E$15,'Detailed Inputs'!$D$29/Inputs!$E$15,0) -> 0 | M58: =IF(M20<=Inputs!$E$15,'Detailed Inputs'!$D$29/Inputs!$E$15,0) -> 0 | N58: =IF(N20<=Inputs!$E$15,'Detailed Inputs'!$D$29/Inputs!$E$15,0) -> 0 | O58: =IF(O20<=Inputs!$E$15,'Detailed Inputs'!$D$29/Inputs!$E$15,0) -> 0 | P58: =IF(P20<=Inputs!$E$15,'Detailed Inputs'!$D$29/Inputs!$E$15,0) -> 0 | Q58: =IF(Q20<=Inputs!$E$15,'Detailed Inputs'!$D$29/Inputs!$E$15,0) -> 0 | R58: =IF(R20<=Inputs!$E$15,'Detailed Inputs'!$D$29/Inputs!$E$15,0) -> 0 | S58: =IF(S20<=Inputs!$E$15,'Detailed Inputs'!$D$29/Inputs!$E$15,0) -> 0 | T58: =IF(T20<=Inputs!$E$15,'Detailed Inputs'!$D$29/Inputs!$E$15,0) -> 0 | U58: =IF(U20<=Inputs!$E$15,'Detailed Inputs'!$D$29/Inputs!$E$15,0) -> 0 | V58: =IF(V20<=Inputs!$E$15,'Detailed Inputs'!$D$29/Inputs!$E$15,0) -> 0 | W58: =IF(W20<=Inputs!$E$15,'Detailed Inputs'!$D$29/Inputs!$E$15,0) -> 0 | X58: =IF(X20<=Inputs!$E$15,'Detailed Inputs'!$D$29/Inputs!$E$15,0) -> 0 | Y58: =IF(Y20<=Inputs!$E$15,'Detailed Inputs'!$D$29/Inputs!$E$15,0) -> 0 | Z58: =IF(Z20<=Inputs!$E$15,'Detailed Inputs'!$D$29/Inputs!$E$15,0) -> 0 | AA58: =IF(AA20<=Inputs!$E$15,'Detailed Inputs'!$D$29/Inputs!$E$15,0) -> 0 | AB58: =IF(AB20<=Inputs!$E$15,'Detailed Inputs'!$D$29/Inputs!$E$15,0) -> 0 | AC58: =IF(AC20<=Inputs!$E$15,'Detailed Inputs'!$D$29/Inputs!$E$15,0) -> 0 | AD58: =IF(AD20<=Inputs!$E$15,'Detailed Inputs'!$D$29/Inputs!$E$15,0) -> 0 | AF58: =SUM(E58:AE58) -> 0
B59: =Inputs!B17 -> Incentive #1 | C59: =Inputs!D17 -> $ per installed watt | D59: =Inputs!C17 -> 0 | F59: =IF(Inputs!$D17="$ per installed watt",(Inputs!$E17*systemsize*1000),Inputs!$E17) -> 0 | AF59: 0
B60: =Inputs!B18 -> Incentive #2 | C60: =Inputs!D18 -> $ lump sum up front | D60: =Inputs!C18 -> 0 | F60: =IF(Inputs!$D18="$ per installed watt",(Inputs!$E18*systemsize*1000),Inputs!$E18) -> 0 | AF60: 0
B61: =Inputs!B19 -> Incentive #3 | C61: =Inputs!D19 -> [please select] | D61: =Inputs!C19 -> 0 | F61: =IF(Inputs!$D19="$ per installed watt",(Inputs!$E19*systemsize*1000),Inputs!$E19) -> 0 | AF61: 0
B62: =Inputs!B20 -> Incentive #4 | C62: =Inputs!D20 -> [please select] | D62: =Inputs!C20 -> 0 | F62: =IF(Inputs!$D20="$ per installed watt",(Inputs!$E20*systemsize*1000),Inputs!$E20) -> 0 | AF62: 0
B64: Total Incentive Payments | F64: =SUM(F58:F63) -> 0 | G64: 0 | H64: 0 | I64: 0 | J64: 0 | K64: 0 | L64: 0 | M64: 0 | N64: 0 | O64: 0 | P64: 0 | Q64: 0 | R64: 0 | S64: 0 | T64: 0 | U64: 0 | V64: 0 | W64: 0 | X64: 0 | Y64: 0 | Z64: 0 | AA64: 0 | AB64: 0 | AC64: 0 | AD64: 0 | AF64: 0
B66: REVENUES
B67: Net Metering - Load 1 | C67: $ | D67: $ Annual | F67: =F151 -> 770.9011208 | G67: =G151 -> 782.3875475 | H67: 794.0250708 | I67: 805.81514 | J67: 817.759202 | K67: 829.8587004 | L67: 842.115075 | M67: 854.5297612 | N67: 867.1041888 | O67: 879.8397815 | P67: 892.7379563 | Q67: 905.8001222 | R67: 919.0276796 | S67: 932.4220192 | T67: 945.9845213 | U67: 959.7165546 | V67: 973.6194755 | W67: 987.6946266 | X67: 1001.943336 | Y67: 1016.366916 | Z67: 1030.966662 | AA67: 1045.74385 | AB67: 1060.69974 | AC67: 1075.835568 | AD67: 1091.152549 | AF67: =SUM(E67:AE67) -> 23084.04716
B68: Net Metering - Load 2 | C68: $ | D68: $ Annual | F68: =F167 -> 0 | G68: =G167 -> 0 | H68: 0 | I68: 0 | J68: 0 | K68: 0 | L68: 0 | M68: 0 | N68: 0 | O68: 0 | P68: 0 | Q68: 0 | R68: 0 | S68: 0 | T68: 0 | U68: 0 | V68: 0 | W68: 0 | X68: 0 | Y68: 0 | Z68: 0 | AA68: 0 | AB68: 0 | AC68: 0 | AD68: 0 | AF68: =SUM(E68:AE68) -> 0
B69: Site Lease Payments | C69: $ | D69: Fixed Annual | F69: =$E$30 -> 0 | G69: 0 | H69: 0 | I69: 0 | J69: 0 | K69: 0 | L69: 0 | M69: 0 | N69: 0 | O69: 0 | P69: 0 | Q69: 0 | R69: 0 | S69: 0 | T69: 0 | U69: 0 | V69: 0 | W69: 0 | X69: 0 | Y69: 0 | Z69: 0 | AA69: 0 | AB69: 0 | AC69: 0 | AD69: 0 | AF69: =SUM(E69:AE69) -> 0
B70: Demand Charge Savings | C70: $ | D70: Estimated | F70: 0 | G70: 0 | H70: 0 | I70: 0 | J70: 0 | K70: 0 | L70: 0 | M70: 0 | N70: 0 | O70: 0 | P70: 0 | Q70: 0 | R70: 0 | S70: 0 | T70: 0 | U70: 0 | V70: 0 | W70: 0 | X70: 0 | Y70: 0 | Z70: 0 | AA70: 0 | AB70: 0 | AC70: 0 | AD70: 0 | AF70: =SUM(E70:AE70) -> 0
B71: Total Revenue | F71: =SUM(F67:F70) -> 770.9011208 | G71: 782.3875475 | H71: 794.0250708 | I71: 805.81514 | J71: 817.759202 | K71: 829.8587004 | L71: 842.115075 | M71: 854.5297612 | N71: 867.1041888 | O71: 879.8397815 | P71: 892.7379563 | Q71: 905.8001222 | R71: 919.0276796 | S71: 932.4220192 | T71: 945.9845213 | U71: 959.7165546 | V71: 973.6194755 | W71: 987.6946266 | X71: 1001.943336 | Y71: 1016.366916 | Z71: 1030.966662 | AA71: 1045.74385 | AB71: 1060.69974 | AC71: 1075.835568 | AD71: 1091.152549 | AF71: =SUM(E71:AE71) -> 23084.04716
B73: CASHFLOW
B74: Net Benefits (Costs) | C74: $ | E74: =E31+E42+E48+E55+E64+E71 -> -17340 | F74: 7277.313121 | G74: 2355.717147 | H74: 1689.185231 | I74: 1293.096884 | J74: 1302.621392 | K74: 1008.123217 | L74: 713.7325592 | M74: 723.5795951 | N74: 733.5350193 | O74: 743.5992287 | P74: 753.7725925 | Q74: 764.0554511 | R74: 774.448115 | S74: 784.9508633 | T74: 795.5639423 | U74: 806.2875641 | V74: 817.1219051 | W74: 828.0671049 | X74: 839.1232638 | Y74: 850.2904422 | Z74: 954.291776 | AA74: 967.5354671 | AB74: 980.9271892 | AC74: 994.4675659 | AD74: 1008.157187 | AF74: =SUM(E74:AE74) -> 13419.56382
B75: Cumulative Cashflow | C75: $ | E75: =E74 -> -17340 | F75: =E75+F74 -> -10062.68688 | G75: -7706.969732 | H75: -6017.784501 | I75: -4724.687617 | J75: -3422.066225 | K75: -2413.943008 | L75: -1700.210449 | M75: -976.6308541 | N75: -243.0958348 | O75: 500.5033939 | P75: 1254.275986 | Q75: 2018.331437 | R75: 2792.779552 | S75: 3577.730416 | T75: 4373.294358 | U75: 5179.581922 | V75: 5996.703827 | W75: 6824.770932 | X75: 7663.894196 | Y75: 8514.184638 | Z75: 9468.476414 | AA75: 10436.01188 | AB75: 11416.93907 | AC75: 12411.40664 | AD75: 13419.56382 | AF75: =AD75 -> 13419.56382
B76: Payback Calculation | D76: Years | E76: =SUM(F76:AD76) -> 9.326917815 | F76: =IF(F75<0,1,IF(AND(F75>0,E75<0),(-E75/(F75-E75)),0)) -> 1 | G76: 1 | H76: 1 | I76: 1 | J76: 1 | K76: 1 | L76: 1 | M76: 1 | N76: 1 | O76: 0.3269178146 | P76: 0 | Q76: 0 | R76: 0 | S76: 0 | T76: 0 | U76: 0 | V76: 0 | W76: 0 | X76: 0 | Y76: 0 | Z76: 0 | AA76: 0 | AB76: 0 | AC76: 0 | AD76: 0 | AF76: =E76 -> 9.326917815
B78: Internal Rate of Return
B79: Internal Net Benefits (Costs less loans) | C79: $ | E79: =E31+E48 -> -17340 | F79: =F48+F55+F64+F71 -> 7277.313121 | G79: =G48+G55+G64+G71 -> 2355.717147 | H79: 1689.185231 | I79: 1293.096884 | J79: 1302.621392 | K79: 1008.123217 | L79: 713.7325592 | M79: 723.5795951 | N79: 733.5350193 | O79: 743.5992287 | P79: 753.7725925 | Q79: 764.0554511 | R79: 774.448115 | S79: 784.9508633 | T79: 795.5639423 | U79: 806.2875641 | V79: 817.1219051 | W79: 828.0671049 | X79: 839.1232638 | Y79: 850.2904422 | Z79: 954.291776 | AA79: 967.5354671 | AB79: 980.9271892 | AC79: 994.4675659 | AD79: 1008.157187 | AF79: =SUM(E79:AE79) -> 13419.56382
B80: Internal Cumulative Cashflow | C80: $ | E80: =D79+E79 -> -17340 | F80: =E80+F79 -> -10062.68688 | G80: =F80+G79 -> -7706.969732 | H80: =G80+H79 -> -6017.784501 | I80: -4724.687617 | J80: -3422.066225 | K80: -2413.943008 | L80: -1700.210449 | M80: -976.6308541 | N80: -243.0958348 | O80: 500.5033939 | P80: 1254.275986 | Q80: 2018.331437 | R80: 2792.779552 | S80: 3577.730416 | T80: 4373.294358 | U80: 5179.581922 | V80: 5996.703827 | W80: 6824.770932 | X80: 7663.894196 | Y80: 8514.184638 | Z80: 9468.476414 | AA80: 10436.01188 | AB80: 11416.93907 | AC80: 12411.40664 | AD80: 13419.56382 | AF80: =AD80 -> 13419.56382
B84: Generation Rates
B86: Year | E86: 0 | F86: 1 | G86: 2 | H86: 3 | I86: 4 | J86: 5 | K86: 6 | L86: 7 | M86: 8 | N86: 9 | O86: 10 | P86: 11 | Q86: 12 | R86: 13 | S86: 14 | T86: 15 | U86: 16 | V86: 17 | W86: 18 | X86: 19 | Y86: 20 | Z86: 21 | AA86: 22 | AB86: 23 | AC86: 24 | AD86: 25
B88: Power Generation Estimate
B89: Month | C89: Generation (kWh)
B90: January | C90: =IF('Detailed Inputs'!$H$28="PV Watts",'Detailed Inputs'!D49,'Detailed Inputs'!H49) -> 349.1069031 | D90: kWh's per mo. | F90: =($C90)*(1-((F$20-1)*('Detailed Inputs'!$D$8))) -> 349.1069031 | G90: =($C90)*(1-((G$20-1)*('Detailed Inputs'!$D$8))) -> 347.3613686 | H90: =($C90)*(1-((H$20-1)*('Detailed Inputs'!$D$8))) -> 345.615834 | I90: =($C90)*(1-((I$20-1)*('Detailed Inputs'!$D$8))) -> 343.8702995 | J90: =($C90)*(1-((J$20-1)*('Detailed Inputs'!$D$8))) -> 342.124765 | K90: =($C90)*(1-((K$20-1)*('Detailed Inputs'!$D$8))) -> 340.3792305 | L90: =($C90)*(1-((L$20-1)*('Detailed Inputs'!$D$8))) -> 338.633696 | M90: =($C90)*(1-((M$20-1)*('Detailed Inputs'!$D$8))) -> 336.8881615 | N90: =($C90)*(1-((N$20-1)*('Detailed Inputs'!$D$8))) -> 335.142627 | O90: =($C90)*(1-((O$20-1)*('Detailed Inputs'!$D$8))) -> 333.3970924 | P90: =($C90)*(1-((P$20-1)*('Detailed Inputs'!$D$8))) -> 331.6515579 | Q90: =($C90)*(1-((Q$20-1)*('Detailed Inputs'!$D$8))) -> 329.9060234 | R90: =($C90)*(1-((R$20-1)*('Detailed Inputs'!$D$8))) -> 328.1604889 | S90: =($C90)*(1-((S$20-1)*('Detailed Inputs'!$D$8))) -> 326.4149544 | T90: =($C90)*(1-((T$20-1)*('Detailed Inputs'!$D$8))) -> 324.6694199 | U90: =($C90)*(1-((U$20-1)*('Detailed Inputs'!$D$8))) -> 322.9238853 | V90: =($C90)*(1-((V$20-1)*('Detailed Inputs'!$D$8))) -> 321.1783508 | W90: =($C90)*(1-((W$20-1)*('Detailed Inputs'!$D$8))) -> 319.4328163 | X90: =($C90)*(1-((X$20-1)*('Detailed Inputs'!$D$8))) -> 317.6872818 | Y90: =($C90)*(1-((Y$20-1)*('Detailed Inputs'!$D$8))) -> 315.9417473 | Z90: =($C90)*(1-((Z$20-1)*('Detailed Inputs'!$D$8))) -> 314.1962128 | AA90: =($C90)*(1-((AA$20-1)*('Detailed Inputs'!$D$8))) -> 312.4506783 | AB90: =($C90)*(1-((AB$20-1)*('Detailed Inputs'!$D$8))) -> 310.7051437 | AC90: =($C90)*(1-((AC$20-1)*('Detailed Inputs'!$D$8))) -> 308.9596092 | AD90: =($C90)*(1-((AD$20-1)*('Detailed Inputs'!$D$8))) -> 307.2140747
B91: February | C91: =IF('Detailed Inputs'!$H$28="PV Watts",'Detailed Inputs'!D50,'Detailed Inputs'!H50) -> 435.9643555 | D91: kWh's per mo. | F91: =($C91)*(1-((F$20-1)*('Detailed Inputs'!$D$8))) -> 435.9643555 | G91: =($C91)*(1-((G$20-1)*('Detailed Inputs'!$D$8))) -> 433.7845337 | H91: =($C91)*(1-((H$20-1)*('Detailed Inputs'!$D$8))) -> 431.6047119 | I91: =($C91)*(1-((I$20-1)*('Detailed Inputs'!$D$8))) -> 429.4248901 | J91: =($C91)*(1-((J$20-1)*('Detailed Inputs'!$D$8))) -> 427.2450684 | K91: =($C91)*(1-((K$20-1)*('Detailed Inputs'!$D$8))) -> 425.0652466 | L91: =($C91)*(1-((L$20-1)*('Detailed Inputs'!$D$8))) -> 422.8854248 | M91: =($C91)*(1-((M$20-1)*('Detailed Inputs'!$D$8))) -> 420.705603 | N91: =($C91)*(1-((N$20-1)*('Detailed Inputs'!$D$8))) -> 418.5257812 | O91: =($C91)*(1-((O$20-1)*('Detailed Inputs'!$D$8))) -> 416.3459595 | P91: =($C91)*(1-((P$20-1)*('Detailed Inputs'!$D$8))) -> 414.1661377 | Q91: =($C91)*(1-((Q$20-1)*('Detailed Inputs'!$D$8))) -> 411.9863159 | R91: =($C91)*(1-((R$20-1)*('Detailed Inputs'!$D$8))) -> 409.8064941 | S91: =($C91)*(1-((S$20-1)*('Detailed Inputs'!$D$8))) -> 407.6266724 | T91: =($C91)*(1-((T$20-1)*('Detailed Inputs'!$D$8))) -> 405.4468506 | U91: =($C91)*(1-((U$20-1)*('Detailed Inputs'!$D$8))) -> 403.2670288 | V91: =($C91)*(1-((V$20-1)*('Detailed Inputs'!$D$8))) -> 401.087207 | W91: =($C91)*(1-((W$20-1)*('Detailed Inputs'!$D$8))) -> 398.9073853 | X91: =($C91)*(1-((X$20-1)*('Detailed Inputs'!$D$8))) -> 396.7275635 | Y91: =($C91)*(1-((Y$20-1)*('Detailed Inputs'!$D$8))) -> 394.5477417 | Z91: =($C91)*(1-((Z$20-1)*('Detailed Inputs'!$D$8))) -> 392.3679199 | AA91: =($C91)*(1-((AA$20-1)*('Detailed Inputs'!$D$8))) -> 390.1880981 | AB91: =($C91)*(1-((AB$20-1)*('Detailed Inputs'!$D$8))) -> 388.0082764 | AC91: =($C91)*(1-((AC$20-1)*('Detailed Inputs'!$D$8))) -> 385.8284546 | AD91: =($C91)*(1-((AD$20-1)*('Detailed Inputs'!$D$8))) -> 383.6486328
B92: March | C92: =IF('Detailed Inputs'!$H$28="PV Watts",'Detailed Inputs'!D51,'Detailed Inputs'!H51) -> 619.3152466 | D92: kWh's per mo. | F92: =($C92)*(1-((F$20-1)*('Detailed Inputs'!$D$8))) -> 619.3152466 | G92: =($C92)*(1-((G$20-1)*('Detailed Inputs'!$D$8))) -> 616.2186703 | H92: =($C92)*(1-((H$20-1)*('Detailed Inputs'!$D$8))) -> 613.1220941 | I92: =($C92)*(1-((I$20-1)*('Detailed Inputs'!$D$8))) -> 610.0255179 | J92: =($C92)*(1-((J$20-1)*('Detailed Inputs'!$D$8))) -> 606.9289417 | K92: =($C92)*(1-((K$20-1)*('Detailed Inputs'!$D$8))) -> 603.8323654 | L92: =($C92)*(1-((L$20-1)*('Detailed Inputs'!$D$8))) -> 600.7357892 | M92: =($C92)*(1-((M$20-1)*('Detailed Inputs'!$D$8))) -> 597.639213 | N92: =($C92)*(1-((N$20-1)*('Detailed Inputs'!$D$8))) -> 594.5426367 | O92: =($C92)*(1-((O$20-1)*('Detailed Inputs'!$D$8))) -> 591.4460605 | P92: =($C92)*(1-((P$20-1)*('Detailed Inputs'!$D$8))) -> 588.3494843 | Q92: =($C92)*(1-((Q$20-1)*('Detailed Inputs'!$D$8))) -> 585.252908 | R92: =($C92)*(1-((R$20-1)*('Detailed Inputs'!$D$8))) -> 582.1563318 | S92: =($C92)*(1-((S$20-1)*('Detailed Inputs'!$D$8))) -> 579.0597556 | T92: =($C92)*(1-((T$20-1)*('Detailed Inputs'!$D$8))) -> 575.9631793 | U92: =($C92)*(1-((U$20-1)*('Detailed Inputs'!$D$8))) -> 572.8666031 | V92: =($C92)*(1-((V$20-1)*('Detailed Inputs'!$D$8))) -> 569.7700269 | W92: =($C92)*(1-((W$20-1)*('Detailed Inputs'!$D$8))) -> 566.6734506 | X92: =($C92)*(1-((X$20-1)*('Detailed Inputs'!$D$8))) -> 563.5768744 | Y92: =($C92)*(1-((Y$20-1)*('Detailed Inputs'!$D$8))) -> 560.4802982 | Z92: =($C92)*(1-((Z$20-1)*('Detailed Inputs'!$D$8))) -> 557.3837219 | AA92: =($C92)*(1-((AA$20-1)*('Detailed Inputs'!$D$8))) -> 554.2871457 | AB92: =($C92)*(1-((AB$20-1)*('Detailed Inputs'!$D$8))) -> 551.1905695 | AC92: =($C92)*(1-((AC$20-1)*('Detailed Inputs'!$D$8))) -> 548.0939932 | AD92: =($C92)*(1-((AD$20-1)*('Detailed Inputs'!$D$8))) -> 544.997417
B93: April | C93: =IF('Detailed Inputs'!$H$28="PV Watts",'Detailed Inputs'!D52,'Detailed Inputs'!H52) -> 749.0038452 | D93: kWh's per mo. | F93: =($C93)*(1-((F$20-1)*('Detailed Inputs'!$D$8))) -> 749.0038452 | G93: =($C93)*(1-((G$20-1)*('Detailed Inputs'!$D$8))) -> 745.258826 | H93: =($C93)*(1-((H$20-1)*('Detailed Inputs'!$D$8))) -> 741.5138068 | I93: =($C93)*(1-((I$20-1)*('Detailed Inputs'!$D$8))) -> 737.7687875 | J93: =($C93)*(1-((J$20-1)*('Detailed Inputs'!$D$8))) -> 734.0237683 | K93: =($C93)*(1-((K$20-1)*('Detailed Inputs'!$D$8))) -> 730.2787491 | L93: =($C93)*(1-((L$20-1)*('Detailed Inputs'!$D$8))) -> 726.5337299 | M93: =($C93)*(1-((M$20-1)*('Detailed Inputs'!$D$8))) -> 722.7887106 | N93: =($C93)*(1-((N$20-1)*('Detailed Inputs'!$D$8))) -> 719.0436914 | O93: =($C93)*(1-((O$20-1)*('Detailed Inputs'!$D$8))) -> 715.2986722 | P93: =($C93)*(1-((P$20-1)*('Detailed Inputs'!$D$8))) -> 711.553653 | Q93: =($C93)*(1-((Q$20-1)*('Detailed Inputs'!$D$8))) -> 707.8086337 | R93: =($C93)*(1-((R$20-1)*('Detailed Inputs'!$D$8))) -> 704.0636145 | S93: =($C93)*(1-((S$20-1)*('Detailed Inputs'!$D$8))) -> 700.3185953 | T93: =($C93)*(1-((T$20-1)*('Detailed Inputs'!$D$8))) -> 696.573576 | U93: =($C93)*(1-((U$20-1)*('Detailed Inputs'!$D$8))) -> 692.8285568 | V93: =($C93)*(1-((V$20-1)*('Detailed Inputs'!$D$8))) -> 689.0835376 | W93: =($C93)*(1-((W$20-1)*('Detailed Inputs'!$D$8))) -> 685.3385184 | X93: =($C93)*(1-((X$20-1)*('Detailed Inputs'!$D$8))) -> 681.5934991 | Y93: =($C93)*(1-((Y$20-1)*('Detailed Inputs'!$D$8))) -> 677.8484799 | Z93: =($C93)*(1-((Z$20-1)*('Detailed Inputs'!$D$8))) -> 674.1034607 | AA93: =($C93)*(1-((AA$20-1)*('Detailed Inputs'!$D$8))) -> 670.3584415 | AB93: =($C93)*(1-((AB$20-1)*('Detailed Inputs'!$D$8))) -> 666.6134222 | AC93: =($C93)*(1-((AC$20-1)*('Detailed Inputs'!$D$8))) -> 662.868403 | AD93: =($C93)*(1-((AD$20-1)*('Detailed Inputs'!$D$8))) -> 659.1233838
B94: May | C94: =IF('Detailed Inputs'!$H$28="PV Watts",'Detailed Inputs'!D53,'Detailed Inputs'!H53) -> 889.4098511 | D94: kWh's per mo. | F94: =($C94)*(1-((F$20-1)*('Detailed Inputs'!$D$8))) -> 889.4098511 | G94: =($C94)*(1-((G$20-1)*('Detailed Inputs'!$D$8))) -> 884.9628018 | H94: =($C94)*(1-((H$20-1)*('Detailed Inputs'!$D$8))) -> 880.5157526 | I94: =($C94)*(1-((I$20-1)*('Detailed Inputs'!$D$8))) -> 876.0687033 | J94: =($C94)*(1-((J$20-1)*('Detailed Inputs'!$D$8))) -> 871.6216541 | K94: =($C94)*(1-((K$20-1)*('Detailed Inputs'!$D$8))) -> 867.1746048 | L94: =($C94)*(1-((L$20-1)*('Detailed Inputs'!$D$8))) -> 862.7275555 | M94: =($C94)*(1-((M$20-1)*('Detailed Inputs'!$D$8))) -> 858.2805063 | N94: =($C94)*(1-((N$20-1)*('Detailed Inputs'!$D$8))) -> 853.833457 | O94: =($C94)*(1-((O$20-1)*('Detailed Inputs'!$D$8))) -> 849.3864078 | P94: =($C94)*(1-((P$20-1)*('Detailed Inputs'!$D$8))) -> 844.9393585 | Q94: =($C94)*(1-((Q$20-1)*('Detailed Inputs'!$D$8))) -> 840.4923093 | R94: =($C94)*(1-((R$20-1)*('Detailed Inputs'!$D$8))) -> 836.04526 | S94: =($C94)*(1-((S$20-1)*('Detailed Inputs'!$D$8))) -> 831.5982108 | T94: =($C94)*(1-((T$20-1)*('Detailed Inputs'!$D$8))) -> 827.1511615 | U94: =($C94)*(1-((U$20-1)*('Detailed Inputs'!$D$8))) -> 822.7041122 | V94: =($C94)*(1-((V$20-1)*('Detailed Inputs'!$D$8))) -> 818.257063 | W94: =($C94)*(1-((W$20-1)*('Detailed Inputs'!$D$8))) -> 813.8100137 | X94: =($C94)*(1-((X$20-1)*('Detailed Inputs'!$D$8))) -> 809.3629645 | Y94: =($C94)*(1-((Y$20-1)*('Detailed Inputs'!$D$8))) -> 804.9159152 | Z94: =($C94)*(1-((Z$20-1)*('Detailed Inputs'!$D$8))) -> 800.468866 | AA94: =($C94)*(1-((AA$20-1)*('Detailed Inputs'!$D$8))) -> 796.0218167 | AB94: =($C94)*(1-((AB$20-1)*('Detailed Inputs'!$D$8))) -> 791.5747675 | AC94: =($C94)*(1-((AC$20-1)*('Detailed Inputs'!$D$8))) -> 787.1277182 | AD94: =($C94)*(1-((AD$20-1)*('Detailed Inputs'!$D$8))) -> 782.6806689
B95: June | C95: =IF('Detailed Inputs'!$H$28="PV Watts",'Detailed Inputs'!D54,'Detailed Inputs'!H54) -> 880.8735352 | D95: kWh's per mo. | F95: =($C95)*(1-((F$20-1)*('Detailed Inputs'!$D$8))) -> 880.8735352 | G95: =($C95)*(1-((G$20-1)*('Detailed Inputs'!$D$8))) -> 876.4691675 | H95: =($C95)*(1-((H$20-1)*('Detailed Inputs'!$D$8))) -> 872.0647998 | I95: =($C95)*(1-((I$20-1)*('Detailed Inputs'!$D$8))) -> 867.6604321 | J95: =($C95)*(1-((J$20-1)*('Detailed Inputs'!$D$8))) -> 863.2560645 | K95: =($C95)*(1-((K$20-1)*('Detailed Inputs'!$D$8))) -> 858.8516968 | L95: =($C95)*(1-((L$20-1)*('Detailed Inputs'!$D$8))) -> 854.4473291 | M95: =($C95)*(1-((M$20-1)*('Detailed Inputs'!$D$8))) -> 850.0429614 | N95: =($C95)*(1-((N$20-1)*('Detailed Inputs'!$D$8))) -> 845.6385937 | O95: =($C95)*(1-((O$20-1)*('Detailed Inputs'!$D$8))) -> 841.2342261 | P95: =($C95)*(1-((P$20-1)*('Detailed Inputs'!$D$8))) -> 836.8298584 | Q95: =($C95)*(1-((Q$20-1)*('Detailed Inputs'!$D$8))) -> 832.4254907 | R95: =($C95)*(1-((R$20-1)*('Detailed Inputs'!$D$8))) -> 828.021123 | S95: =($C95)*(1-((S$20-1)*('Detailed Inputs'!$D$8))) -> 823.6167554 | T95: =($C95)*(1-((T$20-1)*('Detailed Inputs'!$D$8))) -> 819.2123877 | U95: =($C95)*(1-((U$20-1)*('Detailed Inputs'!$D$8))) -> 814.80802 | V95: =($C95)*(1-((V$20-1)*('Detailed Inputs'!$D$8))) -> 810.4036523 | W95: =($C95)*(1-((W$20-1)*('Detailed Inputs'!$D$8))) -> 805.9992847 | X95: =($C95)*(1-((X$20-1)*('Detailed Inputs'!$D$8))) -> 801.594917 | Y95: =($C95)*(1-((Y$20-1)*('Detailed Inputs'!$D$8))) -> 797.1905493 | Z95: =($C95)*(1-((Z$20-1)*('Detailed Inputs'!$D$8))) -> 792.7861816 | AA95: =($C95)*(1-((AA$20-1)*('Detailed Inputs'!$D$8))) -> 788.381814 | AB95: =($C95)*(1-((AB$20-1)*('Detailed Inputs'!$D$8))) -> 783.9774463 | AC95: =($C95)*(1-((AC$20-1)*('Detailed Inputs'!$D$8))) -> 779.5730786 | AD95: =($C95)*(1-((AD$20-1)*('Detailed Inputs'!$D$8))) -> 775.1687109
B96: July | C96: =IF('Detailed Inputs'!$H$28="PV Watts",'Detailed Inputs'!D55,'Detailed Inputs'!H55) -> 908.548584 | D96: kWh's per mo. | F96: =($C96)*(1-((F$20-1)*('Detailed Inputs'!$D$8))) -> 908.548584 | G96: =($C96)*(1-((G$20-1)*('Detailed Inputs'!$D$8))) -> 904.0058411 | H96: =($C96)*(1-((H$20-1)*('Detailed Inputs'!$D$8))) -> 899.4630981 | I96: =($C96)*(1-((I$20-1)*('Detailed Inputs'!$D$8))) -> 894.9203552 | J96: =($C96)*(1-((J$20-1)*('Detailed Inputs'!$D$8))) -> 890.3776123 | K96: =($C96)*(1-((K$20-1)*('Detailed Inputs'!$D$8))) -> 885.8348694 | L96: =($C96)*(1-((L$20-1)*('Detailed Inputs'!$D$8))) -> 881.2921265 | M96: =($C96)*(1-((M$20-1)*('Detailed Inputs'!$D$8))) -> 876.7493835 | N96: =($C96)*(1-((N$20-1)*('Detailed Inputs'!$D$8))) -> 872.2066406 | O96: =($C96)*(1-((O$20-1)*('Detailed Inputs'!$D$8))) -> 867.6638977 | P96: =($C96)*(1-((P$20-1)*('Detailed Inputs'!$D$8))) -> 863.1211548 | Q96: =($C96)*(1-((Q$20-1)*('Detailed Inputs'!$D$8))) -> 858.5784119 | R96: =($C96)*(1-((R$20-1)*('Detailed Inputs'!$D$8))) -> 854.0356689 | S96: =($C96)*(1-((S$20-1)*('Detailed Inputs'!$D$8))) -> 849.492926 | T96: =($C96)*(1-((T$20-1)*('Detailed Inputs'!$D$8))) -> 844.9501831 | U96: =($C96)*(1-((U$20-1)*('Detailed Inputs'!$D$8))) -> 840.4074402 | V96: =($C96)*(1-((V$20-1)*('Detailed Inputs'!$D$8))) -> 835.8646973 | W96: =($C96)*(1-((W$20-1)*('Detailed Inputs'!$D$8))) -> 831.3219543 | X96: =($C96)*(1-((X$20-1)*('Detailed Inputs'!$D$8))) -> 826.7792114 | Y96: =($C96)*(1-((Y$20-1)*('Detailed Inputs'!$D$8))) -> 822.2364685 | Z96: =($C96)*(1-((Z$20-1)*('Detailed Inputs'!$D$8))) -> 817.6937256 | AA96: =($C96)*(1-((AA$20-1)*('Detailed Inputs'!$D$8))) -> 813.1509827 | AB96: =($C96)*(1-((AB$20-1)*('Detailed Inputs'!$D$8))) -> 808.6082397 | AC96: =($C96)*(1-((AC$20-1)*('Detailed Inputs'!$D$8))) -> 804.0654968 | AD96: =($C96)*(1-((AD$20-1)*('Detailed Inputs'!$D$8))) -> 799.5227539
B97: August | C97: =IF('Detailed Inputs'!$H$28="PV Watts",'Detailed Inputs'!D56,'Detailed Inputs'!H56) -> 762.1619873 | D97: kWh's per mo. | F97: =($C97)*(1-((F$20-1)*('Detailed Inputs'!$D$8))) -> 762.1619873 | G97: =($C97)*(1-((G$20-1)*('Detailed Inputs'!$D$8))) -> 758.3511774 | H97: =($C97)*(1-((H$20-1)*('Detailed Inputs'!$D$8))) -> 754.5403674 | I97: =($C97)*(1-((I$20-1)*('Detailed Inputs'!$D$8))) -> 750.7295575 | J97: =($C97)*(1-((J$20-1)*('Detailed Inputs'!$D$8))) -> 746.9187476 | K97: =($C97)*(1-((K$20-1)*('Detailed Inputs'!$D$8))) -> 743.1079376 | L97: =($C97)*(1-((L$20-1)*('Detailed Inputs'!$D$8))) -> 739.2971277 | M97: =($C97)*(1-((M$20-1)*('Detailed Inputs'!$D$8))) -> 735.4863177 | N97: =($C97)*(1-((N$20-1)*('Detailed Inputs'!$D$8))) -> 731.6755078 | O97: =($C97)*(1-((O$20-1)*('Detailed Inputs'!$D$8))) -> 727.8646979 | P97: =($C97)*(1-((P$20-1)*('Detailed Inputs'!$D$8))) -> 724.0538879 | Q97: =($C97)*(1-((Q$20-1)*('Detailed Inputs'!$D$8))) -> 720.243078 | R97: =($C97)*(1-((R$20-1)*('Detailed Inputs'!$D$8))) -> 716.4322681 | S97: =($C97)*(1-((S$20-1)*('Detailed Inputs'!$D$8))) -> 712.6214581 | T97: =($C97)*(1-((T$20-1)*('Detailed Inputs'!$D$8))) -> 708.8106482 | U97: =($C97)*(1-((U$20-1)*('Detailed Inputs'!$D$8))) -> 704.9998383 | V97: =($C97)*(1-((V$20-1)*('Detailed Inputs'!$D$8))) -> 701.1890283 | W97: =($C97)*(1-((W$20-1)*('Detailed Inputs'!$D$8))) -> 697.3782184 | X97: =($C97)*(1-((X$20-1)*('Detailed Inputs'!$D$8))) -> 693.5674084 | Y97: =($C97)*(1-((Y$20-1)*('Detailed Inputs'!$D$8))) -> 689.7565985 | Z97: =($C97)*(1-((Z$20-1)*('Detailed Inputs'!$D$8))) -> 685.9457886 | AA97: =($C97)*(1-((AA$20-1)*('Detailed Inputs'!$D$8))) -> 682.1349786 | AB97: =($C97)*(1-((AB$20-1)*('Detailed Inputs'!$D$8))) -> 678.3241687 | AC97: =($C97)*(1-((AC$20-1)*('Detailed Inputs'!$D$8))) -> 674.5133588 | AD97: =($C97)*(1-((AD$20-1)*('Detailed Inputs'!$D$8))) -> 670.7025488
B98: September | C98: =IF('Detailed Inputs'!$H$28="PV Watts",'Detailed Inputs'!D57,'Detailed Inputs'!H57) -> 632.8031006 | D98: kWh's per mo. | F98: =($C98)*(1-((F$20-1)*('Detailed Inputs'!$D$8))) -> 632.8031006 | G98: =($C98)*(1-((G$20-1)*('Detailed Inputs'!$D$8))) -> 629.6390851 | H98: =($C98)*(1-((H$20-1)*('Detailed Inputs'!$D$8))) -> 626.4750696 | I98: =($C98)*(1-((I$20-1)*('Detailed Inputs'!$D$8))) -> 623.3110541 | J98: =($C98)*(1-((J$20-1)*('Detailed Inputs'!$D$8))) -> 620.1470386 | K98: =($C98)*(1-((K$20-1)*('Detailed Inputs'!$D$8))) -> 616.9830231 | L98: =($C98)*(1-((L$20-1)*('Detailed Inputs'!$D$8))) -> 613.8190076 | M98: =($C98)*(1-((M$20-1)*('Detailed Inputs'!$D$8))) -> 610.6549921 | N98: =($C98)*(1-((N$20-1)*('Detailed Inputs'!$D$8))) -> 607.4909766 | O98: =($C98)*(1-((O$20-1)*('Detailed Inputs'!$D$8))) -> 604.3269611 | P98: =($C98)*(1-((P$20-1)*('Detailed Inputs'!$D$8))) -> 601.1629456 | Q98: =($C98)*(1-((Q$20-1)*('Detailed Inputs'!$D$8))) -> 597.9989301 | R98: =($C98)*(1-((R$20-1)*('Detailed Inputs'!$D$8))) -> 594.8349146 | S98: =($C98)*(1-((S$20-1)*('Detailed Inputs'!$D$8))) -> 591.670899 | T98: =($C98)*(1-((T$20-1)*('Detailed Inputs'!$D$8))) -> 588.5068835 | U98: =($C98)*(1-((U$20-1)*('Detailed Inputs'!$D$8))) -> 585.342868 | V98: =($C98)*(1-((V$20-1)*('Detailed Inputs'!$D$8))) -> 582.1788525 | W98: =($C98)*(1-((W$20-1)*('Detailed Inputs'!$D$8))) -> 579.014837 | X98: =($C98)*(1-((X$20-1)*('Detailed Inputs'!$D$8))) -> 575.8508215 | Y98: =($C98)*(1-((Y$20-1)*('Detailed Inputs'!$D$8))) -> 572.686806 | Z98: =($C98)*(1-((Z$20-1)*('Detailed Inputs'!$D$8))) -> 569.5227905 | AA98: =($C98)*(1-((AA$20-1)*('Detailed Inputs'!$D$8))) -> 566.358775 | AB98: =($C98)*(1-((AB$20-1)*('Detailed Inputs'!$D$8))) -> 563.1947595 | AC98: =($C98)*(1-((AC$20-1)*('Detailed Inputs'!$D$8))) -> 560.030744 | AD98: =($C98)*(1-((AD$20-1)*('Detailed Inputs'!$D$8))) -> 556.8667285
B99: October | C99: =IF('Detailed Inputs'!$H$28="PV Watts",'Detailed Inputs'!D58,'Detailed Inputs'!H58) -> 520.6783447 | D99: kWh's per mo. | F99: =($C99)*(1-((F$20-1)*('Detailed Inputs'!$D$8))) -> 520.6783447 | G99: =($C99)*(1-((G$20-1)*('Detailed Inputs'!$D$8))) -> 518.074953 | H99: =($C99)*(1-((H$20-1)*('Detailed Inputs'!$D$8))) -> 515.4715613 | I99: =($C99)*(1-((I$20-1)*('Detailed Inputs'!$D$8))) -> 512.8681696 | J99: =($C99)*(1-((J$20-1)*('Detailed Inputs'!$D$8))) -> 510.2647778 | K99: =($C99)*(1-((K$20-1)*('Detailed Inputs'!$D$8))) -> 507.6613861 | L99: =($C99)*(1-((L$20-1)*('Detailed Inputs'!$D$8))) -> 505.0579944 | M99: =($C99)*(1-((M$20-1)*('Detailed Inputs'!$D$8))) -> 502.4546027 | N99: =($C99)*(1-((N$20-1)*('Detailed Inputs'!$D$8))) -> 499.8512109 | O99: =($C99)*(1-((O$20-1)*('Detailed Inputs'!$D$8))) -> 497.2478192 | P99: =($C99)*(1-((P$20-1)*('Detailed Inputs'!$D$8))) -> 494.6444275 | Q99: =($C99)*(1-((Q$20-1)*('Detailed Inputs'!$D$8))) -> 492.0410358 | R99: =($C99)*(1-((R$20-1)*('Detailed Inputs'!$D$8))) -> 489.437644 | S99: =($C99)*(1-((S$20-1)*('Detailed Inputs'!$D$8))) -> 486.8342523 | T99: =($C99)*(1-((T$20-1)*('Detailed Inputs'!$D$8))) -> 484.2308606 | U99: =($C99)*(1-((U$20-1)*('Detailed Inputs'!$D$8))) -> 481.6274689 | V99: =($C99)*(1-((V$20-1)*('Detailed Inputs'!$D$8))) -> 479.0240771 | W99: =($C99)*(1-((W$20-1)*('Detailed Inputs'!$D$8))) -> 476.4206854 | X99: =($C99)*(1-((X$20-1)*('Detailed Inputs'!$D$8))) -> 473.8172937 | Y99: =($C99)*(1-((Y$20-1)*('Detailed Inputs'!$D$8))) -> 471.213902 | Z99: =($C99)*(1-((Z$20-1)*('Detailed Inputs'!$D$8))) -> 468.6105103 | AA99: =($C99)*(1-((AA$20-1)*('Detailed Inputs'!$D$8))) -> 466.0071185 | AB99: =($C99)*(1-((AB$20-1)*('Detailed Inputs'!$D$8))) -> 463.4037268 | AC99: =($C99)*(1-((AC$20-1)*('Detailed Inputs'!$D$8))) -> 460.8003351 | AD99: =($C99)*(1-((AD$20-1)*('Detailed Inputs'!$D$8))) -> 458.1969434
B100: November | C100: =IF('Detailed Inputs'!$H$28="PV Watts",'Detailed Inputs'!D59,'Detailed Inputs'!H59) -> 323.7162781 | D100: kWh's per mo. | F100: =($C100)*(1-((F$20-1)*('Detailed Inputs'!$D$8))) -> 323.7162781 | G100: =($C100)*(1-((G$20-1)*('Detailed Inputs'!$D$8))) -> 322.0976967 | H100: =($C100)*(1-((H$20-1)*('Detailed Inputs'!$D$8))) -> 320.4791153 | I100: =($C100)*(1-((I$20-1)*('Detailed Inputs'!$D$8))) -> 318.8605339 | J100: =($C100)*(1-((J$20-1)*('Detailed Inputs'!$D$8))) -> 317.2419525 | K100: =($C100)*(1-((K$20-1)*('Detailed Inputs'!$D$8))) -> 315.6233711 | L100: =($C100)*(1-((L$20-1)*('Detailed Inputs'!$D$8))) -> 314.0047897 | M100: =($C100)*(1-((M$20-1)*('Detailed Inputs'!$D$8))) -> 312.3862083 | N100: =($C100)*(1-((N$20-1)*('Detailed Inputs'!$D$8))) -> 310.767627 | O100: =($C100)*(1-((O$20-1)*('Detailed Inputs'!$D$8))) -> 309.1490456 | P100: =($C100)*(1-((P$20-1)*('Detailed Inputs'!$D$8))) -> 307.5304642 | Q100: =($C100)*(1-((Q$20-1)*('Detailed Inputs'!$D$8))) -> 305.9118828 | R100: =($C100)*(1-((R$20-1)*('Detailed Inputs'!$D$8))) -> 304.2933014 | S100: =($C100)*(1-((S$20-1)*('Detailed Inputs'!$D$8))) -> 302.67472 | T100: =($C100)*(1-((T$20-1)*('Detailed Inputs'!$D$8))) -> 301.0561386 | U100: =($C100)*(1-((U$20-1)*('Detailed Inputs'!$D$8))) -> 299.4375572 | V100: =($C100)*(1-((V$20-1)*('Detailed Inputs'!$D$8))) -> 297.8189758 | W100: =($C100)*(1-((W$20-1)*('Detailed Inputs'!$D$8))) -> 296.2003944 | X100: =($C100)*(1-((X$20-1)*('Detailed Inputs'!$D$8))) -> 294.581813 | Y100: =($C100)*(1-((Y$20-1)*('Detailed Inputs'!$D$8))) -> 292.9632317 | Z100: =($C100)*(1-((Z$20-1)*('Detailed Inputs'!$D$8))) -> 291.3446503 | AA100: =($C100)*(1-((AA$20-1)*('Detailed Inputs'!$D$8))) -> 289.7260689 | AB100: =($C100)*(1-((AB$20-1)*('Detailed Inputs'!$D$8))) -> 288.1074875 | AC100: =($C100)*(1-((AC$20-1)*('Detailed Inputs'!$D$8))) -> 286.4889061 | AD100: =($C100)*(1-((AD$20-1)*('Detailed Inputs'!$D$8))) -> 284.8703247
B101: December | C101: =IF('Detailed Inputs'!$H$28="PV Watts",'Detailed Inputs'!D60,'Detailed Inputs'!H60) -> 270.3334045 | D101: kWh's per mo. | F101: =($C101)*(1-((F$20-1)*('Detailed Inputs'!$D$8))) -> 270.3334045 | G101: =($C101)*(1-((G$20-1)*('Detailed Inputs'!$D$8))) -> 268.9817375 | H101: =($C101)*(1-((H$20-1)*('Detailed Inputs'!$D$8))) -> 267.6300705 | I101: =($C101)*(1-((I$20-1)*('Detailed Inputs'!$D$8))) -> 266.2784035 | J101: =($C101)*(1-((J$20-1)*('Detailed Inputs'!$D$8))) -> 264.9267365 | K101: =($C101)*(1-((K$20-1)*('Detailed Inputs'!$D$8))) -> 263.5750694 | L101: =($C101)*(1-((L$20-1)*('Detailed Inputs'!$D$8))) -> 262.2234024 | M101: =($C101)*(1-((M$20-1)*('Detailed Inputs'!$D$8))) -> 260.8717354 | N101: =($C101)*(1-((N$20-1)*('Detailed Inputs'!$D$8))) -> 259.5200684 | O101: =($C101)*(1-((O$20-1)*('Detailed Inputs'!$D$8))) -> 258.1684013 | P101: =($C101)*(1-((P$20-1)*('Detailed Inputs'!$D$8))) -> 256.8167343 | Q101: =($C101)*(1-((Q$20-1)*('Detailed Inputs'!$D$8))) -> 255.4650673 | R101: =($C101)*(1-((R$20-1)*('Detailed Inputs'!$D$8))) -> 254.1134003 | S101: =($C101)*(1-((S$20-1)*('Detailed Inputs'!$D$8))) -> 252.7617332 | T101: =($C101)*(1-((T$20-1)*('Detailed Inputs'!$D$8))) -> 251.4100662 | U101: =($C101)*(1-((U$20-1)*('Detailed Inputs'!$D$8))) -> 250.0583992 | V101: =($C101)*(1-((V$20-1)*('Detailed Inputs'!$D$8))) -> 248.7067322 | W101: =($C101)*(1-((W$20-1)*('Detailed Inputs'!$D$8))) -> 247.3550652 | X101: =($C101)*(1-((X$20-1)*('Detailed Inputs'!$D$8))) -> 246.0033981 | Y101: =($C101)*(1-((Y$20-1)*('Detailed Inputs'!$D$8))) -> 244.6517311 | Z101: =($C101)*(1-((Z$20-1)*('Detailed Inputs'!$D$8))) -> 243.3000641 | AA101: =($C101)*(1-((AA$20-1)*('Detailed Inputs'!$D$8))) -> 241.9483971 | AB101: =($C101)*(1-((AB$20-1)*('Detailed Inputs'!$D$8))) -> 240.59673 | AC101: =($C101)*(1-((AC$20-1)*('Detailed Inputs'!$D$8))) -> 239.245063 | AD101: =($C101)*(1-((AD$20-1)*('Detailed Inputs'!$D$8))) -> 237.893396
B102: Annual | C102: =SUM(C90:C101) -> 7341.915436 | D102: kWh's per yr. | F102: =SUM(F90:F101) -> 7341.915436 | G102: 7305.205859 | H102: 7268.496281 | I102: 7231.786704 | J102: 7195.077127 | K102: 7158.36755 | L102: 7121.657973 | M102: 7084.948396 | N102: 7048.238818 | O102: 7011.529241 | P102: 6974.819664 | Q102: 6938.110087 | R102: 6901.40051 | S102: 6864.690932 | T102: 6827.981355 | U102: 6791.271778 | V102: 6754.562201 | W102: 6717.852624 | X102: 6681.143047 | Y102: 6644.433469 | Z102: 6607.723892 | AA102: 6571.014315 | AB102: 6534.304738 | AC102: 6497.595161 | AD102: 6460.885583
B104: Customer Electricity Rates
B105: Customer Electricity Rate - Load 1
B106: Month | C106: Rate ($/kWh)
B107: January | C107: =CustomerRate1 -> 0.105 | D107: $/kWh | F107: =C107 -> 0.105 | G107: =F107*(1+EnergyEscalation) -> 0.1071 | H107: 0.109242 | I107: 0.11142684 | J107: 0.1136553768 | K107: 0.1159284843 | L107: 0.118247054 | M107: 0.1206119951 | N107: 0.123024235 | O107: 0.1254847197 | P107: 0.1279944141 | Q107: 0.1305543024 | R107: 0.1331653884 | S107: 0.1358286962 | T107: 0.1385452701 | U107: 0.1413161755 | V107: 0.144142499 | W107: 0.147025349 | X107: 0.149965856 | Y107: 0.1529651731 | Z107: 0.1560244766 | AA107: 0.1591449661 | AB107: 0.1623278654 | AC107: 0.1655744227 | AD107: 0.1688859112
B108: February | C108: 0.105 | D108: $/kWh | F108: 0.105 | G108: =F108*(1+EnergyEscalation) -> 0.1071 | H108: 0.109242 | I108: 0.11142684 | J108: 0.1136553768 | K108: 0.1159284843 | L108: 0.118247054 | M108: 0.1206119951 | N108: 0.123024235 | O108: 0.1254847197 | P108: 0.1279944141 | Q108: 0.1305543024 | R108: 0.1331653884 | S108: 0.1358286962 | T108: 0.1385452701 | U108: 0.1413161755 | V108: 0.144142499 | W108: 0.147025349 | X108: 0.149965856 | Y108: 0.1529651731 | Z108: 0.1560244766 | AA108: 0.1591449661 | AB108: 0.1623278654 | AC108: 0.1655744227 | AD108: 0.1688859112
B109: March | C109: 0.105 | D109: $/kWh | F109: 0.105 | G109: =F109*(1+EnergyEscalation) -> 0.1071 | H109: 0.109242 | I109: 0.11142684 | J109: 0.1136553768 | K109: 0.1159284843 | L109: 0.118247054 | M109: 0.1206119951 | N109: 0.123024235 | O109: 0.1254847197 | P109: 0.1279944141 | Q109: 0.1305543024 | R109: 0.1331653884 | S109: 0.1358286962 | T109: 0.1385452701 | U109: 0.1413161755 | V109: 0.144142499 | W109: 0.147025349 | X109: 0.149965856 | Y109: 0.1529651731 | Z109: 0.1560244766 | AA109: 0.1591449661 | AB109: 0.1623278654 | AC109: 0.1655744227 | AD109: 0.1688859112
B110: April | C110: 0.105 | D110: $/kWh | F110: 0.105 | G110: =F110*(1+EnergyEscalation) -> 0.1071 | H110: 0.109242 | I110: 0.11142684 | J110: 0.1136553768 | K110: 0.1159284843 | L110: 0.118247054 | M110: 0.1206119951 | N110: 0.123024235 | O110: 0.1254847197 | P110: 0.1279944141 | Q110: 0.1305543024 | R110: 0.1331653884 | S110: 0.1358286962 | T110: 0.1385452701 | U110: 0.1413161755 | V110: 0.144142499 | W110: 0.147025349 | X110: 0.149965856 | Y110: 0.1529651731 | Z110: 0.1560244766 | AA110: 0.1591449661 | AB110: 0.1623278654 | AC110: 0.1655744227 | AD110: 0.1688859112
B111: May | C111: 0.105 | D111: $/kWh | F111: 0.105 | G111: =F111*(1+EnergyEscalation) -> 0.1071 | H111: 0.109242 | I111: 0.11142684 | J111: 0.1136553768 | K111: 0.1159284843 | L111: 0.118247054 | M111: 0.1206119951 | N111: 0.123024235 | O111: 0.1254847197 | P111: 0.1279944141 | Q111: 0.1305543024 | R111: 0.1331653884 | S111: 0.1358286962 | T111: 0.1385452701 | U111: 0.1413161755 | V111: 0.144142499 | W111: 0.147025349 | X111: 0.149965856 | Y111: 0.1529651731 | Z111: 0.1560244766 | AA111: 0.1591449661 | AB111: 0.1623278654 | AC111: 0.1655744227 | AD111: 0.1688859112
B112: June | C112: 0.105 | D112: $/kWh | F112: 0.105 | G112: =F112*(1+EnergyEscalation) -> 0.1071 | H112: 0.109242 | I112: 0.11142684 | J112: 0.1136553768 | K112: 0.1159284843 | L112: 0.118247054 | M112: 0.1206119951 | N112: 0.123024235 | O112: 0.1254847197 | P112: 0.1279944141 | Q112: 0.1305543024 | R112: 0.1331653884 | S112: 0.1358286962 | T112: 0.1385452701 | U112: 0.1413161755 | V112: 0.144142499 | W112: 0.147025349 | X112: 0.149965856 | Y112: 0.1529651731 | Z112: 0.1560244766 | AA112: 0.1591449661 | AB112: 0.1623278654 | AC112: 0.1655744227 | AD112: 0.1688859112
B113: July | C113: 0.105 | D113: $/kWh | F113: 0.105 | G113: =F113*(1+EnergyEscalation) -> 0.1071 | H113: 0.109242 | I113: 0.11142684 | J113: 0.1136553768 | K113: 0.1159284843 | L113: 0.118247054 | M113: 0.1206119951 | N113: 0.123024235 | O113: 0.1254847197 | P113: 0.1279944141 | Q113: 0.1305543024 | R113: 0.1331653884 | S113: 0.1358286962 | T113: 0.1385452701 | U113: 0.1413161755 | V113: 0.144142499 | W113: 0.147025349 | X113: 0.149965856 | Y113: 0.1529651731 | Z113: 0.1560244766 | AA113: 0.1591449661 | AB113: 0.1623278654 | AC113: 0.1655744227 | AD113: 0.1688859112
B114: August | C114: 0.105 | D114: $/kWh | F114: 0.105 | G114: =F114*(1+EnergyEscalation) -> 0.1071 | H114: 0.109242 | I114: 0.11142684 | J114: 0.1136553768 | K114: 0.1159284843 | L114: 0.118247054 | M114: 0.1206119951 | N114: 0.123024235 | O114: 0.1254847197 | P114: 0.1279944141 | Q114: 0.1305543024 | R114: 0.1331653884 | S114: 0.1358286962 | T114: 0.1385452701 | U114: 0.1413161755 | V114: 0.144142499 | W114: 0.147025349 | X114: 0.149965856 | Y114: 0.1529651731 | Z114: 0.1560244766 | AA114: 0.1591449661 | AB114: 0.1623278654 | AC114: 0.1655744227 | AD114: 0.1688859112
B115: September | C115: 0.105 | D115: $/kWh | F115: 0.105 | G115: =F115*(1+EnergyEscalation) -> 0.1071 | H115: 0.109242 | I115: 0.11142684 | J115: 0.1136553768 | K115: 0.1159284843 | L115: 0.118247054 | M115: 0.1206119951 | N115: 0.123024235 | O115: 0.1254847197 | P115: 0.1279944141 | Q115: 0.1305543024 | R115: 0.1331653884 | S115: 0.1358286962 | T115: 0.1385452701 | U115: 0.1413161755 | V115: 0.144142499 | W115: 0.147025349 | X115: 0.149965856 | Y115: 0.1529651731 | Z115: 0.1560244766 | AA115: 0.1591449661 | AB115: 0.1623278654 | AC115: 0.1655744227 | AD115: 0.1688859112
B116: October | C116: 0.105 | D116: $/kWh | F116: 0.105 | G116: =F116*(1+EnergyEscalation) -> 0.1071 | H116: 0.109242 | I116: 0.11142684 | J116: 0.1136553768 | K116: 0.1159284843 | L116: 0.118247054 | M116: 0.1206119951 | N116: 0.123024235 | O116: 0.1254847197 | P116: 0.1279944141 | Q116: 0.1305543024 | R116: 0.1331653884 | S116: 0.1358286962 | T116: 0.1385452701 | U116: 0.1413161755 | V116: 0.144142499 | W116: 0.147025349 | X116: 0.149965856 | Y116: 0.1529651731 | Z116: 0.1560244766 | AA116: 0.1591449661 | AB116: 0.1623278654 | AC116: 0.1655744227 | AD116: 0.1688859112
B117: November | C117: 0.105 | D117: $/kWh | F117: 0.105 | G117: =F117*(1+EnergyEscalation) -> 0.1071 | H117: 0.109242 | I117: 0.11142684 | J117: 0.1136553768 | K117: 0.1159284843 | L117: 0.118247054 | M117: 0.1206119951 | N117: 0.123024235 | O117: 0.1254847197 | P117: 0.1279944141 | Q117: 0.1305543024 | R117: 0.1331653884 | S117: 0.1358286962 | T117: 0.1385452701 | U117: 0.1413161755 | V117: 0.144142499 | W117: 0.147025349 | X117: 0.149965856 | Y117: 0.1529651731 | Z117: 0.1560244766 | AA117: 0.1591449661 | AB117: 0.1623278654 | AC117: 0.1655744227 | AD117: 0.1688859112
B118: December | C118: 0.105 | D118: $/kWh | F118: 0.105 | G118: =F118*(1+EnergyEscalation) -> 0.1071 | H118: 0.109242 | I118: 0.11142684 | J118: 0.1136553768 | K118: 0.1159284843 | L118: 0.118247054 | M118: 0.1206119951 | N118: 0.123024235 | O118: 0.1254847197 | P118: 0.1279944141 | Q118: 0.1305543024 | R118: 0.1331653884 | S118: 0.1358286962 | T118: 0.1385452701 | U118: 0.1413161755 | V118: 0.144142499 | W118: 0.147025349 | X118: 0.149965856 | Y118: 0.1529651731 | Z118: 0.1560244766 | AA118: 0.1591449661 | AB118: 0.1623278654 | AC118: 0.1655744227 | AD118: 0.1688859112
B120: Customer Electricity Rate - Load 2
B121: Month | C121: Rate ($/kWh)
B122: January | C122: =CustomerRate2 -> 0.105 | D122: $/kWh | F122: =C122 -> 0.105 | G122: =F122*(1+EnergyEscalation) -> 0.1071 | H122: 0.109242 | I122: 0.11142684 | J122: 0.1136553768 | K122: 0.1159284843 | L122: 0.118247054 | M122: 0.1206119951 | N122: 0.123024235 | O122: 0.1254847197 | P122: 0.1279944141 | Q122: 0.1305543024 | R122: 0.1331653884 | S122: 0.1358286962 | T122: 0.1385452701 | U122: 0.1413161755 | V122: 0.144142499 | W122: 0.147025349 | X122: 0.149965856 | Y122: 0.1529651731 | Z122: 0.1560244766 | AA122: 0.1591449661 | AB122: 0.1623278654 | AC122: 0.1655744227 | AD122: 0.1688859112
B123: February | C123: 0.105 | D123: $/kWh | F123: 0.105 | G123: =F123*(1+EnergyEscalation) -> 0.1071 | H123: 0.109242 | I123: 0.11142684 | J123: 0.1136553768 | K123: 0.1159284843 | L123: 0.118247054 | M123: 0.1206119951 | N123: 0.123024235 | O123: 0.1254847197 | P123: 0.1279944141 | Q123: 0.1305543024 | R123: 0.1331653884 | S123: 0.1358286962 | T123: 0.1385452701 | U123: 0.1413161755 | V123: 0.144142499 | W123: 0.147025349 | X123: 0.149965856 | Y123: 0.1529651731 | Z123: 0.1560244766 | AA123: 0.1591449661 | AB123: 0.1623278654 | AC123: 0.1655744227 | AD123: 0.1688859112
B124: March | C124: 0.105 | D124: $/kWh | F124: 0.105 | G124: =F124*(1+EnergyEscalation) -> 0.1071 | H124: 0.109242 | I124: 0.11142684 | J124: 0.1136553768 | K124: 0.1159284843 | L124: 0.118247054 | M124: 0.1206119951 | N124: 0.123024235 | O124: 0.1254847197 | P124: 0.1279944141 | Q124: 0.1305543024 | R124: 0.1331653884 | S124: 0.1358286962 | T124: 0.1385452701 | U124: 0.1413161755 | V124: 0.144142499 | W124: 0.147025349 | X124: 0.149965856 | Y124: 0.1529651731 | Z124: 0.1560244766 | AA124: 0.1591449661 | AB124: 0.1623278654 | AC124: 0.1655744227 | AD124: 0.1688859112
B125: April | C125: 0.105 | D125: $/kWh | F125: 0.105 | G125: =F125*(1+EnergyEscalation) -> 0.1071 | H125: 0.109242 | I125: 0.11142684 | J125: 0.1136553768 | K125: 0.1159284843 | L125: 0.118247054 | M125: 0.1206119951 | N125: 0.123024235 | O125: 0.1254847197 | P125: 0.1279944141 | Q125: 0.1305543024 | R125: 0.1331653884 | S125: 0.1358286962 | T125: 0.1385452701 | U125: 0.1413161755 | V125: 0.144142499 | W125: 0.147025349 | X125: 0.149965856 | Y125: 0.1529651731 | Z125: 0.1560244766 | AA125: 0.1591449661 | AB125: 0.1623278654 | AC125: 0.1655744227 | AD125: 0.1688859112
B126: May | C126: 0.105 | D126: $/kWh | F126: 0.105 | G126: =F126*(1+EnergyEscalation) -> 0.1071 | H126: 0.109242 | I126: 0.11142684 | J126: 0.1136553768 | K126: 0.1159284843 | L126: 0.118247054 | M126: 0.1206119951 | N126: 0.123024235 | O126: 0.1254847197 | P126: 0.1279944141 | Q126: 0.1305543024 | R126: 0.1331653884 | S126: 0.1358286962 | T126: 0.1385452701 | U126: 0.1413161755 | V126: 0.144142499 | W126: 0.147025349 | X126: 0.149965856 | Y126: 0.1529651731 | Z126: 0.1560244766 | AA126: 0.1591449661 | AB126: 0.1623278654 | AC126: 0.1655744227 | AD126: 0.1688859112
B127: June | C127: 0.105 | D127: $/kWh | F127: 0.105 | G127: =F127*(1+EnergyEscalation) -> 0.1071 | H127: 0.109242 | I127: 0.11142684 | J127: 0.1136553768 | K127: 0.1159284843 | L127: 0.118247054 | M127: 0.1206119951 | N127: 0.123024235 | O127: 0.1254847197 | P127: 0.1279944141 | Q127: 0.1305543024 | R127: 0.1331653884 | S127: 0.1358286962 | T127: 0.1385452701 | U127: 0.1413161755 | V127: 0.144142499 | W127: 0.147025349 | X127: 0.149965856 | Y127: 0.1529651731 | Z127: 0.1560244766 | AA127: 0.1591449661 | AB127: 0.1623278654 | AC127: 0.1655744227 | AD127: 0.1688859112
B128: July | C128: 0.105 | D128: $/kWh | F128: 0.105 | G128: =F128*(1+EnergyEscalation) -> 0.1071 | H128: 0.109242 | I128: 0.11142684 | J128: 0.1136553768 | K128: 0.1159284843 | L128: 0.118247054 | M128: 0.1206119951 | N128: 0.123024235 | O128: 0.1254847197 | P128: 0.1279944141 | Q128: 0.1305543024 | R128: 0.1331653884 | S128: 0.1358286962 | T128: 0.1385452701 | U128: 0.1413161755 | V128: 0.144142499 | W128: 0.147025349 | X128: 0.149965856 | Y128: 0.1529651731 | Z128: 0.1560244766 | AA128: 0.1591449661 | AB128: 0.1623278654 | AC128: 0.1655744227 | AD128: 0.1688859112
B129: August | C129: 0.105 | D129: $/kWh | F129: 0.105 | G129: =F129*(1+EnergyEscalation) -> 0.1071 | H129: 0.109242 | I129: 0.11142684 | J129: 0.1136553768 | K129: 0.1159284843 | L129: 0.118247054 | M129: 0.1206119951 | N129: 0.123024235 | O129: 0.1254847197 | P129: 0.1279944141 | Q129: 0.1305543024 | R129: 0.1331653884 | S129: 0.1358286962 | T129: 0.1385452701 | U129: 0.1413161755 | V129: 0.144142499 | W129: 0.147025349 | X129: 0.149965856 | Y129: 0.1529651731 | Z129: 0.1560244766 | AA129: 0.1591449661 | AB129: 0.1623278654 | AC129: 0.1655744227 | AD129: 0.1688859112
B130: September | C130: 0.105 | D130: $/kWh | F130: 0.105 | G130: =F130*(1+EnergyEscalation) -> 0.1071 | H130: 0.109242 | I130: 0.11142684 | J130: 0.1136553768 | K130: 0.1159284843 | L130: 0.118247054 | M130: 0.1206119951 | N130: 0.123024235 | O130: 0.1254847197 | P130: 0.1279944141 | Q130: 0.1305543024 | R130: 0.1331653884 | S130: 0.1358286962 | T130: 0.1385452701 | U130: 0.1413161755 | V130: 0.144142499 | W130: 0.147025349 | X130: 0.149965856 | Y130: 0.1529651731 | Z130: 0.1560244766 | AA130: 0.1591449661 | AB130: 0.1623278654 | AC130: 0.1655744227 | AD130: 0.1688859112
B131: October | C131: 0.105 | D131: $/kWh | F131: 0.105 | G131: =F131*(1+EnergyEscalation) -> 0.1071 | H131: 0.109242 | I131: 0.11142684 | J131: 0.1136553768 | K131: 0.1159284843 | L131: 0.118247054 | M131: 0.1206119951 | N131: 0.123024235 | O131: 0.1254847197 | P131: 0.1279944141 | Q131: 0.1305543024 | R131: 0.1331653884 | S131: 0.1358286962 | T131: 0.1385452701 | U131: 0.1413161755 | V131: 0.144142499 | W131: 0.147025349 | X131: 0.149965856 | Y131: 0.1529651731 | Z131: 0.1560244766 | AA131: 0.1591449661 | AB131: 0.1623278654 | AC131: 0.1655744227 | AD131: 0.1688859112
B132: November | C132: 0.105 | D132: $/kWh | F132: 0.105 | G132: =F132*(1+EnergyEscalation) -> 0.1071 | H132: 0.109242 | I132: 0.11142684 | J132: 0.1136553768 | K132: 0.1159284843 | L132: 0.118247054 | M132: 0.1206119951 | N132: 0.123024235 | O132: 0.1254847197 | P132: 0.1279944141 | Q132: 0.1305543024 | R132: 0.1331653884 | S132: 0.1358286962 | T132: 0.1385452701 | U132: 0.1413161755 | V132: 0.144142499 | W132: 0.147025349 | X132: 0.149965856 | Y132: 0.1529651731 | Z132: 0.1560244766 | AA132: 0.1591449661 | AB132: 0.1623278654 | AC132: 0.1655744227 | AD132: 0.1688859112
B133: December | C133: 0.105 | D133: $/kWh | F133: 0.105 | G133: =F133*(1+EnergyEscalation) -> 0.1071 | H133: 0.109242 | I133: 0.11142684 | J133: 0.1136553768 | K133: 0.1159284843 | L133: 0.118247054 | M133: 0.1206119951 | N133: 0.123024235 | O133: 0.1254847197 | P133: 0.1279944141 | Q133: 0.1305543024 | R133: 0.1331653884 | S133: 0.1358286962 | T133: 0.1385452701 | U133: 0.1413161755 | V133: 0.144142499 | W133: 0.147025349 | X133: 0.149965856 | Y133: 0.1529651731 | Z133: 0.1560244766 | AA133: 0.1591449661 | AB133: 0.1623278654 | AC133: 0.1655744227 | AD133: 0.1688859112
B135: Net Metering Revenue
B137: Net Metering Revenue - Load 1
B138: Month | C138: Generation (kWh)
B139: January | C139: =C90 -> 349.1069031 | D139: $ per mo. | F139: =F90*PercentLoad1*F107 -> 36.65622482 | G139: 37.20240257 | H139: 37.75576494 | I139: 38.31638085 | J139: 38.88431908 | K139: 39.45964829 | L139: 40.04243694 | M139: 40.63275328 | N139: 41.2306653 | O139: 41.8362407 | P139: 42.44954684 | Q139: 43.07065074 | R139: 43.69961897 | S139: 44.33651767 | T139: 44.98141247 | U139: 45.63436846 | V139: 46.29545012 | W139: 46.96472131 | X139: 47.64224515 | Y139: 48.32808407 | Z139: 49.02229964 | AA139: 49.7249526 | AB139: 50.43610276 | AC139: 51.15580895 | AD139: 51.88412894
B140: February | C140: 435.9643555 | D140: $ per mo. | F140: =F91*PercentLoad1*F108 -> 45.77625732 | G140: 46.45832356 | H140: 47.14936194 | I140: 47.84945853 | J140: 48.55869923 | K140: 49.27716978 | L140: 50.00495567 | M140: 50.74214213 | N140: 51.48881407 | O140: 52.24505602 | P140: 53.01095213 | Q140: 53.78658607 | R140: 54.57204097 | S140: 55.36739944 | T140: 56.17274343 | U140: 56.98815423 | V140: 57.81371235 | W140: 58.64949754 | X140: 59.49558865 | Y140: 60.35206361 | Z140: 61.21899933 | AA140: 62.09647166 | AB140: 62.98455527 | AC140: 63.88332365 | AD140: 64.79284893
B141: March | C141: 619.3152466 | D141: $ per mo. | F141: =F92*PercentLoad1*F109 -> 65.02810089 | G141: 65.99701959 | H141: 66.97868381 | I141: 67.97321578 | J141: 68.98073755 | K141: 70.00137092 | L141: 71.03523732 | M141: 72.08245783 | N141: 73.14315306 | O141: 74.21744312 | P141: 75.30544752 | Q141: 76.40728512 | R141: 77.52307405 | S141: 78.65293162 | T141: 79.79697426 | U141: 80.95531743 | V141: 82.12807555 | W141: 83.31536186 | X141: 84.51728839 | Y141: 85.73396584 | Z141: 86.96550347 | AA141: 88.21200902 | AB141: 89.47358859 | AC141: 90.75034654 | AD141: 92.04238537
B142: April | C142: 749.0038452 | D142: $ per mo. | F142: =F93*PercentLoad1*F110 -> 78.64540375 | G142: 79.81722026 | H142: 81.00445128 | I142: 82.20724465 | J142: 83.42574797 | K142: 84.66010852 | L142: 85.9104732 | M142: 87.17698843 | N142: 88.45980007 | O142: 89.75905338 | P142: 91.07489291 | Q142: 92.4074624 | R142: 93.7569047 | S142: 95.12336172 | T142: 96.50697425 | U142: 97.90788194 | V142: 99.32622315 | W142: 100.7621349 | X142: 102.2157525 | Y142: 103.6872101 | Z142: 105.1766396 | AA142: 106.6841714 | AB142: 108.2099339 | AC142: 109.7540532 | AD142: 111.3166533
B143: May | C143: 889.4098511 | D143: $ per mo. | F143: =F94*PercentLoad1*F111 -> 93.38803436 | G143: 94.77951607 | H143: 96.18930184 | I143: 97.61756723 | J143: 99.06448752 | K143: 100.5302376 | L143: 102.0149919 | M143: 103.5189242 | N143: 105.0422079 | O143: 106.5850153 | P143: 108.1475181 | Q143: 109.7298871 | R143: 111.3322918 | S143: 112.9549007 | T143: 114.5978811 | U143: 116.2613987 | V143: 117.9456179 | W143: 119.6507013 | X143: 121.3768098 | Y143: 123.1241023 | Z143: 124.8927358 | AA143: 126.682865 | AB143: 128.4946423 | AC143: 130.3282176 | AD143: 132.1837379
B144: June | C144: 880.8735352 | D144: $ per mo. | F144: =F95*PercentLoad1*F112 -> 92.49172119 | G144: 93.86984784 | H144: 95.26610286 | I144: 96.68066015 | J144: 98.11369328 | K144: 99.56537548 | L144: 101.0358795 | M144: 102.5253775 | N144: 104.0340411 | O144: 105.5620411 | P144: 107.1095474 | Q144: 108.6767292 | R144: 110.2637545 | S144: 111.87079 | T144: 113.4980015 | U144: 115.1455532 | V144: 116.8136077 | W144: 118.5023261 | X144: 120.2118679 | Y144: 121.9423904 | Z144: 123.694049 | AA144: 125.4669971 | AB144: 127.2613854 | AC144: 129.0773625 | AD144: 130.9150741
B145: July | C145: 908.548584 | D145: $ per mo. | F145: =F96*PercentLoad1*F113 -> 95.39760132 | G145: 96.81902558 | H145: 98.25914777 | I145: 99.71814723 | J145: 101.196203 | K145: 102.6934938 | L145: 104.2101977 | M145: 105.7464924 | N145: 107.3025547 | O145: 108.878561 | P145: 110.4746865 | Q145: 112.0911056 | R145: 113.7279916 | S145: 115.3855166 | T145: 117.0638514 | U145: 118.7631653 | V145: 120.4836263 | W145: 122.2254005 | X145: 123.9886522 | Y145: 125.7735437 | Z145: 127.5802355 | AA145: 129.4088856 | AB145: 131.2596495 | AC145: 133.1326805 | AD145: 135.0281288
B146: August | C146: 762.1619873 | D146: $ per mo. | F146: =F97*PercentLoad1*F114 -> 80.02700867 | G146: 81.2194111 | H146: 82.42749882 | I146: 83.65142229 | J146: 84.89133169 | K146: 86.14737691 | L146: 87.4197074 | M146: 88.70847215 | N146: 90.01381962 | O146: 91.3358976 | P146: 92.67485316 | Q146: 94.03083259 | R146: 95.40398126 | S146: 96.79444354 | T146: 98.20236272 | U146: 99.62788089 | V146: 101.0711388 | W146: 102.532276 | X146: 104.0114301 | Y146: 105.5087375 | Z146: 107.0243326 | AA146: 108.5583481 | AB146: 110.1109144 | AC146: 111.68216 | AD146: 113.2722111
B147: September | C147: 632.8031006 | D147: $ per mo. | F147: =F98*PercentLoad1*F115 -> 66.44432556 | G147: 67.43434601 | H147: 68.43738955 | I147: 69.45358109 | J147: 70.48304534 | K147: 71.52590673 | L147: 72.58228935 | M147: 73.65231691 | N147: 74.73611266 | O147: 75.83379932 | P147: 76.94549899 | Q147: 78.07133314 | R147: 79.21142245 | S147: 80.3658868 | T147: 81.53484515 | U147: 82.71841548 | V147: 83.91671469 | W147: 85.1298585 | X147: 86.35796138 | Y147: 87.60113643 | Z147: 88.85949529 | AA147: 90.13314806 | AB147: 91.42220314 | AC147: 92.72676716 | AD147: 94.04694486
B148: October | C148: 520.6783447 | D148: $ per mo. | F148: =F99*PercentLoad1*F116 -> 54.6712262 | G148: 55.48582747 | H148: 56.3111443 | I148: 57.14727947 | J148: 57.99433559 | K148: 58.85241505 | L148: 59.72161995 | M148: 60.60205208 | N148: 61.49381284 | O148: 62.39700322 | P148: 63.31172368 | Q148: 64.23807417 | R148: 65.17615398 | S148: 66.12606176 | T148: 67.08789538 | U148: 68.06175193 | V148: 69.04772758 | W148: 70.04591755 | X148: 71.05641604 | Y148: 72.07931609 | Z148: 73.11470958 | AA148: 74.16268709 | AB148: 75.22333781 | AC148: 76.29674948 | AD148: 77.38300829
B149: November | C149: 323.7162781 | D149: $ per mo. | F149: =F100*PercentLoad1*F117 -> 33.9902092 | G149: 34.49666332 | H149: 35.00977951 | I149: 35.52962169 | J149: 36.05625365 | K149: 36.58973904 | L149: 37.13014134 | M149: 37.67752383 | N149: 38.23194957 | O149: 38.79348133 | P149: 39.36218158 | Q149: 39.93811245 | R149: 40.52133568 | S149: 41.11191259 | T149: 41.70990405 | U149: 42.31537039 | V149: 42.92837144 | W149: 43.54896637 | X149: 44.17721375 | Y149: 44.81317145 | Z149: 45.45689656 | AA149: 46.10844541 | AB149: 46.76787346 | AC149: 47.43523525 | AD149: 48.11058436
B150: December | C150: 270.3334045 | D150: $ per mo. | F150: =F101*PercentLoad1*F118 -> 28.38500748 | G150: 28.80794409 | H150: 29.23644416 | I150: 29.67056106 | J150: 30.11034806 | K150: 30.55585831 | L150: 31.00714483 | M150: 31.46426047 | N150: 31.92725788 | O150: 32.39618948 | P150: 32.87110744 | Q150: 33.35206364 | R150: 33.83910965 | S150: 34.33229668 | T150: 34.83167554 | U150: 35.33729663 | V150: 35.8492099 | W150: 36.36746479 | X150: 36.89211018 | Y150: 37.4231944 | Z150: 37.96076515 | AA150: 38.50486945 | AB150: 39.05555362 | AC150: 39.6128632 | AD150: 40.17684295
B151: Annual | C151: =SUM(C139:C150) -> 7341.915436 | D151: $ per yr. | F151: =SUM(F139:F150) -> 770.9011208 | G151: 782.3875475 | H151: 794.0250708 | I151: 805.81514 | J151: 817.759202 | K151: 829.8587004 | L151: 842.115075 | M151: 854.5297612 | N151: 867.1041888 | O151: 879.8397815 | P151: 892.7379563 | Q151: 905.8001222 | R151: 919.0276796 | S151: 932.4220192 | T151: 945.9845213 | U151: 959.7165546 | V151: 973.6194755 | W151: 987.6946266 | X151: 1001.943336 | Y151: 1016.366916 | Z151: 1030.966662 | AA151: 1045.74385 | AB151: 1060.69974 | AC151: 1075.835568 | AD151: 1091.152549
B153: Net Metering Revenue - Load 2
B154: Month | C154: Generation (kWh)
B155: January | C155: =C90 -> 349.1069031 | D155: $ per mo. | F155: =F90*PercentLoad2*F122 -> 0 | G155: 0 | H155: 0 | I155: 0 | J155: 0 | K155: 0 | L155: 0 | M155: 0 | N155: 0 | O155: 0 | P155: 0 | Q155: 0 | R155: 0 | S155: 0 | T155: 0 | U155: 0 | V155: 0 | W155: 0 | X155: 0 | Y155: 0 | Z155: 0 | AA155: 0 | AB155: 0 | AC155: 0 | AD155: 0
B156: February | C156: 435.9643555 | D156: $ per mo. | F156: =F91*PercentLoad2*F123 -> 0 | G156: 0 | H156: 0 | I156: 0 | J156: 0 | K156: 0 | L156: 0 | M156: 0 | N156: 0 | O156: 0 | P156: 0 | Q156: 0 | R156: 0 | S156: 0 | T156: 0 | U156: 0 | V156: 0 | W156: 0 | X156: 0 | Y156: 0 | Z156: 0 | AA156: 0 | AB156: 0 | AC156: 0 | AD156: 0
B157: March | C157: 619.3152466 | D157: $ per mo. | F157: =F92*PercentLoad2*F124 -> 0 | G157: 0 | H157: 0 | I157: 0 | J157: 0 | K157: 0 | L157: 0 | M157: 0 | N157: 0 | O157: 0 | P157: 0 | Q157: 0 | R157: 0 | S157: 0 | T157: 0 | U157: 0 | V157: 0 | W157: 0 | X157: 0 | Y157: 0 | Z157: 0 | AA157: 0 | AB157: 0 | AC157: 0 | AD157: 0
B158: April | C158: 749.0038452 | D158: $ per mo. | F158: =F93*PercentLoad2*F125 -> 0 | G158: 0 | H158: 0 | I158: 0 | J158: 0 | K158: 0 | L158: 0 | M158: 0 | N158: 0 | O158: 0 | P158: 0 | Q158: 0 | R158: 0 | S158: 0 | T158: 0 | U158: 0 | V158: 0 | W158: 0 | X158: 0 | Y158: 0 | Z158: 0 | AA158: 0 | AB158: 0 | AC158: 0 | AD158: 0
B159: May | C159: 889.4098511 | D159: $ per mo. | F159: =F94*PercentLoad2*F126 -> 0 | G159: 0 | H159: 0 | I159: 0 | J159: 0 | K159: 0 | L159: 0 | M159: 0 | N159: 0 | O159: 0 | P159: 0 | Q159: 0 | R159: 0 | S159: 0 | T159: 0 | U159: 0 | V159: 0 | W159: 0 | X159: 0 | Y159: 0 | Z159: 0 | AA159: 0 | AB159: 0 | AC159: 0 | AD159: 0
B160: June | C160: 880.8735352 | D160: $ per mo. | F160: =F95*PercentLoad2*F127 -> 0 | G160: 0 | H160: 0 | I160: 0 | J160: 0 | K160: 0 | L160: 0 | M160: 0 | N160: 0 | O160: 0 | P160: 0 | Q160: 0 | R160: 0 | S160: 0 | T160: 0 | U160: 0 | V160: 0 | W160: 0 | X160: 0 | Y160: 0 | Z160: 0 | AA160: 0 | AB160: 0 | AC160: 0 | AD160: 0
B161: July | C161: 908.548584 | D161: $ per mo. | F161: =F96*PercentLoad2*F128 -> 0 | G161: 0 | H161: 0 | I161: 0 | J161: 0 | K161: 0 | L161: 0 | M161: 0 | N161: 0 | O161: 0 | P161: 0 | Q161: 0 | R161: 0 | S161: 0 | T161: 0 | U161: 0 | V161: 0 | W161: 0 | X161: 0 | Y161: 0 | Z161: 0 | AA161: 0 | AB161: 0 | AC161: 0 | AD161: 0
B162: August | C162: 762.1619873 | D162: $ per mo. | F162: =F97*PercentLoad2*F129 -> 0 | G162: 0 | H162: 0 | I162: 0 | J162: 0 | K162: 0 | L162: 0 | M162: 0 | N162: 0 | O162: 0 | P162: 0 | Q162: 0 | R162: 0 | S162: 0 | T162: 0 | U162: 0 | V162: 0 | W162: 0 | X162: 0 | Y162: 0 | Z162: 0 | AA162: 0 | AB162: 0 | AC162: 0 | AD162: 0
B163: September | C163: 632.8031006 | D163: $ per mo. | F163: =F98*PercentLoad2*F130 -> 0 | G163: 0 | H163: 0 | I163: 0 | J163: 0 | K163: 0 | L163: 0 | M163: 0 | N163: 0 | O163: 0 | P163: 0 | Q163: 0 | R163: 0 | S163: 0 | T163: 0 | U163: 0 | V163: 0 | W163: 0 | X163: 0 | Y163: 0 | Z163: 0 | AA163: 0 | AB163: 0 | AC163: 0 | AD163: 0
B164: October | C164: 520.6783447 | D164: $ per mo. | F164: =F99*PercentLoad2*F131 -> 0 | G164: 0 | H164: 0 | I164: 0 | J164: 0 | K164: 0 | L164: 0 | M164: 0 | N164: 0 | O164: 0 | P164: 0 | Q164: 0 | R164: 0 | S164: 0 | T164: 0 | U164: 0 | V164: 0 | W164: 0 | X164: 0 | Y164: 0 | Z164: 0 | AA164: 0 | AB164: 0 | AC164: 0 | AD164: 0
B165: November | C165: 323.7162781 | D165: $ per mo. | F165: =F100*PercentLoad2*F132 -> 0 | G165: 0 | H165: 0 | I165: 0 | J165: 0 | K165: 0 | L165: 0 | M165: 0 | N165: 0 | O165: 0 | P165: 0 | Q165: 0 | R165: 0 | S165: 0 | T165: 0 | U165: 0 | V165: 0 | W165: 0 | X165: 0 | Y165: 0 | Z165: 0 | AA165: 0 | AB165: 0 | AC165: 0 | AD165: 0
B166: December | C166: 270.3334045 | D166: $ per mo. | F166: =F101*PercentLoad2*F133 -> 0 | G166: 0 | H166: 0 | I166: 0 | J166: 0 | K166: 0 | L166: 0 | M166: 0 | N166: 0 | O166: 0 | P166: 0 | Q166: 0 | R166: 0 | S166: 0 | T166: 0 | U166: 0 | V166: 0 | W166: 0 | X166: 0 | Y166: 0 | Z166: 0 | AA166: 0 | AB166: 0 | AC166: 0 | AD166: 0
B167: Annual | C167: =SUM(C155:C166) -> 7341.915436 | D167: $ per yr. | F167: =SUM(F155:F166) -> 0 | G167: 0 | H167: 0 | I167: 0 | J167: 0 | K167: 0 | L167: 0 | M167: 0 | N167: 0 | O167: 0 | P167: 0 | Q167: 0 | R167: 0 | S167: 0 | T167: 0 | U167: 0 | V167: 0 | W167: 0 | X167: 0 | Y167: 0 | Z167: 0 | AA167: 0 | AB167: 0 | AC167: 0 | AD167: 0
B170: Energy Offset:
B171: Electricity from Solar | C171: =D171/D173 -> 0.9177394295 | D171: =F102 -> 7341.915436
B172: Electricity from Utility | C172: =D172/D173 -> 0.08226057053 | D172: =IF(D171>D173,0,(D173-D171)) -> 658.0845642
B173: Annual Load: | C173: =Inputs!$E$9 -> 8000 | D173: =Inputs!$E$9 -> 8000

Sheet BTM PPA
B1: Behind the Meter: Power Purchase Areement
B2: The system is built, owned, and maintained by a solar developer and installed behind the host's/customer's meter. The solar developer sells the energy produced by the system to the customer at an agreed rate. That rate can be a fixed cost per kilowatt hour purchased or it can be a guarantee of savings against their electricity rate. For example: • Fixed-Rate: The customer pays $0.10 per kilowatt hour for electricity from their supplier, and a Fixed-Rate of $0.08 per kWh from the solar developer. The customer saves 20% initially. But, as the cost of electricity increases from their supplier over time, their savings grows. • Rate-Tied Percent Savings: The customer pays for energy produced by the system at a price per kilowatt hour tied to their exiting electricity rate. If their retail rate is, for example $0.10 and the savings guarantee is 25%, they would pay $0.075 per kilowatt hour. If their supplier rate increases, their PPA rate per kWh increases with it. But they always save 25%.
B5: Summary Financial Metrics
D6: System Owner | E6: PPA Customer
B7: Key Performace Indicator
B8: 25-Year Costs: | C8: $ | D8: =AF52+AF58+AF62+AF69 -> -20508.91934 | E8: =AF32 -> -18467.23773
B9: 25-Year Revenues: | C9: $ | D9: =AF55+AF59+AF76+AF84+AF90 -> 29311.67373 | E9: =AF26 -> 23084.04716
B10: 25-Year Net Benefits: | C10: $ | D10: =D8+D9 -> 8802.75439 | E10: =E8+E9 -> 4616.809433
B11: 25-Year Net Present Value (NPV): | C11: $ | D11: =E93+NPV('Detailed Inputs'!D20,F93:AD93) -> 3285.889981 | E11: =F93+NPV('Detailed Inputs'!D21,G93:AE93) -> 18193.75831
B12: Return on Investment (ROI): | C12: % | D12: =D10/(-D8) -> 0.4292159057 | E12: =E10/(-E8) -> 0.25
B13: Internal Rate of Return (IRR) | C13: $ | D13: =IRR(E98:AD98) -> 0.05812321841 | E13: NA
B14: Upfront Costs | C14: $ | D14: =E52 -> -17340 | E14: =F52 -> 0
B15: Average Annual Revenue | C15: $ | D15: =AF93/25 -> 352.1101756 | E15: =AF36/25 -> 184.6723773
B16: Payback Period: | C16: years | D16: =E95 -> 11.98326166 | E16: =E37 -> 0
B19: Business Case - PPA Customer
B21: Year | E21: 0 | F21: 1 | G21: 2 | H21: 3 | I21: 4 | J21: 5 | K21: 6 | L21: 7 | M21: 8 | N21: 9 | O21: 10 | P21: 11 | Q21: 12 | R21: 13 | S21: 14 | T21: 15 | U21: 16 | V21: 17 | W21: 18 | X21: 19 | Y21: 20 | Z21: 21 | AA21: 22 | AB21: 23 | AC21: 24 | AD21: 25
B22: REVENUES
B23: Net Metering Revenue - Load 1 | C23: $ | D23: $ Annual | F23: =F232 -> 770.9011208 | G23: 782.3875475 | H23: 794.0250708 | I23: 805.81514 | J23: 817.759202 | K23: 829.8587004 | L23: 842.115075 | M23: 854.5297612 | N23: 867.1041888 | O23: 879.8397815 | P23: 892.7379563 | Q23: 905.8001222 | R23: 919.0276796 | S23: 932.4220192 | T23: 945.9845213 | U23: 959.7165546 | V23: 973.6194755 | W23: 987.6946266 | X23: 1001.943336 | Y23: 1016.366916 | Z23: 1030.966662 | AA23: 1045.74385 | AB23: 1060.69974 | AC23: 1075.835568 | AD23: 1091.152549 | AF23: =SUM(E23:AE23) -> 23084.04716
B24: Net Metering Revenue - Load 2 | C24: $ | D24: $ Annual | F24: =F248 -> 0 | G24: 0 | H24: 0 | I24: 0 | J24: 0 | K24: 0 | L24: 0 | M24: 0 | N24: 0 | O24: 0 | P24: 0 | Q24: 0 | R24: 0 | S24: 0 | T24: 0 | U24: 0 | V24: 0 | W24: 0 | X24: 0 | Y24: 0 | Z24: 0 | AA24: 0 | AB24: 0 | AC24: 0 | AD24: 0 | AF24: =SUM(E24:AE24) -> 0 | AH24: =AF23+AF24 -> 23084.04716
B25: Demand Charge Savings | C25: $ Manual | D25: Estimated | F25: 0 | G25: 0 | H25: 0 | I25: 0 | J25: 0 | K25: 0 | L25: 0 | M25: 0 | N25: 0 | O25: 0 | P25: 0 | Q25: 0 | R25: 0 | S25: 0 | T25: 0 | U25: 0 | V25: 0 | W25: 0 | X25: 0 | Y25: 0 | Z25: 0 | AA25: 0 | AB25: 0 | AC25: 0 | AD25: 0 | AF25: =SUM(E25:AE25) -> 0
B26: Total Revenue | F26: =SUM(F23:F25) -> 770.9011208 | G26: 782.3875475 | H26: 794.0250708 | I26: 805.81514 | J26: 817.759202 | K26: 829.8587004 | L26: 842.115075 | M26: 854.5297612 | N26: 867.1041888 | O26: 879.8397815 | P26: 892.7379563 | Q26: 905.8001222 | R26: 919.0276796 | S26: 932.4220192 | T26: 945.9845213 | U26: 959.7165546 | V26: 973.6194755 | W26: 987.6946266 | X26: 1001.943336 | Y26: 1016.366916 | Z26: 1030.966662 | AA26: 1045.74385 | AB26: 1060.69974 | AC26: 1075.835568 | AD26: 1091.152549 | AF26: =SUM(E26:AE26) -> 23084.04716
B28: Expenses
B29: PPA Payment | C29: ='Detailed Inputs'!H7 -> % Tied To Customer Rate | D29: $ Annual | F29: =IF($C$29="Fixed Rate PPA",-F197,-F213) -> -616.7208966 | G29: -625.910038 | H29: -635.2200566 | I29: -644.652112 | J29: -654.2073616 | K29: -663.8869603 | L29: -673.69206 | M29: -683.623809 | N29: -693.683351 | O29: -703.8718252 | P29: -714.1903651 | Q29: -724.6400978 | R29: -735.2221437 | S29: -745.9376153 | T29: -756.787617 | U29: -767.7732437 | V29: -778.8955804 | W29: -790.1557013 | X29: -801.5546688 | Y29: -813.0935327 | Z29: -824.7733293 | AA29: -836.5950804 | AB29: -848.5597921 | AC29: -860.6684543 | AD29: -872.9220391 | AF29: =SUM(E29:AE29) -> -18467.23773
B30: Site Lease Payments | C30: $ | D30: Fixed Annual | F30: =$E$51 -> 0 | G30: 0 | H30: 0 | I30: 0 | J30: 0 | K30: 0 | L30: 0 | M30: 0 | N30: 0 | O30: 0 | P30: 0 | Q30: 0 | R30: 0 | S30: 0 | T30: 0 | U30: 0 | V30: 0 | W30: 0 | X30: 0 | Y30: 0 | Z30: 0 | AA30: 0 | AB30: 0 | AC30: 0 | AD30: 0 | AF30: =SUM(E30:AE30) -> 0
B31: Demand Charge Savings | C31: $ Manual | D31: Estimated | F31: 0 | G31: 0 | H31: 0 | I31: 0 | J31: 0 | K31: 0 | L31: 0 | M31: 0 | N31: 0 | O31: 0 | P31: 0 | Q31: 0 | R31: 0 | S31: 0 | T31: 0 | U31: 0 | V31: 0 | W31: 0 | X31: 0 | Y31: 0 | Z31: 0 | AA31: 0 | AB31: 0 | AC31: 0 | AD31: 0 | AF31: =SUM(E31:AE31) -> 0
B32: Total Revenue | F32: =SUM(F29:F31) -> -616.7208966 | G32: -625.910038 | H32: -635.2200566 | I32: -644.652112 | J32: -654.2073616 | K32: -663.8869603 | L32: -673.69206 | M32: -683.623809 | N32: -693.683351 | O32: -703.8718252 | P32: -714.1903651 | Q32: -724.6400978 | R32: -735.2221437 | S32: -745.9376153 | T32: -756.787617 | U32: -767.7732437 | V32: -778.8955804 | W32: -790.1557013 | X32: -801.5546688 | Y32: -813.0935327 | Z32: -824.7733293 | AA32: -836.5950804 | AB32: -848.5597921 | AC32: -860.6684543 | AD32: -872.9220391 | AF32: =SUM(E32:AE32) -> -18467.23773
B34: CASHFLOW
B35: Net Benefits (Costs) | C35: $ | E35: =E26+E32 -> 0 | F35: 154.1802242 | G35: 156.4775095 | H35: 158.8050142 | I35: 161.163028 | J35: 163.5518404 | K35: 165.9717401 | L35: 168.423015 | M35: 170.9059522 | N35: 173.4208378 | O35: 175.9679563 | P35: 178.5475913 | Q35: 181.1600244 | R35: 183.8055359 | S35: 186.4844038 | T35: 189.1969043 | U35: 191.9433109 | V35: 194.7238951 | W35: 197.5389253 | X35: 200.3886672 | Y35: 203.2733832 | Z35: 206.1933323 | AA35: 209.1487701 | AB35: 212.139948 | AC35: 215.1671136 | AD35: 218.2305098 | AF35: =SUM(E35:AE35) -> 4616.809433
B36: Cumulative Cashflow | C36: $ | E36: =E35 -> 0 | F36: =E36+F35 -> 154.1802242 | G36: 310.6577336 | H36: 469.4627478 | I36: 630.6257758 | J36: 794.1776162 | K36: 960.1493563 | L36: 1128.572371 | M36: 1299.478324 | N36: 1472.899161 | O36: 1648.867118 | P36: 1827.414709 | Q36: 2008.574733 | R36: 2192.380269 | S36: 2378.864673 | T36: 2568.061577 | U36: 2760.004888 | V36: 2954.728783 | W36: 3152.267709 | X36: 3352.656376 | Y36: 3555.929759 | Z36: 3762.123091 | AA36: 3971.271861 | AB36: 4183.411809 | AC36: 4398.578923 | AD36: 4616.809433 | AF36: =AD36 -> 4616.809433
B37: Payback Calculation | D37: Years | E37: =SUM(F37:AD37) -> 0 | F37: =IF(F36<0,1,IF(AND(F36>0,E36<0),(-E36/(F36-E36)),0)) -> 0 | G37: 0 | H37: 0 | I37: 0 | J37: 0 | K37: 0 | L37: 0 | M37: 0 | N37: 0 | O37: 0 | P37: 0 | Q37: 0 | R37: 0 | S37: 0 | T37: 0 | U37: 0 | V37: 0 | W37: 0 | X37: 0 | Y37: 0 | Z37: 0 | AA37: 0 | AB37: 0 | AC37: 0 | AD37: 0 | AF37: =E37 -> 0
B39: Business Case - System Owner
B41: Year | E41: 0 | F41: 1 | G41: 2 | H41: 3 | I41: 4 | J41: 5 | K41: 6 | L41: 7 | M41: 8 | N41: 9 | O41: 10 | P41: 11 | Q41: 12 | R41: 13 | S41: 14 | T41: 15 | U41: 16 | V41: 17 | W41: 18 | X41: 19 | Y41: 20 | Z41: 21 | AA41: 22 | AB41: 23 | AC41: 24 | AD41: 25
B43: INSTALLATION COSTS
B44: Generation Equipment | C44: $ | D44: 0.4758194185 | E44: =-((systemsize*Costperwatt)*1000)*$D44 -> -8079.413726 | AF44: =SUM(E44:AE44) -> -8079.413726
B45: Balance of Plant | C45: $ | D45: 0.2362044723 | E45: =-((systemsize*Costperwatt)*1000)*$D45 -> -4010.75194 | AF45: -4010.75194
B46: Interconnection | C46: $ | D46: 0.06010307624 | E46: =-((systemsize*Costperwatt)*1000)*$D46 -> -1020.550235 | AF46: -1020.550235
B47: Development Costs & Fee | C47: $ | D47: 0.227873033 | E47: =-((systemsize*Costperwatt)*1000)*$D47 -> -3869.2841 | AF47: -3869.2841
B48: Site Preparation cost | C48: $/Installed watt | D48: 0.06 | E48: =-(systemsize*1000)*D48 -> -360 | AF48: -360
B49: Site Purchase Cost | C49: $ | D49: 0 | E49: =D49 -> 0 | AF49: 0
B50: Removal Cost | C50: $ | D50: 0 | E50: =D50 -> 0 | AF50: 0
B51: Site lease cost (based on per acre $=>) | C51: $/Acre/Yr | D51: 0 | E51: =-((systemsize*175)/43560)*D51 -> 0 | AF51: 0
B52: Total Installation Costs | E52: =SUM(E44:E51) -> -17340 | AF52: -17340
B54: CAPITAL COSTS
B55: Construction loan | C55: $ | E55: =-E52*ConstructionLoanAmount -> 0 | AF55: =SUM(E55:AE55) -> 0
B56: Construction loan downpayment | C56: $ | E56: =-E55*ConstructionDownpayment -> 0 | AF56: 0
B57: Construction loan closing costs | C57: $ | E57: =-E55*ConstructionClosing -> 0 | AF57: 0
B58: Construction loan payments | C58: $ | F58: =IF(F41=0,0,IF(F41<=ConstructionLoanTerm,-PMT(ConstructionLoanInterestRate/12,ConstructionLoanTerm*12,ConstructionLoanAmount*($E$52))*12,0)) -> 0 | G58: 0 | H58: 0 | I58: 0 | J58: 0 | K58: 0 | L58: 0 | M58: 0 | N58: 0 | O58: 0 | P58: 0 | Q58: 0 | R58: 0 | S58: 0 | T58: 0 | U58: 0 | V58: 0 | W58: 0 | X58: 0 | Y58: 0 | Z58: 0 | AA58: 0 | AB58: 0 | AC58: 0 | AD58: 0 | AF58: 0
B59: Operating loan | C59: $ | F59: =-E52*OpLoanAmount -> 0 | AF59: 0
B60: Operating loan downpayment | C60: $ | F60: =-OpDownpayment*F59 -> 0 | AF60: 0
B61: Operating loan closing costs | C61: $ | F61: =-OpClosing*F59 -> 0 | AF61: 0
B62: Operating loan payments | C62: $ | F62: =IF(F41=0,0,IF(F41<=OpLoanTerm,-PMT(OpLoanInterestRate/12,OpLoanTerm*12,OpLoanAmount*($E$52))*12,0)) -> 0 | G62: 0 | H62: 0 | I62: 0 | J62: 0 | K62: 0 | L62: 0 | M62: 0 | N62: 0 | O62: 0 | P62: 0 | Q62: 0 | R62: 0 | S62: 0 | T62: 0 | U62: 0 | V62: 0 | W62: 0 | X62: 0 | Y62: 0 | Z62: 0 | AA62: 0 | AB62: 0 | AC62: 0 | AD62: 0 | AF62: 0
B63: Total Cost of Capital | E63: =SUM(E55:E62) -> 0 | F63: 0 | G63: 0 | H63: 0 | I63: 0 | J63: 0 | K63: 0 | L63: 0 | M63: 0 | N63: 0 | O63: 0 | P63: 0 | Q63: 0 | R63: 0 | S63: 0 | T63: 0 | U63: 0 | V63: 0 | W63: 0 | X63: 0 | Y63: 0 | Z63: 0 | AA63: 0 | AB63: 0 | AC63: 0 | AD63: 0 | AF63: 0
B65: OPERATING EXPENSES | D65: $/kW/Yr
B66: Fixed O&M Expense | C66: $ | D66: 10.4 | F66: =-D66*systemsize -> -62.4 | G66: =F66*1.02 -> -63.648 | H66: -64.92096 | I66: -66.2193792 | J66: -67.54376678 | K66: -68.89464212 | L66: -70.27253496 | M66: -71.67798566 | N66: -73.11154537 | O66: -74.57377628 | P66: -76.06525181 | Q66: -77.58655684 | R66: -79.13828798 | S66: -80.72105374 | T66: -82.33547482 | U66: -83.98218431 | V66: -85.661828 | W66: -87.37506456 | X66: -89.12256585 | Y66: -90.90501717 | Z66: 0 | AA66: 0 | AB66: 0 | AC66: 0 | AD66: =AC66*1.02 -> 0 | AF66: =SUM(E66:AE66) -> -1516.155875
B67: Insurance | C67: $ | D67: 3.4 | F67: =-D67*systemsize -> -20.4 | G67: =F67*1.02 -> -20.808 | H67: -21.22416 | I67: -21.6486432 | J67: -22.08161606 | K67: -22.52324839 | L67: -22.97371335 | M67: -23.43318762 | N67: -23.90185137 | O67: -24.3798884 | P67: -24.86748617 | Q67: -25.36483589 | R67: -25.87213261 | S67: -26.38957526 | T67: -26.91736677 | U67: -27.4557141 | V67: -28.00482838 | W67: -28.56492495 | X67: -29.13622345 | Y67: -29.71894792 | Z67: =Y67*1.02 -> -30.31332688 | AA67: -30.91959342 | AB67: -31.53798528 | AC67: -32.16874499 | AD67: =AC67*1.02 -> -32.81211989 | AF67: =SUM(E67:AE67) -> -653.4181144
B68: Project Administration | C68: $ | D68: 5.2 | F68: =-D68*systemsize -> -31.2 | G68: =F68*1.02 -> -31.824 | H68: -32.46048 | I68: -33.1096896 | J68: -33.77188339 | K68: -34.44732106 | L68: -35.13626748 | M68: -35.83899283 | N68: -36.55577269 | O68: -37.28688814 | P68: -38.0326259 | Q68: -38.79327842 | R68: -39.56914399 | S68: -40.36052687 | T68: -41.16773741 | U68: -41.99109216 | V68: -42.830914 | W68: -43.68753228 | X68: -44.56128292 | Y68: -45.45250858 | Z68: -46.36155875 | AA68: -47.28878993 | AB68: -48.23456573 | AC68: -49.19925704 | AD68: =AC68*1.02 -> -50.18324218 | AF68: =SUM(E68:AE68) -> -999.3453514
B69: Total Operating Expense | F69: =SUM(F66:F68) -> -114 | G69: -116.28 | H69: -118.6056 | I69: -120.977712 | J69: -123.3972662 | K69: -125.8652116 | L69: -128.3825158 | M69: -130.9501661 | N69: -133.5691694 | O69: -136.2405528 | P69: -138.9653639 | Q69: -141.7446712 | R69: -144.5795646 | S69: -147.4711559 | T69: -150.420579 | U69: -153.4289906 | V69: -156.4975704 | W69: -159.6275218 | X69: -162.8200722 | Y69: -166.0764737 | Z69: -76.67488563 | AA69: -78.20838335 | AB69: -79.77255101 | AC69: -81.36800203 | AD69: -82.99536207 | AF69: =SUM(AF66:AF68) -> -3168.919341
B71: TAX BENEFITS
B72: Federal ITC | C72: =ITC -> 0.26 | D72: Year 1 | F72: =IF(Inputs!$E$10="Yes",-(E44+E45++E46+E47+E48)*C72,0) -> 4508.4 | AF72: =SUM(E72:AE72) -> 4508.4
B73: Federal MACRS Cash Equivalent | C73: =IF(Inputs!E11="Yes",MACRs,0) -> 0.35 | D73: =(-E52*C73) -> 6069 | F73: =IF(F41=1,((-$E$52-($F$72/2))*0.2*$C$73)*2)+IF(F41=2,(-$E$52-($F$72/2))*0.32*$C$73)+IF(F41=3,(-$E$52-($F$72/2))*0.192*$C$73)+IF(F41=4,(-$E$52-($F$72/2))*0.1152*$C$73)+IF(F41=5,(-$E$52-($F$72/2))*0.1152*$C$73)+IF(F41=6,(-$E$52-($F$72/2))*0.0576*$C$73,0) -> 2112.012 | G73: 1689.6096 | H73: 1013.76576 | I73: 608.259456 | J73: 608.259456 | K73: 304.129728 | AF73: =SUM(E73:AE73) -> 6336.036
B74: Low Income Housing Tax Credit | C74: =LIHTCYesNo -> No | D74: =LIHTCRate -> 0.04 | F74: =IF(LIHTCYesNo="Yes",LIHTCRate*'Detailed Inputs'!$D$43,0) -> 0 | G74: =IF(LIHTCYesNo="Yes",LIHTCRate*'Detailed Inputs'!$D$43,0) -> 0 | H74: =IF(LIHTCYesNo="Yes",LIHTCRate*'Detailed Inputs'!$D$43,0) -> 0 | I74: =IF(LIHTCYesNo="Yes",LIHTCRate*'Detailed Inputs'!$D$43,0) -> 0 | J74: =IF(LIHTCYesNo="Yes",LIHTCRate*'Detailed Inputs'!$D$43,0) -> 0 | K74: =IF(LIHTCYesNo="Yes",LIHTCRate*'Detailed Inputs'!$D$43,0) -> 0 | L74: =IF(LIHTCYesNo="Yes",LIHTCRate*'Detailed Inputs'!$D$43,0) -> 0 | M74: =IF(LIHTCYesNo="Yes",LIHTCRate*'Detailed Inputs'!$D$43,0) -> 0 | N74: =IF(LIHTCYesNo="Yes",LIHTCRate*'Detailed Inputs'!$D$43,0) -> 0 | O74: =IF(LIHTCYesNo="Yes",LIHTCRate*'Detailed Inputs'!$D$43,0) -> 0 | AF74: =SUM(E74:AE74) -> 0
B75: New Markets Tax Credit | C75: =NMTCYesNo -> No | F75: =IF(NMTCYesNo="Yes",-$E$52*0.05,0) -> 0 | G75: =IF(NMTCYesNo="Yes",-$E$52*0.05,0) -> 0 | H75: =IF(NMTCYesNo="Yes",-$E$52*0.05,0) -> 0 | I75: =IF(NMTCYesNo="Yes",-$E$52*0.06,0) -> 0 | J75: =IF(NMTCYesNo="Yes",-$E$52*0.06,0) -> 0 | K75: =IF(NMTCYesNo="Yes",-$E$52*0.06,0) -> 0 | L75: =IF(NMTCYesNo="Yes",-$E$52*0.06,0) -> 0 | AF75: =SUM(E75:AE75) -> 0
B76: Total Tax Benefits | E76: =SUM(E72:E75) -> 0 | F76: 6620.412 | G76: 1689.6096 | H76: 1013.76576 | I76: 608.259456 | J76: 608.259456 | K76: 304.129728 | L76: 0 | M76: 0 | N76: 0 | O76: 0 | P76: 0 | Q76: 0 | R76: 0 | S76: 0 | T76: 0 | U76: 0 | V76: 0 | W76: 0 | X76: 0 | Y76: 0 | Z76: 0 | AA76: 0 | AB76: 0 | AC76: 0 | AD76: 0 | AF76: =SUM(E76:AE76) -> 10844.436
B78: INCENTIVES
B79: SRECs | C79: $ | D79: Up to 15 years | F79: =IF(F21<=Inputs!$E$15,'Detailed Inputs'!$D$29/Inputs!$E$15,0) -> 0 | G79: =IF(G21<=Inputs!$E$15,'Detailed Inputs'!$D$29/Inputs!$E$15,0) -> 0 | H79: =IF(H21<=Inputs!$E$15,'Detailed Inputs'!$D$29/Inputs!$E$15,0) -> 0 | I79: =IF(I21<=Inputs!$E$15,'Detailed Inputs'!$D$29/Inputs!$E$15,0) -> 0 | J79: =IF(J21<=Inputs!$E$15,'Detailed Inputs'!$D$29/Inputs!$E$15,0) -> 0 | K79: =IF(K21<=Inputs!$E$15,'Detailed Inputs'!$D$29/Inputs!$E$15,0) -> 0 | L79: =IF(L21<=Inputs!$E$15,'Detailed Inputs'!$D$29/Inputs!$E$15,0) -> 0 | M79: =IF(M21<=Inputs!$E$15,'Detailed Inputs'!$D$29/Inputs!$E$15,0) -> 0 | N79: =IF(N21<=Inputs!$E$15,'Detailed Inputs'!$D$29/Inputs!$E$15,0) -> 0 | O79: =IF(O21<=Inputs!$E$15,'Detailed Inputs'!$D$29/Inputs!$E$15,0) -> 0 | P79: =IF(P21<=Inputs!$E$15,'Detailed Inputs'!$D$29/Inputs!$E$15,0) -> 0 | Q79: =IF(Q21<=Inputs!$E$15,'Detailed Inputs'!$D$29/Inputs!$E$15,0) -> 0 | R79: =IF(R21<=Inputs!$E$15,'Detailed Inputs'!$D$29/Inputs!$E$15,0) -> 0 | S79: =IF(S21<=Inputs!$E$15,'Detailed Inputs'!$D$29/Inputs!$E$15,0) -> 0 | T79: =IF(T21<=Inputs!$E$15,'Detailed Inputs'!$D$29/Inputs!$E$15,0) -> 0 | U79: =IF(U21<=Inputs!$E$15,'Detailed Inputs'!$D$29/Inputs!$E$15,0) -> 0 | V79: =IF(V21<=Inputs!$E$15,'Detailed Inputs'!$D$29/Inputs!$E$15,0) -> 0 | W79: =IF(W21<=Inputs!$E$15,'Detailed Inputs'!$D$29/Inputs!$E$15,0) -> 0 | X79: =IF(X21<=Inputs!$E$15,'Detailed Inputs'!$D$29/Inputs!$E$15,0) -> 0 | Y79: =IF(Y21<=Inputs!$E$15,'Detailed Inputs'!$D$29/Inputs!$E$15,0) -> 0 | Z79: =IF(Z21<=Inputs!$E$15,'Detailed Inputs'!$D$29/Inputs!$E$15,0) -> 0 | AA79: =IF(AA21<=Inputs!$E$15,'Detailed Inputs'!$D$29/Inputs!$E$15,0) -> 0 | AB79: =IF(AB21<=Inputs!$E$15,'Detailed Inputs'!$D$29/Inputs!$E$15,0) -> 0 | AC79: =IF(AC21<=Inputs!$E$15,'Detailed Inputs'!$D$29/Inputs!$E$15,0) -> 0 | AD79: =IF(AD21<=Inputs!$E$15,'Detailed Inputs'!$D$29/Inputs!$E$15,0) -> 0 | AF79: =SUM(E79:AE79) -> 0
B80: Incentive #1 | C80: =Inputs!D17 -> $ per installed watt | D80: =Inputs!C17 -> 0 | F80: =IF(Inputs!$D17="$ per installed watt",(Inputs!$E17*systemsize*1000),Inputs!$E17) -> 0 | AF80: 0
B81: Incentive #2 | C81: =Inputs!D18 -> $ lump sum up front | D81: =Inputs!C18 -> 0 | F81: =IF(Inputs!$D18="$ per installed watt",(Inputs!$E18*systemsize*1000),Inputs!$E18) -> 0 | AF81: 0
B82: Incentive #3 | C82: =Inputs!D19 -> [please select] | D82: =Inputs!C19 -> 0 | F82: =IF(Inputs!$D19="$ per installed watt",(Inputs!$E19*systemsize*1000),Inputs!$E19) -> 0 | AF82: 0
B83: Incentive #4 | C83: =Inputs!D20 -> [please select] | D83: =Inputs!C20 -> 0 | F83: =IF(Inputs!$D20="$ per installed watt",(Inputs!$E20*systemsize*1000),Inputs!$E20) -> 0 | AF83: 0
B84: Total Incentive Payments | F84: =SUM(F79:F83) -> 0 | G84: 0 | H84: 0 | I84: 0 | J84: 0 | K84: 0 | L84: 0 | M84: 0 | N84: 0 | O84: 0 | P84: 0 | Q84: 0 | R84: 0 | S84: 0 | T84: 0 | U84: 0 | V84: 0 | W84: 0 | X84: 0 | Y84: 0 | Z84: 0 | AA84: 0 | AB84: 0 | AC84: 0 | AD84: 0 | AF84: 0
B86: REVENUES
B87: Customer Payments | C87: % Tied to Rate | D87: $ Annual | F87: =IF($C$87="Flat Rate PPA",F197,F213) -> 616.7208966 | G87: 625.910038 | H87: 635.2200566 | I87: 644.652112 | J87: 654.2073616 | K87: 663.8869603 | L87: 673.69206 | M87: 683.623809 | N87: 693.683351 | O87: 703.8718252 | P87: 714.1903651 | Q87: 724.6400978 | R87: 735.2221437 | S87: 745.9376153 | T87: 756.787617 | U87: 767.7732437 | V87: 778.8955804 | W87: 790.1557013 | X87: 801.5546688 | Y87: 813.0935327 | Z87: 824.7733293 | AA87: 836.5950804 | AB87: 848.5597921 | AC87: 860.6684543 | AD87: 872.9220391 | AF87: =SUM(E87:AE87) -> 18467.23773
B88: Site Lease Payments | C88: $ | D88: Fixed Annual | F88: =$E$51 -> 0 | G88: 0 | H88: 0 | I88: 0 | J88: 0 | K88: 0 | L88: 0 | M88: 0 | N88: 0 | O88: 0 | P88: 0 | Q88: 0 | R88: 0 | S88: 0 | T88: 0 | U88: 0 | V88: 0 | W88: 0 | X88: 0 | Y88: 0 | Z88: 0 | AA88: 0 | AB88: 0 | AC88: 0 | AD88: 0 | AF88: =SUM(E88:AE88) -> 0
B89: Demand Charge Savings | C89: $ Manual | D89: Estimated | F89: 0 | G89: 0 | H89: 0 | I89: 0 | J89: 0 | K89: 0 | L89: 0 | M89: 0 | N89: 0 | O89: 0 | P89: 0 | Q89: 0 | R89: 0 | S89: 0 | T89: 0 | U89: 0 | V89: 0 | W89: 0 | X89: 0 | Y89: 0 | Z89: 0 | AA89: 0 | AB89: 0 | AC89: 0 | AD89: 0 | AF89: =SUM(E89:AE89) -> 0
B90: Total Revenue | F90: =SUM(F87:F89) -> 616.7208966 | G90: 625.910038 | H90: 635.2200566 | I90: 644.652112 | J90: 654.2073616 | K90: 663.8869603 | L90: 673.69206 | M90: 683.623809 | N90: 693.683351 | O90: 703.8718252 | P90: 714.1903651 | Q90: 724.6400978 | R90: 735.2221437 | S90: 745.9376153 | T90: 756.787617 | U90: 767.7732437 | V90: 778.8955804 | W90: 790.1557013 | X90: 801.5546688 | Y90: 813.0935327 | Z90: 824.7733293 | AA90: 836.5950804 | AB90: 848.5597921 | AC90: 860.6684543 | AD90: 872.9220391 | AF90: =SUM(E90:AE90) -> 18467.23773
B92: CASHFLOW
B93: Net Benefits (Costs) | C93: $ | E93: =E52+E63+E69+E76+E84+E90 -> -17340 | F93: 7123.132897 | G93: 2199.239638 | H93: 1530.380217 | I93: 1131.933856 | J93: 1139.069551 | K93: 842.1514767 | L93: 545.3095442 | M93: 552.6736428 | N93: 560.1141816 | O93: 567.6312724 | P93: 575.2250012 | Q93: 582.8954266 | R93: 590.6425791 | S93: 598.4664595 | T93: 606.367038 | U93: 614.3442531 | V93: 622.39801 | W93: 630.5281795 | X93: 638.7345966 | Y93: 647.0170591 | Z93: 748.0984437 | AA93: 758.386697 | AB93: 768.7872411 | AC93: 779.3004523 | AD93: 789.926677 | AF93: =SUM(E93:AE93) -> 8802.75439
B94: Cumulative Cashflow | C94: $ | E94: =E93 -> -17340 | F94: =E94+F93 -> -10216.8671 | G94: -8017.627465 | H94: -6487.247249 | I94: -5355.313393 | J94: -4216.243841 | K94: -3374.092365 | L94: -2828.78282 | M94: -2276.109178 | N94: -1715.994996 | O94: -1148.363724 | P94: -573.1387225 | Q94: 9.756704158 | R94: 600.3992832 | S94: 1198.865743 | T94: 1805.232781 | U94: 2419.577034 | V94: 3041.975044 | W94: 3672.503223 | X94: 4311.23782 | Y94: 4958.254879 | Z94: 5706.353323 | AA94: 6464.74002 | AB94: 7233.527261 | AC94: 8012.827713 | AD94: 8802.75439 | AF94: =AD94 -> 8802.75439
B95: Payback Calculation | D95: Years | E95: =SUM(F95:AD95) -> 11.98326166 | F95: =IF(F94<0,1,IF(AND(F94>0,E94<0),(-E94/(F94-E94)),0)) -> 1 | G95: 1 | H95: 1 | I95: 1 | J95: 1 | K95: 1 | L95: 1 | M95: 1 | N95: 1 | O95: 1 | P95: 1 | Q95: 0.983261656 | R95: 0 | S95: 0 | T95: 0 | U95: 0 | V95: 0 | W95: 0 | X95: 0 | Y95: 0 | Z95: 0 | AA95: 0 | AB95: 0 | AC95: 0 | AD95: 0 | AF95: =E95 -> 11.98326166
B97: Internal Rate of Return
B98: Internal Net Benefits (Costs less loans) | C98: $ | E98: =E52+E69 -> -17340 | F98: =F69+F76+F84+F90 -> 7123.132897 | G98: =G69+G76+G84+G90 -> 2199.239638 | H98: 1530.380217 | I98: 1131.933856 | J98: 1139.069551 | K98: 842.1514767 | L98: 545.3095442 | M98: 552.6736428 | N98: 560.1141816 | O98: 567.6312724 | P98: 575.2250012 | Q98: 582.8954266 | R98: 590.6425791 | S98: 598.4664595 | T98: 606.367038 | U98: 614.3442531 | V98: 622.39801 | W98: 630.5281795 | X98: 638.7345966 | Y98: 647.0170591 | Z98: 748.0984437 | AA98: 758.386697 | AB98: 768.7872411 | AC98: 779.3004523 | AD98: 789.926677 | AF98: =SUM(E98:AE98) -> 8802.75439
B99: Internal Cumulative Cashflow | C99: $ | E99: =D98+E98 -> -17340 | F99: =E99+F98 -> -10216.8671 | G99: =F99+G98 -> -8017.627465 | H99: =G99+H98 -> -6487.247249 | I99: -5355.313393 | J99: -4216.243841 | K99: -3374.092365 | L99: -2828.78282 | M99: -2276.109178 | N99: -1715.994996 | O99: -1148.363724 | P99: -573.1387225 | Q99: 9.756704158 | R99: 600.3992832 | S99: 1198.865743 | T99: 1805.232781 | U99: 2419.577034 | V99: 3041.975044 | W99: 3672.503223 | X99: 4311.23782 | Y99: 4958.254879 | Z99: 5706.353323 | AA99: 6464.74002 | AB99: 7233.527261 | AC99: 8012.827713 | AD99: 8802.75439 | AF99: =AD99 -> 8802.75439
B100: Payback Calculation | D100: Years | E100: =SUM(F100:AD100) -> 11.98326166 | F100: =IF(F99<0,1,IF(AND(F99>0,E99<0),(-E99/(F99-E99)),0)) -> 1 | G100: 1 | H100: 1 | I100: 1 | J100: 1 | K100: 1 | L100: 1 | M100: 1 | N100: 1 | O100: 1 | P100: 1 | Q100: 0.983261656 | R100: 0 | S100: 0 | T100: 0 | U100: 0 | V100: 0 | W100: 0 | X100: 0 | Y100: 0 | Z100: 0 | AA100: 0 | AB100: 0 | AC100: 0 | AD100: 0
B104: Power Generation Estimate
B106: Month | C106: Generation (kWh)
B107: January | C107: =IF('Detailed Inputs'!$H$28="PV Watts",'Detailed Inputs'!D49,'Detailed Inputs'!H49) -> 349.1069031 | D107: kWh's per mo. | F107: =($C107)*(1-((F$41-1)*('Detailed Inputs'!$D$8))) -> 349.1069031 | G107: =($C107)*(1-((G$41-1)*('Detailed Inputs'!$D$8))) -> 347.3613686 | H107: =($C107)*(1-((H$41-1)*('Detailed Inputs'!$D$8))) -> 345.615834 | I107: =($C107)*(1-((I$41-1)*('Detailed Inputs'!$D$8))) -> 343.8702995 | J107: =($C107)*(1-((J$41-1)*('Detailed Inputs'!$D$8))) -> 342.124765 | K107: =($C107)*(1-((K$41-1)*('Detailed Inputs'!$D$8))) -> 340.3792305 | L107: =($C107)*(1-((L$41-1)*('Detailed Inputs'!$D$8))) -> 338.633696 | M107: =($C107)*(1-((M$41-1)*('Detailed Inputs'!$D$8))) -> 336.8881615 | N107: =($C107)*(1-((N$41-1)*('Detailed Inputs'!$D$8))) -> 335.142627 | O107: =($C107)*(1-((O$41-1)*('Detailed Inputs'!$D$8))) -> 333.3970924 | P107: =($C107)*(1-((P$41-1)*('Detailed Inputs'!$D$8))) -> 331.6515579 | Q107: =($C107)*(1-((Q$41-1)*('Detailed Inputs'!$D$8))) -> 329.9060234 | R107: =($C107)*(1-((R$41-1)*('Detailed Inputs'!$D$8))) -> 328.1604889 | S107: =($C107)*(1-((S$41-1)*('Detailed Inputs'!$D$8))) -> 326.4149544 | T107: =($C107)*(1-((T$41-1)*('Detailed Inputs'!$D$8))) -> 324.6694199 | U107: =($C107)*(1-((U$41-1)*('Detailed Inputs'!$D$8))) -> 322.9238853 | V107: =($C107)*(1-((V$41-1)*('Detailed Inputs'!$D$8))) -> 321.1783508 | W107: =($C107)*(1-((W$41-1)*('Detailed Inputs'!$D$8))) -> 319.4328163 | X107: =($C107)*(1-((X$41-1)*('Detailed Inputs'!$D$8))) -> 317.6872818 | Y107: =($C107)*(1-((Y$41-1)*('Detailed Inputs'!$D$8))) -> 315.9417473 | Z107: =($C107)*(1-((Z$41-1)*('Detailed Inputs'!$D$8))) -> 314.1962128 | AA107: =($C107)*(1-((AA$41-1)*('Detailed Inputs'!$D$8))) -> 312.4506783 | AB107: =($C107)*(1-((AB$41-1)*('Detailed Inputs'!$D$8))) -> 310.7051437 | AC107: =($C107)*(1-((AC$41-1)*('Detailed Inputs'!$D$8))) -> 308.9596092 | AD107: =($C107)*(1-((AD$41-1)*('Detailed Inputs'!$D$8))) -> 307.2140747
B108: February | C108: =IF('Detailed Inputs'!$H$28="PV Watts",'Detailed Inputs'!D50,'Detailed Inputs'!H50) -> 435.9643555 | D108: kWh's per mo. | F108: =($C108)*(1-((F$41-1)*('Detailed Inputs'!$D$8))) -> 435.9643555 | G108: =($C108)*(1-((G$41-1)*('Detailed Inputs'!$D$8))) -> 433.7845337 | H108: =($C108)*(1-((H$41-1)*('Detailed Inputs'!$D$8))) -> 431.6047119 | I108: =($C108)*(1-((I$41-1)*('Detailed Inputs'!$D$8))) -> 429.4248901 | J108: =($C108)*(1-((J$41-1)*('Detailed Inputs'!$D$8))) -> 427.2450684 | K108: =($C108)*(1-((K$41-1)*('Detailed Inputs'!$D$8))) -> 425.0652466 | L108: =($C108)*(1-((L$41-1)*('Detailed Inputs'!$D$8))) -> 422.8854248 | M108: =($C108)*(1-((M$41-1)*('Detailed Inputs'!$D$8))) -> 420.705603 | N108: =($C108)*(1-((N$41-1)*('Detailed Inputs'!$D$8))) -> 418.5257812 | O108: =($C108)*(1-((O$41-1)*('Detailed Inputs'!$D$8))) -> 416.3459595 | P108: =($C108)*(1-((P$41-1)*('Detailed Inputs'!$D$8))) -> 414.1661377 | Q108: =($C108)*(1-((Q$41-1)*('Detailed Inputs'!$D$8))) -> 411.9863159 | R108: =($C108)*(1-((R$41-1)*('Detailed Inputs'!$D$8))) -> 409.8064941 | S108: =($C108)*(1-((S$41-1)*('Detailed Inputs'!$D$8))) -> 407.6266724 | T108: =($C108)*(1-((T$41-1)*('Detailed Inputs'!$D$8))) -> 405.4468506 | U108: =($C108)*(1-((U$41-1)*('Detailed Inputs'!$D$8))) -> 403.2670288 | V108: =($C108)*(1-((V$41-1)*('Detailed Inputs'!$D$8))) -> 401.087207 | W108: =($C108)*(1-((W$41-1)*('Detailed Inputs'!$D$8))) -> 398.9073853 | X108: =($C108)*(1-((X$41-1)*('Detailed Inputs'!$D$8))) -> 396.7275635 | Y108: =($C108)*(1-((Y$41-1)*('Detailed Inputs'!$D$8))) -> 394.5477417 | Z108: =($C108)*(1-((Z$41-1)*('Detailed Inputs'!$D$8))) -> 392.3679199 | AA108: =($C108)*(1-((AA$41-1)*('Detailed Inputs'!$D$8))) -> 390.1880981 | AB108: =($C108)*(1-((AB$41-1)*('Detailed Inputs'!$D$8))) -> 388.0082764 | AC108: =($C108)*(1-((AC$41-1)*('Detailed Inputs'!$D$8))) -> 385.8284546 | AD108: =($C108)*(1-((AD$41-1)*('Detailed Inputs'!$D$8))) -> 383.6486328
B109: March | C109: =IF('Detailed Inputs'!$H$28="PV Watts",'Detailed Inputs'!D51,'Detailed Inputs'!H51) -> 619.3152466 | D109: kWh's per mo. | F109: =($C109)*(1-((F$41-1)*('Detailed Inputs'!$D$8))) -> 619.3152466 | G109: =($C109)*(1-((G$41-1)*('Detailed Inputs'!$D$8))) -> 616.2186703 | H109: =($C109)*(1-((H$41-1)*('Detailed Inputs'!$D$8))) -> 613.1220941 | I109: =($C109)*(1-((I$41-1)*('Detailed Inputs'!$D$8))) -> 610.0255179 | J109: =($C109)*(1-((J$41-1)*('Detailed Inputs'!$D$8))) -> 606.9289417 | K109: =($C109)*(1-((K$41-1)*('Detailed Inputs'!$D$8))) -> 603.8323654 | L109: =($C109)*(1-((L$41-1)*('Detailed Inputs'!$D$8))) -> 600.7357892 | M109: =($C109)*(1-((M$41-1)*('Detailed Inputs'!$D$8))) -> 597.639213 | N109: =($C109)*(1-((N$41-1)*('Detailed Inputs'!$D$8))) -> 594.5426367 | O109: =($C109)*(1-((O$41-1)*('Detailed Inputs'!$D$8))) -> 591.4460605 | P109: =($C109)*(1-((P$41-1)*('Detailed Inputs'!$D$8))) -> 588.3494843 | Q109: =($C109)*(1-((Q$41-1)*('Detailed Inputs'!$D$8))) -> 585.252908 | R109: =($C109)*(1-((R$41-1)*('Detailed Inputs'!$D$8))) -> 582.1563318 | S109: =($C109)*(1-((S$41-1)*('Detailed Inputs'!$D$8))) -> 579.0597556 | T109: =($C109)*(1-((T$41-1)*('Detailed Inputs'!$D$8))) -> 575.9631793 | U109: =($C109)*(1-((U$41-1)*('Detailed Inputs'!$D$8))) -> 572.8666031 | V109: =($C109)*(1-((V$41-1)*('Detailed Inputs'!$D$8))) -> 569.7700269 | W109: =($C109)*(1-((W$41-1)*('Detailed Inputs'!$D$8))) -> 566.6734506 | X109: =($C109)*(1-((X$41-1)*('Detailed Inputs'!$D$8))) -> 563.5768744 | Y109: =($C109)*(1-((Y$41-1)*('Detailed Inputs'!$D$8))) -> 560.4802982 | Z109: =($C109)*(1-((Z$41-1)*('Detailed Inputs'!$D$8))) -> 557.3837219 | AA109: =($C109)*(1-((AA$41-1)*('Detailed Inputs'!$D$8))) -> 554.2871457 | AB109: =($C109)*(1-((AB$41-1)*('Detailed Inputs'!$D$8))) -> 551.1905695 | AC109: =($C109)*(1-((AC$41-1)*('Detailed Inputs'!$D$8))) -> 548.0939932 | AD109: =($C109)*(1-((AD$41-1)*('Detailed Inputs'!$D$8))) -> 544.997417
B110: April | C110: =IF('Detailed Inputs'!$H$28="PV Watts",'Detailed Inputs'!D52,'Detailed Inputs'!H52) -> 749.0038452 | D110: kWh's per mo. | F110: =($C110)*(1-((F$41-1)*('Detailed Inputs'!$D$8))) -> 749.0038452 | G110: =($C110)*(1-((G$41-1)*('Detailed Inputs'!$D$8))) -> 745.258826 | H110: =($C110)*(1-((H$41-1)*('Detailed Inputs'!$D$8))) -> 741.5138068 | I110: =($C110)*(1-((I$41-1)*('Detailed Inputs'!$D$8))) -> 737.7687875 | J110: =($C110)*(1-((J$41-1)*('Detailed Inputs'!$D$8))) -> 734.0237683 | K110: =($C110)*(1-((K$41-1)*('Detailed Inputs'!$D$8))) -> 730.2787491 | L110: =($C110)*(1-((L$41-1)*('Detailed Inputs'!$D$8))) -> 726.5337299 | M110: =($C110)*(1-((M$41-1)*('Detailed Inputs'!$D$8))) -> 722.7887106 | N110: =($C110)*(1-((N$41-1)*('Detailed Inputs'!$D$8))) -> 719.0436914 | O110: =($C110)*(1-((O$41-1)*('Detailed Inputs'!$D$8))) -> 715.2986722 | P110: =($C110)*(1-((P$41-1)*('Detailed Inputs'!$D$8))) -> 711.553653 | Q110: =($C110)*(1-((Q$41-1)*('Detailed Inputs'!$D$8))) -> 707.8086337 | R110: =($C110)*(1-((R$41-1)*('Detailed Inputs'!$D$8))) -> 704.0636145 | S110: =($C110)*(1-((S$41-1)*('Detailed Inputs'!$D$8))) -> 700.3185953 | T110: =($C110)*(1-((T$41-1)*('Detailed Inputs'!$D$8))) -> 696.573576 | U110: =($C110)*(1-((U$41-1)*('Detailed Inputs'!$D$8))) -> 692.8285568 | V110: =($C110)*(1-((V$41-1)*('Detailed Inputs'!$D$8))) -> 689.0835376 | W110: =($C110)*(1-((W$41-1)*('Detailed Inputs'!$D$8))) -> 685.3385184 | X110: =($C110)*(1-((X$41-1)*('Detailed Inputs'!$D$8))) -> 681.5934991 | Y110: =($C110)*(1-((Y$41-1)*('Detailed Inputs'!$D$8))) -> 677.8484799 | Z110: =($C110)*(1-((Z$41-1)*('Detailed Inputs'!$D$8))) -> 674.1034607 | AA110: =($C110)*(1-((AA$41-1)*('Detailed Inputs'!$D$8))) -> 670.3584415 | AB110: =($C110)*(1-((AB$41-1)*('Detailed Inputs'!$D$8))) -> 666.6134222 | AC110: =($C110)*(1-((AC$41-1)*('Detailed Inputs'!$D$8))) -> 662.868403 | AD110: =($C110)*(1-((AD$41-1)*('Detailed Inputs'!$D$8))) -> 659.1233838
B111: May | C111: =IF('Detailed Inputs'!$H$28="PV Watts",'Detailed Inputs'!D53,'Detailed Inputs'!H53) -> 889.4098511 | D111: kWh's per mo. | F111: =($C111)*(1-((F$41-1)*('Detailed Inputs'!$D$8))) -> 889.4098511 | G111: =($C111)*(1-((G$41-1)*('Detailed Inputs'!$D$8))) -> 884.9628018 | H111: =($C111)*(1-((H$41-1)*('Detailed Inputs'!$D$8))) -> 880.5157526 | I111: =($C111)*(1-((I$41-1)*('Detailed Inputs'!$D$8))) -> 876.0687033 | J111: =($C111)*(1-((J$41-1)*('Detailed Inputs'!$D$8))) -> 871.6216541 | K111: =($C111)*(1-((K$41-1)*('Detailed Inputs'!$D$8))) -> 867.1746048 | L111: =($C111)*(1-((L$41-1)*('Detailed Inputs'!$D$8))) -> 862.7275555 | M111: =($C111)*(1-((M$41-1)*('Detailed Inputs'!$D$8))) -> 858.2805063 | N111: =($C111)*(1-((N$41-1)*('Detailed Inputs'!$D$8))) -> 853.833457 | O111: =($C111)*(1-((O$41-1)*('Detailed Inputs'!$D$8))) -> 849.3864078 | P111: =($C111)*(1-((P$41-1)*('Detailed Inputs'!$D$8))) -> 844.9393585 | Q111: =($C111)*(1-((Q$41-1)*('Detailed Inputs'!$D$8))) -> 840.4923093 | R111: =($C111)*(1-((R$41-1)*('Detailed Inputs'!$D$8))) -> 836.04526 | S111: =($C111)*(1-((S$41-1)*('Detailed Inputs'!$D$8))) -> 831.5982108 | T111: =($C111)*(1-((T$41-1)*('Detailed Inputs'!$D$8))) -> 827.1511615 | U111: =($C111)*(1-((U$41-1)*('Detailed Inputs'!$D$8))) -> 822.7041122 | V111: =($C111)*(1-((V$41-1)*('Detailed Inputs'!$D$8))) -> 818.257063 | W111: =($C111)*(1-((W$41-1)*('Detailed Inputs'!$D$8))) -> 813.8100137 | X111: =($C111)*(1-((X$41-1)*('Detailed Inputs'!$D$8))) -> 809.3629645 | Y111: =($C111)*(1-((Y$41-1)*('Detailed Inputs'!$D$8))) -> 804.9159152 | Z111: =($C111)*(1-((Z$41-1)*('Detailed Inputs'!$D$8))) -> 800.468866 | AA111: =($C111)*(1-((AA$41-1)*('Detailed Inputs'!$D$8))) -> 796.0218167 | AB111: =($C111)*(1-((AB$41-1)*('Detailed Inputs'!$D$8))) -> 791.5747675 | AC111: =($C111)*(1-((AC$41-1)*('Detailed Inputs'!$D$8))) -> 787.1277182 | AD111: =($C111)*(1-((AD$41-1)*('Detailed Inputs'!$D$8))) -> 782.6806689
B112: June | C112: =IF('Detailed Inputs'!$H$28="PV Watts",'Detailed Inputs'!D54,'Detailed Inputs'!H54) -> 880.8735352 | D112: kWh's per mo. | F112: =($C112)*(1-((F$41-1)*('Detailed Inputs'!$D$8))) -> 880.8735352 | G112: =($C112)*(1-((G$41-1)*('Detailed Inputs'!$D$8))) -> 876.4691675 | H112: =($C112)*(1-((H$41-1)*('Detailed Inputs'!$D$8))) -> 872.0647998 | I112: =($C112)*(1-((I$41-1)*('Detailed Inputs'!$D$8))) -> 867.6604321 | J112: =($C112)*(1-((J$41-1)*('Detailed Inputs'!$D$8))) -> 863.2560645 | K112: =($C112)*(1-((K$41-1)*('Detailed Inputs'!$D$8))) -> 858.8516968 | L112: =($C112)*(1-((L$41-1)*('Detailed Inputs'!$D$8))) -> 854.4473291 | M112: =($C112)*(1-((M$41-1)*('Detailed Inputs'!$D$8))) -> 850.0429614 | N112: =($C112)*(1-((N$41-1)*('Detailed Inputs'!$D$8))) -> 845.6385937 | O112: =($C112)*(1-((O$41-1)*('Detailed Inputs'!$D$8))) -> 841.2342261 | P112: =($C112)*(1-((P$41-1)*('Detailed Inputs'!$D$8))) -> 836.8298584 | Q112: =($C112)*(1-((Q$41-1)*('Detailed Inputs'!$D$8))) -> 832.4254907 | R112: =($C112)*(1-((R$41-1)*('Detailed Inputs'!$D$8))) -> 828.021123 | S112: =($C112)*(1-((S$41-1)*('Detailed Inputs'!$D$8))) -> 823.6167554 | T112: =($C112)*(1-((T$41-1)*('Detailed Inputs'!$D$8))) -> 819.2123877 | U112: =($C112)*(1-((U$41-1)*('Detailed Inputs'!$D$8))) -> 814.80802 | V112: =($C112)*(1-((V$41-1)*('Detailed Inputs'!$D$8))) -> 810.4036523 | W112: =($C112)*(1-((W$41-1)*('Detailed Inputs'!$D$8))) -> 805.9992847 | X112: =($C112)*(1-((X$41-1)*('Detailed Inputs'!$D$8))) -> 801.594917 | Y112: =($C112)*(1-((Y$41-1)*('Detailed Inputs'!$D$8))) -> 797.1905493 | Z112: =($C112)*(1-((Z$41-1)*('Detailed Inputs'!$D$8))) -> 792.7861816 | AA112: =($C112)*(1-((AA$41-1)*('Detailed Inputs'!$D$8))) -> 788.381814 | AB112: =($C112)*(1-((AB$41-1)*('Detailed Inputs'!$D$8))) -> 783.9774463 | AC112: =($C112)*(1-((AC$41-1)*('Detailed Inputs'!$D$8))) -> 779.5730786 | AD112: =($C112)*(1-((AD$41-1)*('Detailed Inputs'!$D$8))) -> 775.1687109
B113: July | C113: =IF('Detailed Inputs'!$H$28="PV Watts",'Detailed Inputs'!D55,'Detailed Inputs'!H55) -> 908.548584 | D113: kWh's per mo. | F113: =($C113)*(1-((F$41-1)*('Detailed Inputs'!$D$8))) -> 908.548584 | G113: =($C113)*(1-((G$41-1)*('Detailed Inputs'!$D$8))) -> 904.0058411 | H113: =($C113)*(1-((H$41-1)*('Detailed Inputs'!$D$8))) -> 899.4630981 | I113: =($C113)*(1-((I$41-1)*('Detailed Inputs'!$D$8))) -> 894.9203552 | J113: =($C113)*(1-((J$41-1)*('Detailed Inputs'!$D$8))) -> 890.3776123 | K113: =($C113)*(1-((K$41-1)*('Detailed Inputs'!$D$8))) -> 885.8348694 | L113: =($C113)*(1-((L$41-1)*('Detailed Inputs'!$D$8))) -> 881.2921265 | M113: =($C113)*(1-((M$41-1)*('Detailed Inputs'!$D$8))) -> 876.7493835 | N113: =($C113)*(1-((N$41-1)*('Detailed Inputs'!$D$8))) -> 872.2066406 | O113: =($C113)*(1-((O$41-1)*('Detailed Inputs'!$D$8))) -> 867.6638977 | P113: =($C113)*(1-((P$41-1)*('Detailed Inputs'!$D$8))) -> 863.1211548 | Q113: =($C113)*(1-((Q$41-1)*('Detailed Inputs'!$D$8))) -> 858.5784119 | R113: =($C113)*(1-((R$41-1)*('Detailed Inputs'!$D$8))) -> 854.0356689 | S113: =($C113)*(1-((S$41-1)*('Detailed Inputs'!$D$8))) -> 849.492926 | T113: =($C113)*(1-((T$41-1)*('Detailed Inputs'!$D$8))) -> 844.9501831 | U113: =($C113)*(1-((U$41-1)*('Detailed Inputs'!$D$8))) -> 840.4074402 | V113: =($C113)*(1-((V$41-1)*('Detailed Inputs'!$D$8))) -> 835.8646973 | W113: =($C113)*(1-((W$41-1)*('Detailed Inputs'!$D$8))) -> 831.3219543 | X113: =($C113)*(1-((X$41-1)*('Detailed Inputs'!$D$8))) -> 826.7792114 | Y113: =($C113)*(1-((Y$41-1)*('Detailed Inputs'!$D$8))) -> 822.2364685 | Z113: =($C113)*(1-((Z$41-1)*('Detailed Inputs'!$D$8))) -> 817.6937256 | AA113: =($C113)*(1-((AA$41-1)*('Detailed Inputs'!$D$8))) -> 813.1509827 | AB113: =($C113)*(1-((AB$41-1)*('Detailed Inputs'!$D$8))) -> 808.6082397 | AC113: =($C113)*(1-((AC$41-1)*('Detailed Inputs'!$D$8))) -> 804.0654968 | AD113: =($C113)*(1-((AD$41-1)*('Detailed Inputs'!$D$8))) -> 799.5227539
B114: August | C114: =IF('Detailed Inputs'!$H$28="PV Watts",'Detailed Inputs'!D56,'Detailed Inputs'!H56) -> 762.1619873 | D114: kWh's per mo. | F114: =($C114)*(1-((F$41-1)*('Detailed Inputs'!$D$8))) -> 762.1619873 | G114: =($C114)*(1-((G$41-1)*('Detailed Inputs'!$D$8))) -> 758.3511774 | H114: =($C114)*(1-((H$41-1)*('Detailed Inputs'!$D$8))) -> 754.5403674 | I114: =($C114)*(1-((I$41-1)*('Detailed Inputs'!$D$8))) -> 750.7295575 | J114: =($C114)*(1-((J$41-1)*('Detailed Inputs'!$D$8))) -> 746.9187476 | K114: =($C114)*(1-((K$41-1)*('Detailed Inputs'!$D$8))) -> 743.1079376 | L114: =($C114)*(1-((L$41-1)*('Detailed Inputs'!$D$8))) -> 739.2971277 | M114: =($C114)*(1-((M$41-1)*('Detailed Inputs'!$D$8))) -> 735.4863177 | N114: =($C114)*(1-((N$41-1)*('Detailed Inputs'!$D$8))) -> 731.6755078 | O114: =($C114)*(1-((O$41-1)*('Detailed Inputs'!$D$8))) -> 727.8646979 | P114: =($C114)*(1-((P$41-1)*('Detailed Inputs'!$D$8))) -> 724.0538879 | Q114: =($C114)*(1-((Q$41-1)*('Detailed Inputs'!$D$8))) -> 720.243078 | R114: =($C114)*(1-((R$41-1)*('Detailed Inputs'!$D$8))) -> 716.4322681 | S114: =($C114)*(1-((S$41-1)*('Detailed Inputs'!$D$8))) -> 712.6214581 | T114: =($C114)*(1-((T$41-1)*('Detailed Inputs'!$D$8))) -> 708.8106482 | U114: =($C114)*(1-((U$41-1)*('Detailed Inputs'!$D$8))) -> 704.9998383 | V114: =($C114)*(1-((V$41-1)*('Detailed Inputs'!$D$8))) -> 701.1890283 | W114: =($C114)*(1-((W$41-1)*('Detailed Inputs'!$D$8))) -> 697.3782184 | X114: =($C114)*(1-((X$41-1)*('Detailed Inputs'!$D$8))) -> 693.5674084 | Y114: =($C114)*(1-((Y$41-1)*('Detailed Inputs'!$D$8))) -> 689.7565985 | Z114: =($C114)*(1-((Z$41-1)*('Detailed Inputs'!$D$8))) -> 685.9457886 | AA114: =($C114)*(1-((AA$41-1)*('Detailed Inputs'!$D$8))) -> 682.1349786 | AB114: =($C114)*(1-((AB$41-1)*('Detailed Inputs'!$D$8))) -> 678.3241687 | AC114: =($C114)*(1-((AC$41-1)*('Detailed Inputs'!$D$8))) -> 674.5133588 | AD114: =($C114)*(1-((AD$41-1)*('Detailed Inputs'!$D$8))) -> 670.7025488
B115: September | C115: =IF('Detailed Inputs'!$H$28="PV Watts",'Detailed Inputs'!D57,'Detailed Inputs'!H57) -> 632.8031006 | D115: kWh's per mo. | F115: =($C115)*(1-((F$41-1)*('Detailed Inputs'!$D$8))) -> 632.8031006 | G115: =($C115)*(1-((G$41-1)*('Detailed Inputs'!$D$8))) -> 629.6390851 | H115: =($C115)*(1-((H$41-1)*('Detailed Inputs'!$D$8))) -> 626.4750696 | I115: =($C115)*(1-((I$41-1)*('Detailed Inputs'!$D$8))) -> 623.3110541 | J115: =($C115)*(1-((J$41-1)*('Detailed Inputs'!$D$8))) -> 620.1470386 | K115: =($C115)*(1-((K$41-1)*('Detailed Inputs'!$D$8))) -> 616.9830231 | L115: =($C115)*(1-((L$41-1)*('Detailed Inputs'!$D$8))) -> 613.8190076 | M115: =($C115)*(1-((M$41-1)*('Detailed Inputs'!$D$8))) -> 610.6549921 | N115: =($C115)*(1-((N$41-1)*('Detailed Inputs'!$D$8))) -> 607.4909766 | O115: =($C115)*(1-((O$41-1)*('Detailed Inputs'!$D$8))) -> 604.3269611 | P115: =($C115)*(1-((P$41-1)*('Detailed Inputs'!$D$8))) -> 601.1629456 | Q115: =($C115)*(1-((Q$41-1)*('Detailed Inputs'!$D$8))) -> 597.9989301 | R115: =($C115)*(1-((R$41-1)*('Detailed Inputs'!$D$8))) -> 594.8349146 | S115: =($C115)*(1-((S$41-1)*('Detailed Inputs'!$D$8))) -> 591.670899 | T115: =($C115)*(1-((T$41-1)*('Detailed Inputs'!$D$8))) -> 588.5068835 | U115: =($C115)*(1-((U$41-1)*('Detailed Inputs'!$D$8))) -> 585.342868 | V115: =($C115)*(1-((V$41-1)*('Detailed Inputs'!$D$8))) -> 582.1788525 | W115: =($C115)*(1-((W$41-1)*('Detailed Inputs'!$D$8))) -> 579.014837 | X115: =($C115)*(1-((X$41-1)*('Detailed Inputs'!$D$8))) -> 575.8508215 | Y115: =($C115)*(1-((Y$41-1)*('Detailed Inputs'!$D$8))) -> 572.686806 | Z115: =($C115)*(1-((Z$41-1)*('Detailed Inputs'!$D$8))) -> 569.5227905 | AA115: =($C115)*(1-((AA$41-1)*('Detailed Inputs'!$D$8))) -> 566.358775 | AB115: =($C115)*(1-((AB$41-1)*('Detailed Inputs'!$D$8))) -> 563.1947595 | AC115: =($C115)*(1-((AC$41-1)*('Detailed Inputs'!$D$8))) -> 560.030744 | AD115: =($C115)*(1-((AD$41-1)*('Detailed Inputs'!$D$8))) -> 556.8667285
B116: October | C116: =IF('Detailed Inputs'!$H$28="PV Watts",'Detailed Inputs'!D58,'Detailed Inputs'!H58) -> 520.6783447 | D116: kWh's per mo. | F116: =($C116)*(1-((F$41-1)*('Detailed Inputs'!$D$8))) -> 520.6783447 | G116: =($C116)*(1-((G$41-1)*('Detailed Inputs'!$D$8))) -> 518.074953 | H116: =($C116)*(1-((H$41-1)*('Detailed Inputs'!$D$8))) -> 515.4715613 | I116: =($C116)*(1-((I$41-1)*('Detailed Inputs'!$D$8))) -> 512.8681696 | J116: =($C116)*(1-((J$41-1)*('Detailed Inputs'!$D$8))) -> 510.2647778 | K116: =($C116)*(1-((K$41-1)*('Detailed Inputs'!$D$8))) -> 507.6613861 | L116: =($C116)*(1-((L$41-1)*('Detailed Inputs'!$D$8))) -> 505.0579944 | M116: =($C116)*(1-((M$41-1)*('Detailed Inputs'!$D$8))) -> 502.4546027 | N116: =($C116)*(1-((N$41-1)*('Detailed Inputs'!$D$8))) -> 499.8512109 | O116: =($C116)*(1-((O$41-1)*('Detailed Inputs'!$D$8))) -> 497.2478192 | P116: =($C116)*(1-((P$41-1)*('Detailed Inputs'!$D$8))) -> 494.6444275 | Q116: =($C116)*(1-((Q$41-1)*('Detailed Inputs'!$D$8))) -> 492.0410358 | R116: =($C116)*(1-((R$41-1)*('Detailed Inputs'!$D$8))) -> 489.437644 | S116: =($C116)*(1-((S$41-1)*('Detailed Inputs'!$D$8))) -> 486.8342523 | T116: =($C116)*(1-((T$41-1)*('Detailed Inputs'!$D$8))) -> 484.2308606 | U116: =($C116)*(1-((U$41-1)*('Detailed Inputs'!$D$8))) -> 481.6274689 | V116: =($C116)*(1-((V$41-1)*('Detailed Inputs'!$D$8))) -> 479.0240771 | W116: =($C116)*(1-((W$41-1)*('Detailed Inputs'!$D$8))) -> 476.4206854 | X116: =($C116)*(1-((X$41-1)*('Detailed Inputs'!$D$8))) -> 473.8172937 | Y116: =($C116)*(1-((Y$41-1)*('Detailed Inputs'!$D$8))) -> 471.213902 | Z116: =($C116)*(1-((Z$41-1)*('Detailed Inputs'!$D$8))) -> 468.6105103 | AA116: =($C116)*(1-((AA$41-1)*('Detailed Inputs'!$D$8))) -> 466.0071185 | AB116: =($C116)*(1-((AB$41-1)*('Detailed Inputs'!$D$8))) -> 463.4037268 | AC116: =($C116)*(1-((AC$41-1)*('Detailed Inputs'!$D$8))) -> 460.8003351 | AD116: =($C116)*(1-((AD$41-1)*('Detailed Inputs'!$D$8))) -> 458.1969434
B117: November | C117: =IF('Detailed Inputs'!$H$28="PV Watts",'Detailed Inputs'!D59,'Detailed Inputs'!H59) -> 323.7162781 | D117: kWh's per mo. | F117: =($C117)*(1-((F$41-1)*('Detailed Inputs'!$D$8))) -> 323.7162781 | G117: =($C117)*(1-((G$41-1)*('Detailed Inputs'!$D$8))) -> 322.0976967 | H117: =($C117)*(1-((H$41-1)*('Detailed Inputs'!$D$8))) -> 320.4791153 | I117: =($C117)*(1-((I$41-1)*('Detailed Inputs'!$D$8))) -> 318.8605339 | J117: =($C117)*(1-((J$41-1)*('Detailed Inputs'!$D$8))) -> 317.2419525 | K117: =($C117)*(1-((K$41-1)*('Detailed Inputs'!$D$8))) -> 315.6233711 | L117: =($C117)*(1-((L$41-1)*('Detailed Inputs'!$D$8))) -> 314.0047897 | M117: =($C117)*(1-((M$41-1)*('Detailed Inputs'!$D$8))) -> 312.3862083 | N117: =($C117)*(1-((N$41-1)*('Detailed Inputs'!$D$8))) -> 310.767627 | O117: =($C117)*(1-((O$41-1)*('Detailed Inputs'!$D$8))) -> 309.1490456 | P117: =($C117)*(1-((P$41-1)*('Detailed Inputs'!$D$8))) -> 307.5304642 | Q117: =($C117)*(1-((Q$41-1)*('Detailed Inputs'!$D$8))) -> 305.9118828 | R117: =($C117)*(1-((R$41-1)*('Detailed Inputs'!$D$8))) -> 304.2933014 | S117: =($C117)*(1-((S$41-1)*('Detailed Inputs'!$D$8))) -> 302.67472 | T117: =($C117)*(1-((T$41-1)*('Detailed Inputs'!$D$8))) -> 301.0561386 | U117: =($C117)*(1-((U$41-1)*('Detailed Inputs'!$D$8))) -> 299.4375572 | V117: =($C117)*(1-((V$41-1)*('Detailed Inputs'!$D$8))) -> 297.8189758 | W117: =($C117)*(1-((W$41-1)*('Detailed Inputs'!$D$8))) -> 296.2003944 | X117: =($C117)*(1-((X$41-1)*('Detailed Inputs'!$D$8))) -> 294.581813 | Y117: =($C117)*(1-((Y$41-1)*('Detailed Inputs'!$D$8))) -> 292.9632317 | Z117: =($C117)*(1-((Z$41-1)*('Detailed Inputs'!$D$8))) -> 291.3446503 | AA117: =($C117)*(1-((AA$41-1)*('Detailed Inputs'!$D$8))) -> 289.7260689 | AB117: =($C117)*(1-((AB$41-1)*('Detailed Inputs'!$D$8))) -> 288.1074875 | AC117: =($C117)*(1-((AC$41-1)*('Detailed Inputs'!$D$8))) -> 286.4889061 | AD117: =($C117)*(1-((AD$41-1)*('Detailed Inputs'!$D$8))) -> 284.8703247
B118: December | C118: =IF('Detailed Inputs'!$H$28="PV Watts",'Detailed Inputs'!D60,'Detailed Inputs'!H60) -> 270.3334045 | D118: kWh's per mo. | F118: =($C118)*(1-((F$41-1)*('Detailed Inputs'!$D$8))) -> 270.3334045 | G118: =($C118)*(1-((G$41-1)*('Detailed Inputs'!$D$8))) -> 268.9817375 | H118: =($C118)*(1-((H$41-1)*('Detailed Inputs'!$D$8))) -> 267.6300705 | I118: =($C118)*(1-((I$41-1)*('Detailed Inputs'!$D$8))) -> 266.2784035 | J118: =($C118)*(1-((J$41-1)*('Detailed Inputs'!$D$8))) -> 264.9267365 | K118: =($C118)*(1-((K$41-1)*('Detailed Inputs'!$D$8))) -> 263.5750694 | L118: =($C118)*(1-((L$41-1)*('Detailed Inputs'!$D$8))) -> 262.2234024 | M118: =($C118)*(1-((M$41-1)*('Detailed Inputs'!$D$8))) -> 260.8717354 | N118: =($C118)*(1-((N$41-1)*('Detailed Inputs'!$D$8))) -> 259.5200684 | O118: =($C118)*(1-((O$41-1)*('Detailed Inputs'!$D$8))) -> 258.1684013 | P118: =($C118)*(1-((P$41-1)*('Detailed Inputs'!$D$8))) -> 256.8167343 | Q118: =($C118)*(1-((Q$41-1)*('Detailed Inputs'!$D$8))) -> 255.4650673 | R118: =($C118)*(1-((R$41-1)*('Detailed Inputs'!$D$8))) -> 254.1134003 | S118: =($C118)*(1-((S$41-1)*('Detailed Inputs'!$D$8))) -> 252.7617332 | T118: =($C118)*(1-((T$41-1)*('Detailed Inputs'!$D$8))) -> 251.4100662 | U118: =($C118)*(1-((U$41-1)*('Detailed Inputs'!$D$8))) -> 250.0583992 | V118: =($C118)*(1-((V$41-1)*('Detailed Inputs'!$D$8))) -> 248.7067322 | W118: =($C118)*(1-((W$41-1)*('Detailed Inputs'!$D$8))) -> 247.3550652 | X118: =($C118)*(1-((X$41-1)*('Detailed Inputs'!$D$8))) -> 246.0033981 | Y118: =($C118)*(1-((Y$41-1)*('Detailed Inputs'!$D$8))) -> 244.6517311 | Z118: =($C118)*(1-((Z$41-1)*('Detailed Inputs'!$D$8))) -> 243.3000641 | AA118: =($C118)*(1-((AA$41-1)*('Detailed Inputs'!$D$8))) -> 241.9483971 | AB118: =($C118)*(1-((AB$41-1)*('Detailed Inputs'!$D$8))) -> 240.59673 | AC118: =($C118)*(1-((AC$41-1)*('Detailed Inputs'!$D$8))) -> 239.245063 | AD118: =($C118)*(1-((AD$41-1)*('Detailed Inputs'!$D$8))) -> 237.893396
B119: Annual | C119: =SUM(C107:C118) -> 7341.915436 | D119: kWh's per yr. | F119: =SUM(F107:F118) -> 7341.915436 | G119: 7305.205859 | H119: 7268.496281 | I119: 7231.786704 | J119: 7195.077127 | K119: 7158.36755 | L119: 7121.657973 | M119: 7084.948396 | N119: 7048.238818 | O119: 7011.529241 | P119: 6974.819664 | Q119: 6938.110087 | R119: 6901.40051 | S119: 6864.690932 | T119: 6827.981355 | U119: 6791.271778 | V119: 6754.562201 | W119: 6717.852624 | X119: 6681.143047 | Y119: 6644.433469 | Z119: 6607.723892 | AA119: 6571.014315 | AB119: 6534.304738 | AC119: 6497.595161 | AD119: 6460.885583
B121: Customer Electricity Rates
B122: Customer Electricity Rate - Load 1
B123: Month | C123: Rate ($/kWh)
B124: January | C124: =CustomerRate1 -> 0.105 | D124: $/kWh | F124: =C124 -> 0.105 | G124: =F124*(1+EnergyEscalation) -> 0.1071 | H124: 0.109242 | I124: 0.11142684 | J124: 0.1136553768 | K124: 0.1159284843 | L124: 0.118247054 | M124: 0.1206119951 | N124: 0.123024235 | O124: 0.1254847197 | P124: 0.1279944141 | Q124: 0.1305543024 | R124: 0.1331653884 | S124: 0.1358286962 | T124: 0.1385452701 | U124: 0.1413161755 | V124: 0.144142499 | W124: 0.147025349 | X124: 0.149965856 | Y124: 0.1529651731 | Z124: 0.1560244766 | AA124: 0.1591449661 | AB124: 0.1623278654 | AC124: 0.1655744227 | AD124: 0.1688859112
B125: February | C125: 0.105 | D125: $/kWh | F125: 0.105 | G125: =F125*(1+EnergyEscalation) -> 0.1071 | H125: 0.109242 | I125: 0.11142684 | J125: 0.1136553768 | K125: 0.1159284843 | L125: 0.118247054 | M125: 0.1206119951 | N125: 0.123024235 | O125: 0.1254847197 | P125: 0.1279944141 | Q125: 0.1305543024 | R125: 0.1331653884 | S125: 0.1358286962 | T125: 0.1385452701 | U125: 0.1413161755 | V125: 0.144142499 | W125: 0.147025349 | X125: 0.149965856 | Y125: 0.1529651731 | Z125: 0.1560244766 | AA125: 0.1591449661 | AB125: 0.1623278654 | AC125: 0.1655744227 | AD125: 0.1688859112
B126: March | C126: 0.105 | D126: $/kWh | F126: 0.105 | G126: =F126*(1+EnergyEscalation) -> 0.1071 | H126: 0.109242 | I126: 0.11142684 | J126: 0.1136553768 | K126: 0.1159284843 | L126: 0.118247054 | M126: 0.1206119951 | N126: 0.123024235 | O126: 0.1254847197 | P126: 0.1279944141 | Q126: 0.1305543024 | R126: 0.1331653884 | S126: 0.1358286962 | T126: 0.1385452701 | U126: 0.1413161755 | V126: 0.144142499 | W126: 0.147025349 | X126: 0.149965856 | Y126: 0.1529651731 | Z126: 0.1560244766 | AA126: 0.1591449661 | AB126: 0.1623278654 | AC126: 0.1655744227 | AD126: 0.1688859112
B127: April | C127: 0.105 | D127: $/kWh | F127: 0.105 | G127: =F127*(1+EnergyEscalation) -> 0.1071 | H127: 0.109242 | I127: 0.11142684 | J127: 0.1136553768 | K127: 0.1159284843 | L127: 0.118247054 | M127: 0.1206119951 | N127: 0.123024235 | O127: 0.1254847197 | P127: 0.1279944141 | Q127: 0.1305543024 | R127: 0.1331653884 | S127: 0.1358286962 | T127: 0.1385452701 | U127: 0.1413161755 | V127: 0.144142499 | W127: 0.147025349 | X127: 0.149965856 | Y127: 0.1529651731 | Z127: 0.1560244766 | AA127: 0.1591449661 | AB127: 0.1623278654 | AC127: 0.1655744227 | AD127: 0.1688859112
B128: May | C128: 0.105 | D128: $/kWh | F128: 0.105 | G128: =F128*(1+EnergyEscalation) -> 0.1071 | H128: 0.109242 | I128: 0.11142684 | J128: 0.1136553768 | K128: 0.1159284843 | L128: 0.118247054 | M128: 0.1206119951 | N128: 0.123024235 | O128: 0.1254847197 | P128: 0.1279944141 | Q128: 0.1305543024 | R128: 0.1331653884 | S128: 0.1358286962 | T128: 0.1385452701 | U128: 0.1413161755 | V128: 0.144142499 | W128: 0.147025349 | X128: 0.149965856 | Y128: 0.1529651731 | Z128: 0.1560244766 | AA128: 0.1591449661 | AB128: 0.1623278654 | AC128: 0.1655744227 | AD128: 0.1688859112
B129: June | C129: 0.105 | D129: $/kWh | F129: 0.105 | G129: =F129*(1+EnergyEscalation) -> 0.1071 | H129: 0.109242 | I129: 0.11142684 | J129: 0.1136553768 | K129: 0.1159284843 | L129: 0.118247054 | M129: 0.1206119951 | N129: 0.123024235 | O129: 0.1254847197 | P129: 0.1279944141 | Q129: 0.1305543024 | R129: 0.1331653884 | S129: 0.1358286962 | T129: 0.1385452701 | U129: 0.1413161755 | V129: 0.144142499 | W129: 0.147025349 | X129: 0.149965856 | Y129: 0.1529651731 | Z129: 0.1560244766 | AA129: 0.1591449661 | AB129: 0.1623278654 | AC129: 0.1655744227 | AD129: 0.1688859112
B130: July | C130: 0.105 | D130: $/kWh | F130: 0.105 | G130: =F130*(1+EnergyEscalation) -> 0.1071 | H130: 0.109242 | I130: 0.11142684 | J130: 0.1136553768 | K130: 0.1159284843 | L130: 0.118247054 | M130: 0.1206119951 | N130: 0.123024235 | O130: 0.1254847197 | P130: 0.1279944141 | Q130: 0.1305543024 | R130: 0.1331653884 | S130: 0.1358286962 | T130: 0.1385452701 | U130: 0.1413161755 | V130: 0.144142499 | W130: 0.147025349 | X130: 0.149965856 | Y130: 0.1529651731 | Z130: 0.1560244766 | AA130: 0.1591449661 | AB130: 0.1623278654 | AC130: 0.1655744227 | AD130: 0.1688859112
B131: August | C131: 0.105 | D131: $/kWh | F131: 0.105 | G131: =F131*(1+EnergyEscalation) -> 0.1071 | H131: 0.109242 | I131: 0.11142684 | J131: 0.1136553768 | K131: 0.1159284843 | L131: 0.118247054 | M131: 0.1206119951 | N131: 0.123024235 | O131: 0.1254847197 | P131: 0.1279944141 | Q131: 0.1305543024 | R131: 0.1331653884 | S131: 0.1358286962 | T131: 0.1385452701 | U131: 0.1413161755 | V131: 0.144142499 | W131: 0.147025349 | X131: 0.149965856 | Y131: 0.1529651731 | Z131: 0.1560244766 | AA131: 0.1591449661 | AB131: 0.1623278654 | AC131: 0.1655744227 | AD131: 0.1688859112
B132: September | C132: 0.105 | D132: $/kWh | F132: 0.105 | G132: =F132*(1+EnergyEscalation) -> 0.1071 | H132: 0.109242 | I132: 0.11142684 | J132: 0.1136553768 | K132: 0.1159284843 | L132: 0.118247054 | M132: 0.1206119951 | N132: 0.123024235 | O132: 0.1254847197 | P132: 0.1279944141 | Q132: 0.1305543024 | R132: 0.1331653884 | S132: 0.1358286962 | T132: 0.1385452701 | U132: 0.1413161755 | V132: 0.144142499 | W132: 0.147025349 | X132: 0.149965856 | Y132: 0.1529651731 | Z132: 0.1560244766 | AA132: 0.1591449661 | AB132: 0.1623278654 | AC132: 0.1655744227 | AD132: 0.1688859112
B133: October | C133: 0.105 | D133: $/kWh | F133: 0.105 | G133: =F133*(1+EnergyEscalation) -> 0.1071 | H133: 0.109242 | I133: 0.11142684 | J133: 0.1136553768 | K133: 0.1159284843 | L133: 0.118247054 | M133: 0.1206119951 | N133: 0.123024235 | O133: 0.1254847197 | P133: 0.1279944141 | Q133: 0.1305543024 | R133: 0.1331653884 | S133: 0.1358286962 | T133: 0.1385452701 | U133: 0.1413161755 | V133: 0.144142499 | W133: 0.147025349 | X133: 0.149965856 | Y133: 0.1529651731 | Z133: 0.1560244766 | AA133: 0.1591449661 | AB133: 0.1623278654 | AC133: 0.1655744227 | AD133: 0.1688859112
B134: November | C134: 0.105 | D134: $/kWh | F134: 0.105 | G134: =F134*(1+EnergyEscalation) -> 0.1071 | H134: 0.109242 | I134: 0.11142684 | J134: 0.1136553768 | K134: 0.1159284843 | L134: 0.118247054 | M134: 0.1206119951 | N134: 0.123024235 | O134: 0.1254847197 | P134: 0.1279944141 | Q134: 0.1305543024 | R134: 0.1331653884 | S134: 0.1358286962 | T134: 0.1385452701 | U134: 0.1413161755 | V134: 0.144142499 | W134: 0.147025349 | X134: 0.149965856 | Y134: 0.1529651731 | Z134: 0.1560244766 | AA134: 0.1591449661 | AB134: 0.1623278654 | AC134: 0.1655744227 | AD134: 0.1688859112
B135: December | C135: 0.105 | D135: $/kWh | F135: 0.105 | G135: =F135*(1+EnergyEscalation) -> 0.1071 | H135: 0.109242 | I135: 0.11142684 | J135: 0.1136553768 | K135: 0.1159284843 | L135: 0.118247054 | M135: 0.1206119951 | N135: 0.123024235 | O135: 0.1254847197 | P135: 0.1279944141 | Q135: 0.1305543024 | R135: 0.1331653884 | S135: 0.1358286962 | T135: 0.1385452701 | U135: 0.1413161755 | V135: 0.144142499 | W135: 0.147025349 | X135: 0.149965856 | Y135: 0.1529651731 | Z135: 0.1560244766 | AA135: 0.1591449661 | AB135: 0.1623278654 | AC135: 0.1655744227 | AD135: 0.1688859112
B137: Customer Electricity Rate - Load 2
B138: Month | C138: Rate ($/kWh)
B139: January | C139: =CustomerRate2 -> 0.105 | D139: $/kWh | F139: =C139 -> 0.105 | G139: =F139*(1+EnergyEscalation) -> 0.1071 | H139: 0.109242 | I139: 0.11142684 | J139: 0.1136553768 | K139: 0.1159284843 | L139: 0.118247054 | M139: 0.1206119951 | N139: 0.123024235 | O139: 0.1254847197 | P139: 0.1279944141 | Q139: 0.1305543024 | R139: 0.1331653884 | S139: 0.1358286962 | T139: 0.1385452701 | U139: 0.1413161755 | V139: 0.144142499 | W139: 0.147025349 | X139: 0.149965856 | Y139: 0.1529651731 | Z139: 0.1560244766 | AA139: 0.1591449661 | AB139: 0.1623278654 | AC139: 0.1655744227 | AD139: 0.1688859112
B140: February | C140: 0.105 | D140: $/kWh | F140: 0.105 | G140: =F140*(1+EnergyEscalation) -> 0.1071 | H140: 0.109242 | I140: 0.11142684 | J140: 0.1136553768 | K140: 0.1159284843 | L140: 0.118247054 | M140: 0.1206119951 | N140: 0.123024235 | O140: 0.1254847197 | P140: 0.1279944141 | Q140: 0.1305543024 | R140: 0.1331653884 | S140: 0.1358286962 | T140: 0.1385452701 | U140: 0.1413161755 | V140: 0.144142499 | W140: 0.147025349 | X140: 0.149965856 | Y140: 0.1529651731 | Z140: 0.1560244766 | AA140: 0.1591449661 | AB140: 0.1623278654 | AC140: 0.1655744227 | AD140: 0.1688859112
B141: March | C141: 0.105 | D141: $/kWh | F141: 0.105 | G141: =F141*(1+EnergyEscalation) -> 0.1071 | H141: 0.109242 | I141: 0.11142684 | J141: 0.1136553768 | K141: 0.1159284843 | L141: 0.118247054 | M141: 0.1206119951 | N141: 0.123024235 | O141: 0.1254847197 | P141: 0.1279944141 | Q141: 0.1305543024 | R141: 0.1331653884 | S141: 0.1358286962 | T141: 0.1385452701 | U141: 0.1413161755 | V141: 0.144142499 | W141: 0.147025349 | X141: 0.149965856 | Y141: 0.1529651731 | Z141: 0.1560244766 | AA141: 0.1591449661 | AB141: 0.1623278654 | AC141: 0.1655744227 | AD141: 0.1688859112
B142: April | C142: 0.105 | D142: $/kWh | F142: 0.105 | G142: =F142*(1+EnergyEscalation) -> 0.1071 | H142: 0.109242 | I142: 0.11142684 | J142: 0.1136553768 | K142: 0.1159284843 | L142: 0.118247054 | M142: 0.1206119951 | N142: 0.123024235 | O142: 0.1254847197 | P142: 0.1279944141 | Q142: 0.1305543024 | R142: 0.1331653884 | S142: 0.1358286962 | T142: 0.1385452701 | U142: 0.1413161755 | V142: 0.144142499 | W142: 0.147025349 | X142: 0.149965856 | Y142: 0.1529651731 | Z142: 0.1560244766 | AA142: 0.1591449661 | AB142: 0.1623278654 | AC142: 0.1655744227 | AD142: 0.1688859112
B143: May | C143: 0.105 | D143: $/kWh | F143: 0.105 | G143: =F143*(1+EnergyEscalation) -> 0.1071 | H143: 0.109242 | I143: 0.11142684 | J143: 0.1136553768 | K143: 0.1159284843 | L143: 0.118247054 | M143: 0.1206119951 | N143: 0.123024235 | O143: 0.1254847197 | P143: 0.1279944141 | Q143: 0.1305543024 | R143: 0.1331653884 | S143: 0.1358286962 | T143: 0.1385452701 | U143: 0.1413161755 | V143: 0.144142499 | W143: 0.147025349 | X143: 0.149965856 | Y143: 0.1529651731 | Z143: 0.1560244766 | AA143: 0.1591449661 | AB143: 0.1623278654 | AC143: 0.1655744227 | AD143: 0.1688859112
B144: June | C144: 0.105 | D144: $/kWh | F144: 0.105 | G144: =F144*(1+EnergyEscalation) -> 0.1071 | H144: 0.109242 | I144: 0.11142684 | J144: 0.1136553768 | K144: 0.1159284843 | L144: 0.118247054 | M144: 0.1206119951 | N144: 0.123024235 | O144: 0.1254847197 | P144: 0.1279944141 | Q144: 0.1305543024 | R144: 0.1331653884 | S144: 0.1358286962 | T144: 0.1385452701 | U144: 0.1413161755 | V144: 0.144142499 | W144: 0.147025349 | X144: 0.149965856 | Y144: 0.1529651731 | Z144: 0.1560244766 | AA144: 0.1591449661 | AB144: 0.1623278654 | AC144: 0.1655744227 | AD144: 0.1688859112
B145: July | C145: 0.105 | D145: $/kWh | F145: 0.105 | G145: =F145*(1+EnergyEscalation) -> 0.1071 | H145: 0.109242 | I145: 0.11142684 | J145: 0.1136553768 | K145: 0.1159284843 | L145: 0.118247054 | M145: 0.1206119951 | N145: 0.123024235 | O145: 0.1254847197 | P145: 0.1279944141 | Q145: 0.1305543024 | R145: 0.1331653884 | S145: 0.1358286962 | T145: 0.1385452701 | U145: 0.1413161755 | V145: 0.144142499 | W145: 0.147025349 | X145: 0.149965856 | Y145: 0.1529651731 | Z145: 0.1560244766 | AA145: 0.1591449661 | AB145: 0.1623278654 | AC145: 0.1655744227 | AD145: 0.1688859112
B146: August | C146: 0.105 | D146: $/kWh | F146: 0.105 | G146: =F146*(1+EnergyEscalation) -> 0.1071 | H146: 0.109242 | I146: 0.11142684 | J146: 0.1136553768 | K146: 0.1159284843 | L146: 0.118247054 | M146: 0.1206119951 | N146: 0.123024235 | O146: 0.1254847197 | P146: 0.1279944141 | Q146: 0.1305543024 | R146: 0.1331653884 | S146: 0.1358286962 | T146: 0.1385452701 | U146: 0.1413161755 | V146: 0.144142499 | W146: 0.147025349 | X146: 0.149965856 | Y146: 0.1529651731 | Z146: 0.1560244766 | AA146: 0.1591449661 | AB146: 0.1623278654 | AC146: 0.1655744227 | AD146: 0.1688859112
B147: September | C147: 0.105 | D147: $/kWh | F147: 0.105 | G147: =F147*(1+EnergyEscalation) -> 0.1071 | H147: 0.109242 | I147: 0.11142684 | J147: 0.1136553768 | K147: 0.1159284843 | L147: 0.118247054 | M147: 0.1206119951 | N147: 0.123024235 | O147: 0.1254847197 | P147: 0.1279944141 | Q147: 0.1305543024 | R147: 0.1331653884 | S147: 0.1358286962 | T147: 0.1385452701 | U147: 0.1413161755 | V147: 0.144142499 | W147: 0.147025349 | X147: 0.149965856 | Y147: 0.1529651731 | Z147: 0.1560244766 | AA147: 0.1591449661 | AB147: 0.1623278654 | AC147: 0.1655744227 | AD147: 0.1688859112
B148: October | C148: 0.105 | D148: $/kWh | F148: 0.105 | G148: =F148*(1+EnergyEscalation) -> 0.1071 | H148: 0.109242 | I148: 0.11142684 | J148: 0.1136553768 | K148: 0.1159284843 | L148: 0.118247054 | M148: 0.1206119951 | N148: 0.123024235 | O148: 0.1254847197 | P148: 0.1279944141 | Q148: 0.1305543024 | R148: 0.1331653884 | S148: 0.1358286962 | T148: 0.1385452701 | U148: 0.1413161755 | V148: 0.144142499 | W148: 0.147025349 | X148: 0.149965856 | Y148: 0.1529651731 | Z148: 0.1560244766 | AA148: 0.1591449661 | AB148: 0.1623278654 | AC148: 0.1655744227 | AD148: 0.1688859112
B149: November | C149: 0.105 | D149: $/kWh | F149: 0.105 | G149: =F149*(1+EnergyEscalation) -> 0.1071 | H149: 0.109242 | I149: 0.11142684 | J149: 0.1136553768 | K149: 0.1159284843 | L149: 0.118247054 | M149: 0.1206119951 | N149: 0.123024235 | O149: 0.1254847197 | P149: 0.1279944141 | Q149: 0.1305543024 | R149: 0.1331653884 | S149: 0.1358286962 | T149: 0.1385452701 | U149: 0.1413161755 | V149: 0.144142499 | W149: 0.147025349 | X149: 0.149965856 | Y149: 0.1529651731 | Z149: 0.1560244766 | AA149: 0.1591449661 | AB149: 0.1623278654 | AC149: 0.1655744227 | AD149: 0.1688859112
B150: December | C150: 0.105 | D150: $/kWh | F150: 0.105 | G150: =F150*(1+EnergyEscalation) -> 0.1071 | H150: 0.109242 | I150: 0.11142684 | J150: 0.1136553768 | K150: 0.1159284843 | L150: 0.118247054 | M150: 0.1206119951 | N150: 0.123024235 | O150: 0.1254847197 | P150: 0.1279944141 | Q150: 0.1305543024 | R150: 0.1331653884 | S150: 0.1358286962 | T150: 0.1385452701 | U150: 0.1413161755 | V150: 0.144142499 | W150: 0.147025349 | X150: 0.149965856 | Y150: 0.1529651731 | Z150: 0.1560244766 | AA150: 0.1591449661 | AB150: 0.1623278654 | AC150: 0.1655744227 | AD150: 0.1688859112
B152: PPA Payments
B153: Customer Fixed PPA Rate
B154: Month | C154: Rate ($/kWh)
B155: January | C155: =FixedPPARate -> 0 | D155: $/kWh | F155: =$C$155 -> 0 | G155: =F155*(1+PPARateIncrease) -> 0 | H155: 0 | I155: 0 | J155: 0 | K155: 0 | L155: 0 | M155: 0 | N155: 0 | O155: 0 | P155: 0 | Q155: 0 | R155: 0 | S155: 0 | T155: 0 | U155: 0 | V155: 0 | W155: 0 | X155: 0 | Y155: 0 | Z155: 0 | AA155: 0 | AB155: 0 | AC155: 0 | AD155: 0
B156: February | C156: 0 | D156: $/kWh | F156: =$C$156 -> 0 | G156: =F156*(1+PPARateIncrease) -> 0 | H156: 0 | I156: 0 | J156: 0 | K156: 0 | L156: 0 | M156: 0 | N156: 0 | O156: 0 | P156: 0 | Q156: 0 | R156: 0 | S156: 0 | T156: 0 | U156: 0 | V156: 0 | W156: 0 | X156: 0 | Y156: 0 | Z156: 0 | AA156: 0 | AB156: 0 | AC156: 0 | AD156: 0
B157: March | C157: 0 | D157: $/kWh | F157: =$C$157 -> 0 | G157: =F157*(1+PPARateIncrease) -> 0 | H157: 0 | I157: 0 | J157: 0 | K157: 0 | L157: 0 | M157: 0 | N157: 0 | O157: 0 | P157: 0 | Q157: 0 | R157: 0 | S157: 0 | T157: 0 | U157: 0 | V157: 0 | W157: 0 | X157: 0 | Y157: 0 | Z157: 0 | AA157: 0 | AB157: 0 | AC157: 0 | AD157: 0
B158: April | C158: 0 | D158: $/kWh | F158: =$C$158 -> 0 | G158: =F158*(1+PPARateIncrease) -> 0 | H158: 0 | I158: 0 | J158: 0 | K158: 0 | L158: 0 | M158: 0 | N158: 0 | O158: 0 | P158: 0 | Q158: 0 | R158: 0 | S158: 0 | T158: 0 | U158: 0 | V158: 0 | W158: 0 | X158: 0 | Y158: 0 | Z158: 0 | AA158: 0 | AB158: 0 | AC158: 0 | AD158: 0
B159: May | C159: 0 | D159: $/kWh | F159: =$C$159 -> 0 | G159: =F159*(1+PPARateIncrease) -> 0 | H159: 0 | I159: 0 | J159: 0 | K159: 0 | L159: 0 | M159: 0 | N159: 0 | O159: 0 | P159: 0 | Q159: 0 | R159: 0 | S159: 0 | T159: 0 | U159: 0 | V159: 0 | W159: 0 | X159: 0 | Y159: 0 | Z159: 0 | AA159: 0 | AB159: 0 | AC159: 0 | AD159: 0
B160: June | C160: 0 | D160: $/kWh | F160: =$C$160 -> 0 | G160: =F160*(1+PPARateIncrease) -> 0 | H160: 0 | I160: 0 | J160: 0 | K160: 0 | L160: 0 | M160: 0 | N160: 0 | O160: 0 | P160: 0 | Q160: 0 | R160: 0 | S160: 0 | T160: 0 | U160: 0 | V160: 0 | W160: 0 | X160: 0 | Y160: 0 | Z160: 0 | AA160: 0 | AB160: 0 | AC160: 0 | AD160: 0
B161: July | C161: 0 | D161: $/kWh | F161: =$C$161 -> 0 | G161: =F161*(1+PPARateIncrease) -> 0 | H161: 0 | I161: 0 | J161: 0 | K161: 0 | L161: 0 | M161: 0 | N161: 0 | O161: 0 | P161: 0 | Q161: 0 | R161: 0 | S161: 0 | T161: 0 | U161: 0 | V161: 0 | W161: 0 | X161: 0 | Y161: 0 | Z161: 0 | AA161: 0 | AB161: 0 | AC161: 0 | AD161: 0
B162: August | C162: 0 | D162: $/kWh | F162: =$C$162 -> 0 | G162: =F162*(1+PPARateIncrease) -> 0 | H162: 0 | I162: 0 | J162: 0 | K162: 0 | L162: 0 | M162: 0 | N162: 0 | O162: 0 | P162: 0 | Q162: 0 | R162: 0 | S162: 0 | T162: 0 | U162: 0 | V162: 0 | W162: 0 | X162: 0 | Y162: 0 | Z162: 0 | AA162: 0 | AB162: 0 | AC162: 0 | AD162: 0
B163: September | C163: 0 | D163: $/kWh | F163: =$C$163 -> 0 | G163: =F163*(1+PPARateIncrease) -> 0 | H163: 0 | I163: 0 | J163: 0 | K163: 0 | L163: 0 | M163: 0 | N163: 0 | O163: 0 | P163: 0 | Q163: 0 | R163: 0 | S163: 0 | T163: 0 | U163: 0 | V163: 0 | W163: 0 | X163: 0 | Y163: 0 | Z163: 0 | AA163: 0 | AB163: 0 | AC163: 0 | AD163: 0
B164: October | C164: 0 | D164: $/kWh | F164: =$C$164 -> 0 | G164: =F164*(1+PPARateIncrease) -> 0 | H164: 0 | I164: 0 | J164: 0 | K164: 0 | L164: 0 | M164: 0 | N164: 0 | O164: 0 | P164: 0 | Q164: 0 | R164: 0 | S164: 0 | T164: 0 | U164: 0 | V164: 0 | W164: 0 | X164: 0 | Y164: 0 | Z164: 0 | AA164: 0 | AB164: 0 | AC164: 0 | AD164: 0
B165: November | C165: 0 | D165: $/kWh | F165: =$C$165 -> 0 | G165: =F165*(1+PPARateIncrease) -> 0 | H165: 0 | I165: 0 | J165: 0 | K165: 0 | L165: 0 | M165: 0 | N165: 0 | O165: 0 | P165: 0 | Q165: 0 | R165: 0 | S165: 0 | T165: 0 | U165: 0 | V165: 0 | W165: 0 | X165: 0 | Y165: 0 | Z165: 0 | AA165: 0 | AB165: 0 | AC165: 0 | AD165: 0
B166: December | C166: 0 | D166: $/kWh | F166: =$C$166 -> 0 | G166: =F166*(1+PPARateIncrease) -> 0 | H166: 0 | I166: 0 | J166: 0 | K166: 0 | L166: 0 | M166: 0 | N166: 0 | O166: 0 | P166: 0 | Q166: 0 | R166: 0 | S166: 0 | T166: 0 | U166: 0 | V166: 0 | W166: 0 | X166: 0 | Y166: 0 | Z166: 0 | AA166: 0 | AB166: 0 | AC166: 0 | AD166: 0
B168: Customer Rate-Tied Percent PPA Rate (Tied to Load 1)
B169: Month | C169: Rate ($/kWh)
B170: January | C170: =CustomerRate1-(CustomerRate1*RateTiedSavingsPercent) -> 0.084 | D170: $/kWh | F170: =F124-(F124*RateTiedSavingsPercent) -> 0.084 | G170: 0.08568 | H170: 0.0873936 | I170: 0.089141472 | J170: 0.09092430144 | K170: 0.09274278747 | L170: 0.09459764322 | M170: 0.09648959608 | N170: 0.098419388 | O170: 0.1003877758 | P170: 0.1023955313 | Q170: 0.1044434419 | R170: 0.1065323107 | S170: 0.108662957 | T170: 0.1108362161 | U170: 0.1130529404 | V170: 0.1153139992 | W170: 0.1176202792 | X170: 0.1199726848 | Y170: 0.1223721385 | Z170: 0.1248195813 | AA170: 0.1273159729 | AB170: 0.1298622923 | AC170: 0.1324595382 | AD170: 0.135108729
B171: February | C171: 0.084 | D171: $/kWh | F171: =F125-(F125*RateTiedSavingsPercent) -> 0.084 | G171: 0.08568 | H171: 0.0873936 | I171: 0.089141472 | J171: 0.09092430144 | K171: 0.09274278747 | L171: 0.09459764322 | M171: 0.09648959608 | N171: 0.098419388 | O171: 0.1003877758 | P171: 0.1023955313 | Q171: 0.1044434419 | R171: 0.1065323107 | S171: 0.108662957 | T171: 0.1108362161 | U171: 0.1130529404 | V171: 0.1153139992 | W171: 0.1176202792 | X171: 0.1199726848 | Y171: 0.1223721385 | Z171: 0.1248195813 | AA171: 0.1273159729 | AB171: 0.1298622923 | AC171: 0.1324595382 | AD171: 0.135108729
B172: March | C172: 0.084 | D172: $/kWh | F172: =F126-(F126*RateTiedSavingsPercent) -> 0.084 | G172: 0.08568 | H172: 0.0873936 | I172: 0.089141472 | J172: 0.09092430144 | K172: 0.09274278747 | L172: 0.09459764322 | M172: 0.09648959608 | N172: 0.098419388 | O172: 0.1003877758 | P172: 0.1023955313 | Q172: 0.1044434419 | R172: 0.1065323107 | S172: 0.108662957 | T172: 0.1108362161 | U172: 0.1130529404 | V172: 0.1153139992 | W172: 0.1176202792 | X172: 0.1199726848 | Y172: 0.1223721385 | Z172: 0.1248195813 | AA172: 0.1273159729 | AB172: 0.1298622923 | AC172: 0.1324595382 | AD172: 0.135108729
B173: April | C173: 0.084 | D173: $/kWh | F173: =F127-(F127*RateTiedSavingsPercent) -> 0.084 | G173: 0.08568 | H173: 0.0873936 | I173: 0.089141472 | J173: 0.09092430144 | K173: 0.09274278747 | L173: 0.09459764322 | M173: 0.09648959608 | N173: 0.098419388 | O173: 0.1003877758 | P173: 0.1023955313 | Q173: 0.1044434419 | R173: 0.1065323107 | S173: 0.108662957 | T173: 0.1108362161 | U173: 0.1130529404 | V173: 0.1153139992 | W173: 0.1176202792 | X173: 0.1199726848 | Y173: 0.1223721385 | Z173: 0.1248195813 | AA173: 0.1273159729 | AB173: 0.1298622923 | AC173: 0.1324595382 | AD173: 0.135108729
B174: May | C174: 0.084 | D174: $/kWh | F174: =F128-(F128*RateTiedSavingsPercent) -> 0.084 | G174: 0.08568 | H174: 0.0873936 | I174: 0.089141472 | J174: 0.09092430144 | K174: 0.09274278747 | L174: 0.09459764322 | M174: 0.09648959608 | N174: 0.098419388 | O174: 0.1003877758 | P174: 0.1023955313 | Q174: 0.1044434419 | R174: 0.1065323107 | S174: 0.108662957 | T174: 0.1108362161 | U174: 0.1130529404 | V174: 0.1153139992 | W174: 0.1176202792 | X174: 0.1199726848 | Y174: 0.1223721385 | Z174: 0.1248195813 | AA174: 0.1273159729 | AB174: 0.1298622923 | AC174: 0.1324595382 | AD174: 0.135108729
B175: June | C175: 0.084 | D175: $/kWh | F175: =F129-(F129*RateTiedSavingsPercent) -> 0.084 | G175: 0.08568 | H175: 0.0873936 | I175: 0.089141472 | J175: 0.09092430144 | K175: 0.09274278747 | L175: 0.09459764322 | M175: 0.09648959608 | N175: 0.098419388 | O175: 0.1003877758 | P175: 0.1023955313 | Q175: 0.1044434419 | R175: 0.1065323107 | S175: 0.108662957 | T175: 0.1108362161 | U175: 0.1130529404 | V175: 0.1153139992 | W175: 0.1176202792 | X175: 0.1199726848 | Y175: 0.1223721385 | Z175: 0.1248195813 | AA175: 0.1273159729 | AB175: 0.1298622923 | AC175: 0.1324595382 | AD175: 0.135108729
B176: July | C176: 0.084 | D176: $/kWh | F176: =F130-(F130*RateTiedSavingsPercent) -> 0.084 | G176: 0.08568 | H176: 0.0873936 | I176: 0.089141472 | J176: 0.09092430144 | K176: 0.09274278747 | L176: 0.09459764322 | M176: 0.09648959608 | N176: 0.098419388 | O176: 0.1003877758 | P176: 0.1023955313 | Q176: 0.1044434419 | R176: 0.1065323107 | S176: 0.108662957 | T176: 0.1108362161 | U176: 0.1130529404 | V176: 0.1153139992 | W176: 0.1176202792 | X176: 0.1199726848 | Y176: 0.1223721385 | Z176: 0.1248195813 | AA176: 0.1273159729 | AB176: 0.1298622923 | AC176: 0.1324595382 | AD176: 0.135108729
B177: August | C177: 0.084 | D177: $/kWh | F177: =F131-(F131*RateTiedSavingsPercent) -> 0.084 | G177: 0.08568 | H177: 0.0873936 | I177: 0.089141472 | J177: 0.09092430144 | K177: 0.09274278747 | L177: 0.09459764322 | M177: 0.09648959608 | N177: 0.098419388 | O177: 0.1003877758 | P177: 0.1023955313 | Q177: 0.1044434419 | R177: 0.1065323107 | S177: 0.108662957 | T177: 0.1108362161 | U177: 0.1130529404 | V177: 0.1153139992 | W177: 0.1176202792 | X177: 0.1199726848 | Y177: 0.1223721385 | Z177: 0.1248195813 | AA177: 0.1273159729 | AB177: 0.1298622923 | AC177: 0.1324595382 | AD177: 0.135108729
B178: September | C178: 0.084 | D178: $/kWh | F178: =F132-(F132*RateTiedSavingsPercent) -> 0.084 | G178: 0.08568 | H178: 0.0873936 | I178: 0.089141472 | J178: 0.09092430144 | K178: 0.09274278747 | L178: 0.09459764322 | M178: 0.09648959608 | N178: 0.098419388 | O178: 0.1003877758 | P178: 0.1023955313 | Q178: 0.1044434419 | R178: 0.1065323107 | S178: 0.108662957 | T178: 0.1108362161 | U178: 0.1130529404 | V178: 0.1153139992 | W178: 0.1176202792 | X178: 0.1199726848 | Y178: 0.1223721385 | Z178: 0.1248195813 | AA178: 0.1273159729 | AB178: 0.1298622923 | AC178: 0.1324595382 | AD178: 0.135108729
B179: October | C179: 0.084 | D179: $/kWh | F179: =F133-(F133*RateTiedSavingsPercent) -> 0.084 | G179: 0.08568 | H179: 0.0873936 | I179: 0.089141472 | J179: 0.09092430144 | K179: 0.09274278747 | L179: 0.09459764322 | M179: 0.09648959608 | N179: 0.098419388 | O179: 0.1003877758 | P179: 0.1023955313 | Q179: 0.1044434419 | R179: 0.1065323107 | S179: 0.108662957 | T179: 0.1108362161 | U179: 0.1130529404 | V179: 0.1153139992 | W179: 0.1176202792 | X179: 0.1199726848 | Y179: 0.1223721385 | Z179: 0.1248195813 | AA179: 0.1273159729 | AB179: 0.1298622923 | AC179: 0.1324595382 | AD179: 0.135108729
B180: November | C180: 0.084 | D180: $/kWh | F180: =F134-(F134*RateTiedSavingsPercent) -> 0.084 | G180: 0.08568 | H180: 0.0873936 | I180: 0.089141472 | J180: 0.09092430144 | K180: 0.09274278747 | L180: 0.09459764322 | M180: 0.09648959608 | N180: 0.098419388 | O180: 0.1003877758 | P180: 0.1023955313 | Q180: 0.1044434419 | R180: 0.1065323107 | S180: 0.108662957 | T180: 0.1108362161 | U180: 0.1130529404 | V180: 0.1153139992 | W180: 0.1176202792 | X180: 0.1199726848 | Y180: 0.1223721385 | Z180: 0.1248195813 | AA180: 0.1273159729 | AB180: 0.1298622923 | AC180: 0.1324595382 | AD180: 0.135108729
B181: December | C181: 0.084 | D181: $/kWh | F181: =F135-(F135*RateTiedSavingsPercent) -> 0.084 | G181: 0.08568 | H181: 0.0873936 | I181: 0.089141472 | J181: 0.09092430144 | K181: 0.09274278747 | L181: 0.09459764322 | M181: 0.09648959608 | N181: 0.098419388 | O181: 0.1003877758 | P181: 0.1023955313 | Q181: 0.1044434419 | R181: 0.1065323107 | S181: 0.108662957 | T181: 0.1108362161 | U181: 0.1130529404 | V181: 0.1153139992 | W181: 0.1176202792 | X181: 0.1199726848 | Y181: 0.1223721385 | Z181: 0.1248195813 | AA181: 0.1273159729 | AB181: 0.1298622923 | AC181: 0.1324595382 | AD181: 0.135108729
B183: Customer Payment - Fixed PPA Rate
B184: Month | C184: Generation (kWh)
B185: January | C185: =C107 -> 349.1069031 | D185: $ per mo. | F185: =F107*F155 -> 0 | G185: 0 | H185: 0 | I185: 0 | J185: 0 | K185: 0 | L185: 0 | M185: 0 | N185: 0 | O185: 0 | P185: 0 | Q185: 0 | R185: 0 | S185: 0 | T185: 0 | U185: 0 | V185: 0 | W185: 0 | X185: 0 | Y185: 0 | Z185: 0 | AA185: 0 | AB185: 0 | AC185: 0 | AD185: 0
B186: February | C186: 435.9643555 | D186: $ per mo. | F186: =F108*F156 -> 0 | G186: 0 | H186: 0 | I186: 0 | J186: 0 | K186: 0 | L186: 0 | M186: 0 | N186: 0 | O186: 0 | P186: 0 | Q186: 0 | R186: 0 | S186: 0 | T186: 0 | U186: 0 | V186: 0 | W186: 0 | X186: 0 | Y186: 0 | Z186: 0 | AA186: 0 | AB186: 0 | AC186: 0 | AD186: 0
B187: March | C187: 619.3152466 | D187: $ per mo. | F187: =F109*F157 -> 0 | G187: 0 | H187: 0 | I187: 0 | J187: 0 | K187: 0 | L187: 0 | M187: 0 | N187: 0 | O187: 0 | P187: 0 | Q187: 0 | R187: 0 | S187: 0 | T187: 0 | U187: 0 | V187: 0 | W187: 0 | X187: 0 | Y187: 0 | Z187: 0 | AA187: 0 | AB187: 0 | AC187: 0 | AD187: 0
B188: April | C188: 749.0038452 | D188: $ per mo. | F188: =F110*F158 -> 0 | G188: 0 | H188: 0 | I188: 0 | J188: 0 | K188: 0 | L188: 0 | M188: 0 | N188: 0 | O188: 0 | P188: 0 | Q188: 0 | R188: 0 | S188: 0 | T188: 0 | U188: 0 | V188: 0 | W188: 0 | X188: 0 | Y188: 0 | Z188: 0 | AA188: 0 | AB188: 0 | AC188: 0 | AD188: 0
B189: May | C189: 889.4098511 | D189: $ per mo. | F189: =F111*F159 -> 0 | G189: 0 | H189: 0 | I189: 0 | J189: 0 | K189: 0 | L189: 0 | M189: 0 | N189: 0 | O189: 0 | P189: 0 | Q189: 0 | R189: 0 | S189: 0 | T189: 0 | U189: 0 | V189: 0 | W189: 0 | X189: 0 | Y189: 0 | Z189: 0 | AA189: 0 | AB189: 0 | AC189: 0 | AD189: 0
B190: June | C190: 880.8735352 | D190: $ per mo. | F190: =F112*F160 -> 0 | G190: 0 | H190: 0 | I190: 0 | J190: 0 | K190: 0 | L190: 0 | M190: 0 | N190: 0 | O190: 0 | P190: 0 | Q190: 0 | R190: 0 | S190: 0 | T190: 0 | U190: 0 | V190: 0 | W190: 0 | X190: 0 | Y190: 0 | Z190: 0 | AA190: 0 | AB190: 0 | AC190: 0 | AD190: 0
B191: July | C191: 908.548584 | D191: $ per mo. | F191: =F113*F161 -> 0 | G191: 0 | H191: 0 | I191: 0 | J191: 0 | K191: 0 | L191: 0 | M191: 0 | N191: 0 | O191: 0 | P191: 0 | Q191: 0 | R191: 0 | S191: 0 | T191: 0 | U191: 0 | V191: 0 | W191: 0 | X191: 0 | Y191: 0 | Z191: 0 | AA191: 0 | AB191: 0 | AC191: 0 | AD191: 0
B192: August | C192: 762.1619873 | D192: $ per mo. | F192: =F114*F162 -> 0 | G192: 0 | H192: 0 | I192: 0 | J192: 0 | K192: 0 | L192: 0 | M192: 0 | N192: 0 | O192: 0 | P192: 0 | Q192: 0 | R192: 0 | S192: 0 | T192: 0 | U192: 0 | V192: 0 | W192: 0 | X192: 0 | Y192: 0 | Z192: 0 | AA192: 0 | AB192: 0 | AC192: 0 | AD192: 0
B193: September | C193: 632.8031006 | D193: $ per mo. | F193: =F115*F163 -> 0 | G193: 0 | H193: 0 | I193: 0 | J193: 0 | K193: 0 | L193: 0 | M193: 0 | N193: 0 | O193: 0 | P193: 0 | Q193: 0 | R193: 0 | S193: 0 | T193: 0 | U193: 0 | V193: 0 | W193: 0 | X193: 0 | Y193: 0 | Z193: 0 | AA193: 0 | AB193: 0 | AC193: 0 | AD193: 0
B194: October | C194: 520.6783447 | D194: $ per mo. | F194: =F116*F164 -> 0 | G194: 0 | H194: 0 | I194: 0 | J194: 0 | K194: 0 | L194: 0 | M194: 0 | N194: 0 | O194: 0 | P194: 0 | Q194: 0 | R194: 0 | S194: 0 | T194: 0 | U194: 0 | V194: 0 | W194: 0 | X194: 0 | Y194: 0 | Z194: 0 | AA194: 0 | AB194: 0 | AC194: 0 | AD194: 0
B195: November | C195: 323.7162781 | D195: $ per mo. | F195: =F117*F165 -> 0 | G195: 0 | H195: 0 | I195: 0 | J195: 0 | K195: 0 | L195: 0 | M195: 0 | N195: 0 | O195: 0 | P195: 0 | Q195: 0 | R195: 0 | S195: 0 | T195: 0 | U195: 0 | V195: 0 | W195: 0 | X195: 0 | Y195: 0 | Z195: 0 | AA195: 0 | AB195: 0 | AC195: 0 | AD195: 0
B196: December | C196: 270.3334045 | D196: $ per mo. | F196: =F118*F166 -> 0 | G196: 0 | H196: 0 | I196: 0 | J196: 0 | K196: 0 | L196: 0 | M196: 0 | N196: 0 | O196: 0 | P196: 0 | Q196: 0 | R196: 0 | S196: 0 | T196: 0 | U196: 0 | V196: 0 | W196: 0 | X196: 0 | Y196: 0 | Z196: 0 | AA196: 0 | AB196: 0 | AC196: 0 | AD196: 0
B197: Annual | C197: =SUM(C185:C196) -> 7341.915436 | D197: $ per yr. | F197: =SUM(F185:F196) -> 0 | G197: 0 | H197: 0 | I197: 0 | J197: 0 | K197: 0 | L197: 0 | M197: 0 | N197: 0 | O197: 0 | P197: 0 | Q197: 0 | R197: 0 | S197: 0 | T197: 0 | U197: 0 | V197: 0 | W197: 0 | X197: 0 | Y197: 0 | Z197: 0 | AA197: 0 | AB197: 0 | AC197: 0 | AD197: 0
B199: Customer Payment - Rate-Tied Percent
B200: Month | C200: Generation (kWh)
B201: January | C201: =C107 -> 349.1069031 | D201: $ per mo. | F201: =F170*F107 -> 29.32497986 | G201: 29.76192206 | H201: 30.20461195 | I201: 30.65310468 | J201: 31.10745526 | K201: 31.56771863 | L201: 32.03394955 | M201: 32.50620263 | N201: 32.98453224 | O201: 33.46899256 | P201: 33.95963747 | Q201: 34.45652059 | R201: 34.95969518 | S201: 35.46921414 | T201: 35.98512998 | U201: 36.50749477 | V201: 37.0363601 | W201: 37.57177704 | X201: 38.11379612 | Y201: 38.66246725 | Z201: 39.21783971 | AA201: 39.77996208 | AB201: 40.34888221 | AC201: 40.92464716 | AD201: 41.50730315
B202: February | C202: 435.9643555 | D202: $ per mo. | F202: =F171*F108 -> 36.62100586 | G202: 37.16665885 | H202: 37.71948955 | I202: 38.27956682 | J202: 38.84695938 | K202: 39.42173582 | L202: 40.00396454 | M202: 40.59371371 | N202: 41.19105125 | O202: 41.79604482 | P202: 42.40876171 | Q202: 43.02926885 | R202: 43.65763278 | S202: 44.29391955 | T202: 44.93819475 | U202: 45.59052338 | V202: 46.25096988 | W202: 46.91959803 | X202: 47.59647092 | Y202: 48.28165089 | Z202: 48.97519947 | AA202: 49.67717732 | AB202: 50.38764422 | AC202: 51.10665892 | AD202: 51.83427914
B203: March | C203: 619.3152466 | D203: $ per mo. | F203: =F172*F109 -> 52.02248071 | G203: 52.79761568 | H203: 53.58294704 | I203: 54.37857262 | J203: 55.18459004 | K203: 56.00109673 | L203: 56.82818985 | M203: 57.66596626 | N203: 58.51452245 | O203: 59.3739545 | P203: 60.24435802 | Q203: 61.1258281 | R203: 62.01845924 | S203: 62.92234529 | T203: 63.83757941 | U203: 64.76425395 | V203: 65.70246044 | W203: 66.65228948 | X203: 67.61383071 | Y203: 68.58717267 | Z203: 69.57240277 | AA203: 70.56960721 | AB203: 71.57887087 | AC203: 72.60027723 | AD203: 73.63390829
B204: April | C204: 749.0038452 | D204: $ per mo. | F204: =F173*F110 -> 62.916323 | G204: 63.85377621 | H204: 64.80356102 | I204: 65.76579572 | J204: 66.74059837 | K204: 67.72808682 | L204: 68.72837856 | M204: 69.74159074 | N204: 70.76784006 | O204: 71.80724271 | P204: 72.85991433 | Q204: 73.92596992 | R204: 75.00552376 | S204: 76.09868938 | T204: 77.2055794 | U204: 78.32630556 | V204: 79.46097852 | W204: 80.60970789 | X204: 81.77260203 | Y204: 82.94976806 | Z204: 84.14131169 | AA204: 85.34733716 | AB204: 86.56794712 | AC204: 87.80324255 | AD204: 89.05332261
B205: May | C205: 889.4098511 | D205: $ per mo. | F205: =F174*F111 -> 74.71042749 | G205: 75.82361286 | H205: 76.95144147 | I205: 78.09405379 | J205: 79.25159001 | K205: 80.42419007 | L205: 81.61199349 | M205: 82.81513938 | N205: 84.0337663 | O205: 85.26801224 | P205: 86.51801451 | Q205: 87.78390967 | R205: 89.06583343 | S205: 90.36392058 | T205: 91.67830488 | U205: 93.00911898 | V205: 94.35649433 | W205: 95.72056104 | X205: 97.10144782 | Y205: 98.49928185 | Z205: 99.91418866 | AA205: 101.346292 | AB205: 102.7957139 | AC205: 104.2625741 | AD205: 105.7469904
B206: June | C206: 880.8735352 | D206: $ per mo. | F206: =F175*F112 -> 73.99337695 | G206: 75.09587827 | H206: 76.21288229 | I206: 77.34452812 | J206: 78.49095462 | K206: 79.65230038 | L206: 80.82870359 | M206: 82.020302 | N206: 83.22723287 | O206: 84.44963285 | P206: 85.68763794 | Q206: 86.94138338 | R206: 88.21100358 | S206: 89.49663204 | T206: 90.79840123 | U206: 92.11644254 | V206: 93.45088614 | W206: 94.80186091 | X206: 96.16949431 | Y206: 97.55391231 | Z206: 98.95523922 | AA206: 100.3735977 | AB206: 101.8091083 | AC206: 103.26189 | AD206: 104.7320593
B207: July | C207: 908.548584 | D207: $ per mo. | F207: =F176*F113 -> 76.31808105 | G207: 77.45522046 | H207: 78.60731821 | I207: 79.77451779 | J207: 80.95696242 | K207: 82.15479502 | L207: 83.36815815 | M207: 84.59719388 | N207: 85.84204378 | O207: 87.1028488 | P207: 88.3797492 | Q207: 89.67288448 | R207: 90.98239327 | S207: 92.30841326 | T207: 93.65108109 | U207: 95.01053226 | V207: 96.38690105 | W207: 97.78032039 | X207: 99.19092173 | Y207: 100.618835 | Z207: 102.0641884 | AA207: 103.5271085 | AB207: 105.0077196 | AC207: 106.5061444 | AD207: 108.0225031
B208: August | C208: 762.1619873 | D208: $ per mo. | F208: =F177*F114 -> 64.02160693 | G208: 64.97552888 | H208: 65.94199906 | I208: 66.92113783 | J208: 67.91306535 | K208: 68.91790153 | L208: 69.93576592 | M208: 70.96677772 | N208: 72.0110557 | O208: 73.06871808 | P208: 74.13988253 | Q208: 75.22466607 | R208: 76.32318501 | S208: 77.43555483 | T208: 78.56189018 | U208: 79.70230471 | V208: 80.85691107 | W208: 82.02582076 | X208: 83.20914408 | Y208: 84.40699 | Z208: 85.6194661 | AA208: 86.84667845 | AB208: 88.0887315 | AC208: 89.34572801 | AD208: 90.61776888
B209: September | C209: 632.8031006 | D209: $ per mo. | F209: =F178*F115 -> 53.15546045 | G209: 53.94747681 | H209: 54.74991164 | I209: 55.56286487 | J209: 56.38643627 | K209: 57.22072538 | L209: 58.06583148 | M209: 58.92185353 | N209: 59.78889013 | O209: 60.66703946 | P209: 61.5563992 | Q209: 62.45706651 | R209: 63.36913796 | S209: 64.29270944 | T209: 65.22787612 | U209: 66.17473239 | V209: 67.13337175 | W209: 68.1038868 | X209: 69.0863691 | Y209: 70.08090914 | Z209: 71.08759623 | AA209: 72.10651845 | AB209: 73.13776251 | AC209: 74.18141373 | AD209: 75.23755589
B210: October | C210: 520.6783447 | D210: $ per mo. | F210: =F179*F116 -> 43.73698096 | G210: 44.38866197 | H210: 45.04891544 | I210: 45.71782358 | J210: 46.39546847 | K210: 47.08193204 | L210: 47.77729596 | M210: 48.48164166 | N210: 49.19505027 | O210: 49.91760257 | P210: 50.64937895 | Q210: 51.39045933 | R210: 52.14092318 | S210: 52.90084941 | T210: 53.67031631 | U210: 54.44940154 | V210: 55.23818206 | W210: 56.03673404 | X210: 56.84513283 | Y210: 57.66345287 | Z210: 58.49176766 | AA210: 59.33014967 | AB210: 60.17867024 | AC210: 61.03739958 | AD210: 61.90640663
B211: November | C211: 323.7162781 | D211: $ per mo. | F211: =F180*F117 -> 27.19216736 | G211: 27.59733065 | H211: 28.00782361 | I211: 28.42369736 | J211: 28.84500292 | K211: 29.27179123 | L211: 29.70411307 | M211: 30.14201906 | N211: 30.58555966 | O211: 31.03478506 | P211: 31.48974526 | Q211: 31.95048996 | R211: 32.41706854 | S211: 32.88953007 | T211: 33.36792324 | U211: 33.85229632 | V211: 34.34269715 | W211: 34.8391731 | X211: 35.341771 | Y211: 35.85053716 | Z211: 36.36551725 | AA211: 36.88675633 | AB211: 37.41429877 | AC211: 37.9481882 | AD211: 38.48846749
B212: December | C212: 270.3334045 | D212: $ per mo. | F212: =F181*F118 -> 22.70800598 | G212: 23.04635527 | H212: 23.38915533 | I212: 23.73644885 | J212: 24.08827844 | K212: 24.44468665 | L212: 24.80571586 | M212: 25.17140838 | N212: 25.5418063 | O212: 25.91695158 | P212: 26.29688595 | Q212: 26.68165091 | R212: 27.07128772 | S212: 27.46583734 | T212: 27.86534043 | U212: 28.26983731 | V212: 28.67936792 | W212: 29.09397183 | X212: 29.51368814 | Y212: 29.93855552 | Z212: 30.36861212 | AA212: 30.80389556 | AB212: 31.24444289 | AC212: 31.69029056 | AD212: 32.14147436
B213: Annual | C213: =SUM(C201:C212) -> 7341.915436 | D213: $ per yr. | F213: =SUM(F201:F212) -> 616.7208966 | G213: 625.910038 | H213: 635.2200566 | I213: 644.652112 | J213: 654.2073616 | K213: 663.8869603 | L213: 673.69206 | M213: 683.623809 | N213: 693.683351 | O213: 703.8718252 | P213: 714.1903651 | Q213: 724.6400978 | R213: 735.2221437 | S213: 745.9376153 | T213: 756.787617 | U213: 767.7732437 | V213: 778.8955804 | W213: 790.1557013 | X213: 801.5546688 | Y213: 813.0935327 | Z213: 824.7733293 | AA213: 836.5950804 | AB213: 848.5597921 | AC213: 860.6684543 | AD213: 872.9220391
B216: Net Metering Revenue
B218: Net Metering Revenue - Load 1
B219: Month | C219: Generation (kWh)
B220: January | C220: =C107 -> 349.1069031 | D220: $ per mo. | F220: =F107*PercentLoad1*F124 -> 36.65622482 | G220: 37.20240257 | H220: 37.75576494 | I220: 38.31638085 | J220: 38.88431908 | K220: 39.45964829 | L220: 40.04243694 | M220: 40.63275328 | N220: 41.2306653 | O220: 41.8362407 | P220: 42.44954684 | Q220: 43.07065074 | R220: 43.69961897 | S220: 44.33651767 | T220: 44.98141247 | U220: 45.63436846 | V220: 46.29545012 | W220: 46.96472131 | X220: 47.64224515 | Y220: 48.32808407 | Z220: 49.02229964 | AA220: 49.7249526 | AB220: 50.43610276 | AC220: 51.15580895 | AD220: 51.88412894
B221: February | C221: 435.9643555 | D221: $ per mo. | F221: =F108*PercentLoad1*F125 -> 45.77625732 | G221: 46.45832356 | H221: 47.14936194 | I221: 47.84945853 | J221: 48.55869923 | K221: 49.27716978 | L221: 50.00495567 | M221: 50.74214213 | N221: 51.48881407 | O221: 52.24505602 | P221: 53.01095213 | Q221: 53.78658607 | R221: 54.57204097 | S221: 55.36739944 | T221: 56.17274343 | U221: 56.98815423 | V221: 57.81371235 | W221: 58.64949754 | X221: 59.49558865 | Y221: 60.35206361 | Z221: 61.21899933 | AA221: 62.09647166 | AB221: 62.98455527 | AC221: 63.88332365 | AD221: 64.79284893
B222: March | C222: 619.3152466 | D222: $ per mo. | F222: =F109*PercentLoad1*F126 -> 65.02810089 | G222: 65.99701959 | H222: 66.97868381 | I222: 67.97321578 | J222: 68.98073755 | K222: 70.00137092 | L222: 71.03523732 | M222: 72.08245783 | N222: 73.14315306 | O222: 74.21744312 | P222: 75.30544752 | Q222: 76.40728512 | R222: 77.52307405 | S222: 78.65293162 | T222: 79.79697426 | U222: 80.95531743 | V222: 82.12807555 | W222: 83.31536186 | X222: 84.51728839 | Y222: 85.73396584 | Z222: 86.96550347 | AA222: 88.21200902 | AB222: 89.47358859 | AC222: 90.75034654 | AD222: 92.04238537
B223: April | C223: 749.0038452 | D223: $ per mo. | F223: =F110*PercentLoad1*F127 -> 78.64540375 | G223: 79.81722026 | H223: 81.00445128 | I223: 82.20724465 | J223: 83.42574797 | K223: 84.66010852 | L223: 85.9104732 | M223: 87.17698843 | N223: 88.45980007 | O223: 89.75905338 | P223: 91.07489291 | Q223: 92.4074624 | R223: 93.7569047 | S223: 95.12336172 | T223: 96.50697425 | U223: 97.90788194 | V223: 99.32622315 | W223: 100.7621349 | X223: 102.2157525 | Y223: 103.6872101 | Z223: 105.1766396 | AA223: 106.6841714 | AB223: 108.2099339 | AC223: 109.7540532 | AD223: 111.3166533
B224: May | C224: 889.4098511 | D224: $ per mo. | F224: =F111*PercentLoad1*F128 -> 93.38803436 | G224: 94.77951607 | H224: 96.18930184 | I224: 97.61756723 | J224: 99.06448752 | K224: 100.5302376 | L224: 102.0149919 | M224: 103.5189242 | N224: 105.0422079 | O224: 106.5850153 | P224: 108.1475181 | Q224: 109.7298871 | R224: 111.3322918 | S224: 112.9549007 | T224: 114.5978811 | U224: 116.2613987 | V224: 117.9456179 | W224: 119.6507013 | X224: 121.3768098 | Y224: 123.1241023 | Z224: 124.8927358 | AA224: 126.682865 | AB224: 128.4946423 | AC224: 130.3282176 | AD224: 132.1837379
B225: June | C225: 880.8735352 | D225: $ per mo. | F225: =F112*PercentLoad1*F129 -> 92.49172119 | G225: 93.86984784 | H225: 95.26610286 | I225: 96.68066015 | J225: 98.11369328 | K225: 99.56537548 | L225: 101.0358795 | M225: 102.5253775 | N225: 104.0340411 | O225: 105.5620411 | P225: 107.1095474 | Q225: 108.6767292 | R225: 110.2637545 | S225: 111.87079 | T225: 113.4980015 | U225: 115.1455532 | V225: 116.8136077 | W225: 118.5023261 | X225: 120.2118679 | Y225: 121.9423904 | Z225: 123.694049 | AA225: 125.4669971 | AB225: 127.2613854 | AC225: 129.0773625 | AD225: 130.9150741
B226: July | C226: 908.548584 | D226: $ per mo. | F226: =F113*PercentLoad1*F130 -> 95.39760132 | G226: 96.81902558 | H226: 98.25914777 | I226: 99.71814723 | J226: 101.196203 | K226: 102.6934938 | L226: 104.2101977 | M226: 105.7464924 | N226: 107.3025547 | O226: 108.878561 | P226: 110.4746865 | Q226: 112.0911056 | R226: 113.7279916 | S226: 115.3855166 | T226: 117.0638514 | U226: 118.7631653 | V226: 120.4836263 | W226: 122.2254005 | X226: 123.9886522 | Y226: 125.7735437 | Z226: 127.5802355 | AA226: 129.4088856 | AB226: 131.2596495 | AC226: 133.1326805 | AD226: 135.0281288
B227: August | C227: 762.1619873 | D227: $ per mo. | F227: =F114*PercentLoad1*F131 -> 80.02700867 | G227: 81.2194111 | H227: 82.42749882 | I227: 83.65142229 | J227: 84.89133169 | K227: 86.14737691 | L227: 87.4197074 | M227: 88.70847215 | N227: 90.01381962 | O227: 91.3358976 | P227: 92.67485316 | Q227: 94.03083259 | R227: 95.40398126 | S227: 96.79444354 | T227: 98.20236272 | U227: 99.62788089 | V227: 101.0711388 | W227: 102.532276 | X227: 104.0114301 | Y227: 105.5087375 | Z227: 107.0243326 | AA227: 108.5583481 | AB227: 110.1109144 | AC227: 111.68216 | AD227: 113.2722111
B228: September | C228: 632.8031006 | D228: $ per mo. | F228: =F115*PercentLoad1*F132 -> 66.44432556 | G228: 67.43434601 | H228: 68.43738955 | I228: 69.45358109 | J228: 70.48304534 | K228: 71.52590673 | L228: 72.58228935 | M228: 73.65231691 | N228: 74.73611266 | O228: 75.83379932 | P228: 76.94549899 | Q228: 78.07133314 | R228: 79.21142245 | S228: 80.3658868 | T228: 81.53484515 | U228: 82.71841548 | V228: 83.91671469 | W228: 85.1298585 | X228: 86.35796138 | Y228: 87.60113643 | Z228: 88.85949529 | AA228: 90.13314806 | AB228: 91.42220314 | AC228: 92.72676716 | AD228: 94.04694486
B229: October | C229: 520.6783447 | D229: $ per mo. | F229: =F116*PercentLoad1*F133 -> 54.6712262 | G229: 55.48582747 | H229: 56.3111443 | I229: 57.14727947 | J229: 57.99433559 | K229: 58.85241505 | L229: 59.72161995 | M229: 60.60205208 | N229: 61.49381284 | O229: 62.39700322 | P229: 63.31172368 | Q229: 64.23807417 | R229: 65.17615398 | S229: 66.12606176 | T229: 67.08789538 | U229: 68.06175193 | V229: 69.04772758 | W229: 70.04591755 | X229: 71.05641604 | Y229: 72.07931609 | Z229: 73.11470958 | AA229: 74.16268709 | AB229: 75.22333781 | AC229: 76.29674948 | AD229: 77.38300829
B230: November | C230: 323.7162781 | D230: $ per mo. | F230: =F117*PercentLoad1*F134 -> 33.9902092 | G230: 34.49666332 | H230: 35.00977951 | I230: 35.52962169 | J230: 36.05625365 | K230: 36.58973904 | L230: 37.13014134 | M230: 37.67752383 | N230: 38.23194957 | O230: 38.79348133 | P230: 39.36218158 | Q230: 39.93811245 | R230: 40.52133568 | S230: 41.11191259 | T230: 41.70990405 | U230: 42.31537039 | V230: 42.92837144 | W230: 43.54896637 | X230: 44.17721375 | Y230: 44.81317145 | Z230: 45.45689656 | AA230: 46.10844541 | AB230: 46.76787346 | AC230: 47.43523525 | AD230: 48.11058436
... 21 more rows
